account_party,address,code,date,document_number,expense_code_name,expense_code_name_short,id,party_cell,party_cell_code,party_cell_geoobject,purpose,source_bank_account_number,source_bank_account_type,sum,target_legal_personality,target_legal_personality_code,target_type
ЄС,"Запорізька область, Запоріжжя, вулиця Розваги, 27, 62",79,2020-03-31,87,"Оренда будинків і приміщень та експлуатаційні витрати (прибирання, страхування орендованих будинків, охорона, сигналізація, ремонт, вивіз сміття, тощо)",Оренда нерухомості,249294,Запорізька обласна організація,39434317,Запорізька область,орендна плата грудень 2019р.,UA523223130000026008000005026,current,130.00,Сізов Р Ю,,фізична особа
ЄС,"Київ, вулиця Єреванська, 1",70,2020-03-31,TR.2526800,Банківські послуги,Інші витрати,249177,Чернівецька обласна організація,39692702,Чернівецька область,Плата за розрахункове обслуговування в після операційний час по рахунку № 26001266565.980 з 21/10/2019 по 21/10/2019,UA153204780000000026001266565,current,60.00,"АБ ""Укргазбанк""",23697280,юридична особа
ЄС,"Хмельницька область, Білогірський район, Білогір'я, вулиця Шевченка, 45",79,2020-03-31,426,"Оренда будинків і приміщень та експлуатаційні витрати (прибирання, страхування орендованих будинків, охорона, сигналізація, ремонт, вивіз сміття, тощо)",Оренда нерухомості,249068,Хмельницька обласна організація,39545645,Хмельницька область,Відшкодування за теплопостачання за вересень 2019р,UA093154050000026009052321812,current,243.25,Білогірський районний будинок культури,14153339,юридична особа
ЄС,"Київ, вулиця Михайла Грушевського, 1",70,2020-03-31,3VO36M46SY,Банківські послуги,Інші витрати,249067,Хмельницька обласна організація,39545645,Хмельницька область,Погашення комісії за виконання платежів в національній ваалюті,UA093154050000026009052321812,current,3.00,"ПАТ КБ ""Приватбанк""",14360570,юридична особа
ЄС,"Хмельницька область, Дунаєвецький район, Дунаївці, вулиця Горького, 11",79,2020-03-31,427,"Оренда будинків і приміщень та експлуатаційні витрати (прибирання, страхування орендованих будинків, охорона, сигналізація, ремонт, вивіз сміття, тощо)",Оренда нерухомості,249066,Хмельницька обласна організація,39545645,Хмельницька область,"За вивіз ТВП за жовтень 2019р,згідно договору №02-08-033/712 від 18.01.2018р",UA093154050000026009052321812,current,76.84,"КП ДМР ""Благоустрій Дунаєвеччини""",40326124,юридична особа
ЄС,"Херсонська область, Херсон, вулиця Перекопська, 21",70,2020-03-31,TR.2255303.6459,Банківські послуги,Інші витрати,248966,Херсонська обласна організація,39438699,Херсонська область,Плата за розрахункове обслуговування № 26001266059.980,UA973204780000000026001266059,current,60.00,"АБ ""Укргазбанк""",23697280,юридична особа
ЄС,"Херсонська область, Херсон, вулиця Перекопська, 21",70,2020-03-31,TR.2255303.2985,Банківські послуги,Інші витрати,248965,Херсонська обласна організація,39438699,Херсонська область,Плата за розрахункове обслуговування № 26001266059.980,UA973204780000000026001266059,current,0.80,"АБ ""Укргазбанк""",23697280,юридична особа
ЄС,"Херсонська область, Херсон, вулиця Перекопська, 21",70,2020-03-31,1420,Банківські послуги,Інші витрати,248964,Херсонська обласна організація,39438699,Херсонська область,Плата за розрахункове обслуговування № 26001266059.980,UA973204780000000026001266059,current,117.25,"АБ ""Укргазбанк""",23697280,юридична особа
ЄС,"Херсонська область, Херсон, вулиця Старообрядницька, 21",61,2020-03-31,1423,Військовий збір,Податкові платежі,248963,Херсонська обласна організація,39438699,Херсонська область,Військовий збір на доходи фіз.осіб утриманий із розрахункових при звільненні за березень2020р,UA973204780000000026001266059,current,436.98,УДКСУ у м. Херсон,37959779,юридична особа
ЄС,"Київ, бульвар Тараса Шевченка, 18",76,2020-03-31,1424,Послуги зв’язку,Послуги зв’язку,248962,Херсонська обласна організація,39438699,Херсонська область,за телекомунікаційні послуги за лютий 2020р.,UA973204780000000026001266059,current,688.98,"ПАТ ""Укртелеком""",21560766,юридична особа
ЄС,"Херсонська область, Херсон, вулиця Перекопська, 21",70,2020-03-31,TR.2255303.7904,Банківські послуги,Інші витрати,248961,Херсонська обласна організація,39438699,Херсонська область,Плата за розрахункове обслуговування № 26001266059.980,UA973204780000000026001266059,current,0.80,"АБ ""Укргазбанк""",23697280,юридична особа
ЄС,"Херсонська область, Херсон, вулиця Перекопська, 21",70,2020-03-31,TR.2255303.1526,Банківські послуги,Інші витрати,248960,Херсонська обласна організація,39438699,Херсонська область,Плата за розрахункове обслуговування № 26001266059.980,UA973204780000000026001266059,current,50.00,"АБ ""Укргазбанк""",23697280,юридична особа
ЄС,"Херсонська область, Херсон, вулиця Іллюши Кулика, 143",62,2020-03-31,1422,Сплата ЄСВ,Податкові платежі,248959,Херсонська обласна організація,39438699,Херсонська область,Сплата єдиного внеску за березень2020р.,UA973204780000000026001266059,current,6408.95,"ГУ ДФС у Херсонській області, Автономній республіці Крим та м. Севастополі",39394259,юридична особа
ЄС,"Херсонська область, Херсон, вулиця Перекопська, 21",70,2020-03-31,TR.2255303.2676,Банківські послуги,Інші витрати,248958,Херсонська обласна організація,39438699,Херсонська область,Плата за розрахункове обслуговування № 26001266059.980,UA973204780000000026001266059,current,0.80,"АБ ""Укргазбанк""",23697280,юридична особа
ЄС,"Херсонська область, Херсон, провулок Козацький, 10",63,2020-03-31,1421,Податок на доходи,Податкові платежі,248957,Херсонська обласна організація,39438699,Херсонська область,ПДФО утрим із розрахункових при звільненні за березень 2020р,UA973204780000000026001266059,current,5243.68,УДКСУ у м. Херсон,37959779,юридична особа
ЄС,"Херсонська область, Херсон, вулиця Перекопська, 21",70,2020-03-31,TR.2255303.1320,Банківські послуги,Інші витрати,248956,Херсонська обласна організація,39438699,Херсонська область,Плата за розрахункове обслуговування № 26001266059.980,UA973204780000000026001266059,current,0.80,"АБ ""Укргазбанк""",23697280,юридична особа
ЄС,"Херсонська область, Херсон, вулиця Миру",84,2020-03-31,1419,"Заробітна плата, премії","Заробітна плата, лікарняні, вагітності, відрядження, компенсації",248910,Херсонська обласна організація,39438699,Херсонська область,Заробітна плпта за березень 2020,UA973204780000000026001266059,current,11254.76,Саковніч Олексій Олександрович,,фізична особа
ЄС,"Херсонська область, Білозерський район, Янтарне",84,2020-03-31,1419,"Заробітна плата, премії","Заробітна плата, лікарняні, вагітності, відрядження, компенсації",248909,Херсонська обласна організація,39438699,Херсонська область,Заробітна плпта за березень 2020,UA973204780000000026001266059,current,12196.16,Калініченко Каріна Олексіївна,,фізична особа
ЄС,"Харківська область, Харків, вулиця Пушкінська, 46",84,2020-03-31,1181,"Заробітна плата, премії","Заробітна плата, лікарняні, вагітності, відрядження, компенсації",248887,Харківська обласна організація,39740347,Харківська область,Нарахування на заробітну плату,UA563516290000000002600912063,current,4567.92,Головне управління ДПС у Харківській о,43143704,юридична особа
ЄС,"Харківська область, Харків, проспект Науки, 9",63,2020-03-31,1179,Податок на доходи,Податкові платежі,248886,Харківська обласна організація,39740347,Харківська область,Податок з доходів фізичних осіб,UA563516290000000002600912063,current,3737.39,УДКСУ у Шевченківському районі м. Харкова,37999654,юридична особа
ЄС,"Харківська область, Харків, проспект Науки, 9",61,2020-03-31,1180,Військовий збір,Податкові платежі,248885,Харківська обласна організація,39740347,Харківська область,Військовий збір з доходів фізичних осіб,UA563516290000000002600912063,current,311.45,УДКСУ у Шевченківському районі м. Харкова,37999654,юридична особа
ЄС,"Харківська область, Богодухівський район, Богодухів, Міліцейська вулиця",79,2020-03-31,1182,"Оренда будинків і приміщень та експлуатаційні витрати (прибирання, страхування орендованих будинків, охорона, сигналізація, ремонт, вивіз сміття, тощо)",Оренда нерухомості,248884,Харківська обласна організація,39740347,Харківська область,Оплата комунальних послуг та енергоносіїв,UA563516290000000002600912063,current,138.66,"КП ""Богодухівжитло""",22660139,юридична особа
ЄС,"Харківська область, Харків, вулиця Алчевських, 30",70,2020-03-31,TR.1419132.1353,Банківські послуги,Інші витрати,248883,Харківська обласна організація,39740347,Харківська область,Розрахунково-касове обслуговування,UA563516290000000002600912063,current,125.36,"ПАТ ""Мегабанк""",09804119,юридична особа
ЄС,"Харківська область, Харків, вулиця Алчевських, 30",70,2020-03-31,RCO2026_589,Банківські послуги,Інші витрати,248882,Харківська обласна організація,39740347,Харківська область,Розрахунково-касове обслуговування,UA563516290000000002600912063,current,22.10,"ПАТ ""Мегабанк""",09804119,юридична особа
ЄС,"Харківська область, Харків",84,2020-03-31,1178,"Заробітна плата, премії","Заробітна плата, лікарняні, вагітності, відрядження, компенсації",248839,Харківська обласна організація,39740347,Харківська область,"Заробітна плата за березень 2020р, компенсація за невикористану відпустку",UA563516290000000002600912063,current,16714.45,Калюжний Владислав Олександрович,,фізична особа
ЄС,"Київ, вулиця Михайла Грушевського, 1",70,2020-03-31,DT03V17YUP,Банківські послуги,Інші витрати,248753,Тернопільська обласна організація,39614425,Тернопільська область,Комiсiя банку,UA273387830000026009055114295,current,9.00,"ПАТ КБ ""Приватбанк""",14360570,юридична особа
ЄС,"Тернопільська область, Тернопіль, вулиця Білецька, 1",62,2020-03-31,K3VO0OFBT0,Сплата ЄСВ,Податкові платежі,248752,Тернопільська обласна організація,39614425,Тернопільська область,ЄСВ за березень 2020р.,UA273387830000026009055114295,current,1021.24,ГУ ДПС у Тернопільській області,43142763,юридична особа
ЄС,"Київ, вулиця Михайла Грушевського, 1",70,2020-03-31,K3VO0OFBT5,Банківські послуги,Інші витрати,248751,Тернопільська обласна організація,39614425,Тернопільська область,Комiсiя банку,UA273387830000026009055114295,current,9.34,"ПАТ КБ ""Приватбанк""",14360570,юридична особа
ЄС,"Тернопільська область, Тернопіль, бульвар Тараса Шевченка, 3",61,2020-03-31,K3VO0OFBT3,Військовий збір,Податкові платежі,248750,Тернопільська обласна організація,39614425,Тернопільська область,Вiйськовий збiр за березень 2020,UA273387830000026009055114295,current,69.63,УДКСУ у м. Тернопіль,37977726,юридична особа
ЄС,"Тернопільська область, Тернопіль, бульвар Тараса Шевченка, 3",63,2020-03-31,K3VO0OFBT4,Податок на доходи,Податкові платежі,248749,Тернопільська обласна організація,39614425,Тернопільська область,ПДФО за березень 2020,UA273387830000026009055114295,current,835.56,УДКСУ у м. Тернопіль,37977726,юридична особа
ЄС,"Тернопільська область, Тернопіль",84,2020-03-31,1,"Заробітна плата, премії","Заробітна плата, лікарняні, вагітності, відрядження, компенсації",248689,Тернопільська обласна організація,39614425,Тернопільська область,Зарплата за березень 2020,UA273387830000026009055114295,current,3736.83,Романська Ірина Миколаївна,,фізична особа
ЄС,"Київ, вулиця Михайла Грушевського, 1",70,2020-03-31,3VO36K1BRY,Банківські послуги,Інші витрати,248670,Сумська обласна організація,39587135,Сумська область,комісія банку,UA853375460000026009055016910,current,3.00,"ПАТ КБ ""Приватбанк""",14360570,юридична особа
ЄС,"Київ, вулиця Михайла Грушевського, 1",70,2020-03-31,3VO36K1CNY,Банківські послуги,Інші витрати,248669,Сумська обласна організація,39587135,Сумська область,комісія банку,UA853375460000026009055016910,current,3.00,"ПАТ КБ ""Приватбанк""",14360570,юридична особа
ЄС,"Київ, вулиця Михайла Грушевського, 1",70,2020-03-31,3VO36K1CGY,Банківські послуги,Інші витрати,248668,Сумська обласна організація,39587135,Сумська область,комісія банку,UA853375460000026009055016910,current,3.00,"ПАТ КБ ""Приватбанк""",14360570,юридична особа
ЄС,"Київ, вулиця Михайла Грушевського, 1",70,2020-03-31,K3VO0OFC0Q,Банківські послуги,Інші витрати,248667,Сумська обласна організація,39587135,Сумська область,комісія банку,UA853375460000026009055016910,current,35.91,"ПАТ КБ ""Приватбанк""",14360570,юридична особа
ЄС,"Сумська область, Сумський район, Суми",61,2020-03-31,527,Військовий збір,Податкові платежі,248666,Сумська обласна організація,39587135,Сумська область,*;101;39587135;11011000 Вiйськовий збiр з з-п за березень 2020р.;;;,UA853375460000026009055016910,current,267.65,УДКСУ у м. Суми,37970593,юридична особа
ЄС,"Сумська область, Сумський район, Суми",63,2020-03-31,526,Податок на доходи,Податкові платежі,248665,Сумська обласна організація,39587135,Сумська область,*101;39587135;11010100 ПДФО з заробітної плати за березень 2020р.;;;,UA853375460000026009055016910,current,3211.84,УДКСУ у м. Суми,37970593,юридична особа
ЄС,"Сумська область, Сумський район, Суми",62,2020-03-31,525,Сплата ЄСВ,Податкові платежі,248664,Сумська обласна організація,39587135,Сумська область,*;101;39587135;сплата ЄСВ на з-п за березень 2020р.;;;,UA853375460000026009055016910,current,3925.58,ГУ ДПС у Сумській області,43144399,юридична особа
ЄС,"Сумська область, Сумський район, Суми",84,2020-03-31,1,"Заробітна плата, премії","Заробітна плата, лікарняні, вагітності, відрядження, компенсації",248611,Сумська обласна організація,39587135,Сумська область,заробітна плата,UA853375460000026009055016910,current,6209.40,Міленіна Євгенія Анатоліївна,,фізична особа
ЄС,"Сумська область, Сумський район, Суми",84,2020-03-31,1,"Заробітна плата, премії","Заробітна плата, лікарняні, вагітності, відрядження, компенсації",248610,Сумська обласна організація,39587135,Сумська область,заробітна плата,UA853375460000026009055016910,current,8154.67,Живиця Василь Іванович,,фізична особа
ЄС,"Київ, вулиця Єреванська, 1",70,2020-03-31,TR.2572644.6377342667,Банківські послуги,Інші витрати,248511,Полтавська обласна організація,26090791,Полтавська область,Плата за розрахункове обслуговування,UA963204780000000026000279199,current,60.00,"АБ ""Укргазбанк""",23697280,юридична особа
ЄС,"Дніпропетровська область, Дніпро́, вулиця Курсантська, 24",70,2020-03-31,278958,Банківські послуги,Інші витрати,248443,Одеська обласна організація,39607381,Одеська область,"За розрахункове обслуговування ч/з систему ""Інтернет-банк"" за період 01.03.2020-31.03.2020 зг. дог. № 26/77182/980 від 20.04.2015 згідно Тарифів банка. Без ПДВ.",UA933071230000026003010325274,current,150.00,"ПАТ ""Банк Восток""",26237202,юридична особа
ЄС,"Кіровоградська область, Кропивницький, вулиця В'ячеслава Чорновола, 1",76,2020-03-31,388,Послуги зв’язку,Послуги зв’язку,248159,Кіровоградська обласна організація,39697790,Кіровоградська область,Оплата Iнтернет - послуг,UA603235830000026002052912613,current,180.00,"ТОВ ""ІСП ""Шторм""",33519981,юридична особа
ЄС,Київ,70,2020-03-31,4334784511,Банківські послуги,Інші витрати,248053,Київська обласна організація,39495516,Київська область,Комiс.за розрах.обсл.рахунку 26004300956820 з 14-03-2020 по 31-03-2020. Без НДС,UA503805820000026000010325931,current,10.00,"Київська обласна філія АТ ""Ощадбанк""",09322277,юридична особа
ЄС,"Київ, вулиця Єреванська, 1",70,2020-03-31,TR.13439823.327,Банківські послуги,Інші витрати,247976,Івано-Франківська обласна організація,39655372,Івано-Франківська область,"Плата за розрахункове обслуговування по рахунку № 26003924420903.980 з 31/03/2020 по 31/03/2020 згідно Договору № 2019/КД/047-0124 від 22/10/2019 р, без ПДВ",UA133204780000026003924420903,current,0.80,"АБ ""Укргазбанк""",23697280,юридична особа
ЄС,"Київ, вулиця Єреванська, 1",70,2020-03-31,TR.13439823.693,Банківські послуги,Інші витрати,247975,Івано-Франківська обласна організація,39655372,Івано-Франківська область,"Плата за розрахункове обслуговування по рахунку № 26003924420903.980 з 31/03/2020 по 31/03/2020 згідно Договору № 2019/КД/047-0124 від 22/10/2019 р, без ПДВ",UA133204780000026003924420903,current,0.80,"АБ ""Укргазбанк""",23697280,юридична особа
ЄС,"Київ, вулиця Єреванська, 1",70,2020-03-31,TR.13439823.679,Банківські послуги,Інші витрати,247974,Івано-Франківська обласна організація,39655372,Івано-Франківська область,"Абонлата за розрахункове обслуговування по рахунку № 26003924420903.980 за перiод з 01/03/2020 по 31/03/2020 зг. договору № 2019/КД/047-0124 від 22/10/2019 , без ПДВ",UA133204780000026003924420903,current,60.00,"АБ ""Укргазбанк""",23697280,юридична особа
ЄС,"Київ, бульвар Тараса Шевченка, 18",79,2020-03-31,1510,"Оренда будинків і приміщень та експлуатаційні витрати (прибирання, страхування орендованих будинків, охорона, сигналізація, ремонт, вивіз сміття, тощо)",Оренда нерухомості,247973,Івано-Франківська обласна організація,39655372,Івано-Франківська область,Оплата за оренду приміщення за 02м.2020р. зг. Дог. оренди № 26Е000-53/20 від 01.01.2020р. в т.ч. ПДВ 3073.95 грн.,UA133204780000026003924420903,current,18443.72,"ПАТ ""Укртелеком""",21560766,юридична особа
ЄС,"Київ, бульвар Тараса Шевченка, 18",79,2020-03-31,1511,"Оренда будинків і приміщень та експлуатаційні витрати (прибирання, страхування орендованих будинків, охорона, сигналізація, ремонт, вивіз сміття, тощо)",Оренда нерухомості,247972,Івано-Франківська обласна організація,39655372,Івано-Франківська область,"Оплата за комунальні послуги за 02м.2020р. зг. Дог. оренди № 26Е000-53/20 від 01.01.2020р. в т.ч. ПДВ 810,58грн.",UA133204780000026003924420903,current,4863.46,"ПАТ ""Укртелеком""",21560766,юридична особа
ЄС,"Закарпатська область, Ужгород, вулиця Юрія Герца, 10",70,2020-03-31,196_4,Банківські послуги,Інші витрати,247850,Закарпатська обласна організація,39950317,Закарпатська область,ЗА ЗАКРИТТЯ РАХУНКІВ,UA743122480000026008015001021,current,150.00,"ПАТ ""Комінвестбанк""",19355562,юридична особа
ЄС,"Закарпатська область, Ужгород, вулиця Юрія Герца, 10",70,2020-03-31,196_5,Банківські послуги,Інші витрати,247849,Закарпатська обласна організація,39950317,Закарпатська область,ЗА ЗАКРИТТЯ,UA743122480000026008015001021,current,300.00,"ПАТ ""Комінвестбанк""",19355562,юридична особа
ЄС,"Дніпропетровська область, Дніпро́, проспект Богдана Хмельницького, 25",62,2020-03-31,405,Сплата ЄСВ,Податкові платежі,247647,Дніпровська міська організація,41146881,Дніпропетровська область,ЄСВ на ЗП за березень 2020 р,UA133052990000026005050304679,current,2251.83,ГУ ДПС У ДНІПРОП.ОБЛАСТІ,43145015,юридична особа
ЄС,"Дніпропетровська область, Дніпро́, вулиця Челюскіна, 1",63,2020-03-31,404,Податок на доходи,Податкові платежі,247646,Дніпровська міська організація,41146881,Дніпропетровська область,ПДФО з ЗП за березень 2020 р,UA133052990000026005050304679,current,1842.40,УДКСУ у Шевченківському районі м. Дніпро,37989274,юридична особа
ЄС,"Дніпропетровська область, Дніпро́, вулиця Челюскіна, 1",61,2020-03-31,406,Військовий збір,Податкові платежі,247645,Дніпровська міська організація,41146881,Дніпропетровська область,ВЗ з ЗП за березень 2020 р,UA133052990000026005050304679,current,153.53,УДКСУ у Шевченківському районі м. Дніпро,37989274,юридична особа
ЄС,"Київ, вулиця Михайла Грушевського, 1",70,2020-03-31,3VO36MJOEY,Банківські послуги,Інші витрати,247644,Дніпровська міська організація,41146881,Дніпропетровська область,РКО,UA133052990000026005050304679,current,3.00,"ПАТ КБ ""Приватбанк""",14360570,юридична особа
ЄС,"Київ, вулиця Михайла Грушевського, 1",70,2020-03-31,3VO36MJOGY,Банківські послуги,Інші витрати,247643,Дніпровська міська організація,41146881,Дніпропетровська область,РКО,UA133052990000026005050304679,current,3.00,"ПАТ КБ ""Приватбанк""",14360570,юридична особа
ЄС,"Київ, вулиця Михайла Грушевського, 1",70,2020-03-31,3VO36MJOFY,Банківські послуги,Інші витрати,247642,Дніпровська міська організація,41146881,Дніпропетровська область,РКО,UA133052990000026005050304679,current,3.00,"ПАТ КБ ""Приватбанк""",14360570,юридична особа
ЄС,"Дніпропетровська область, Дніпро́",84,2020-03-31,407,"Заробітна плата, премії","Заробітна плата, лікарняні, вагітності, відрядження, компенсації",247587,Дніпровська міська організація,41146881,Дніпропетровська область,Заробітна плата за березень 2020 р,UA133052990000026005050304679,current,8239.64,Кравець Ольга Сергіївна,,фізична особа
ЄС,"Одеська область, Одеса, вулиця Краснова, 6/1",70,2020-03-31,28570213,Банківські послуги,Інші витрати,247565,Волинська обласна організація,39402400,Волинська область,Оплата РКО зг. дог. № BA/1/0203/0004725 від 16.04.2015 за період 01.03.20-31.03.20.,UA453282090000026006010004725,current,16.00,"АБ ""Південний""",20953647,юридична особа
ЄС,"Одеська область, Одеса, вулиця Краснова, 6/1",70,2020-03-31,28570181,Банківські послуги,Інші витрати,247564,Волинська обласна організація,39402400,Волинська область,Оплата ведення рахунку зг. дог. № BA/1/0203/0004725 від 16.04.2015 за період 01.03.20-31.03.20.,UA453282090000026006010004725,current,100.00,"АБ ""Південний""",20953647,юридична особа
ЄС,"Одеська область, Одеса, вулиця Краснова, 6/1",70,2020-03-31,28570246,Банківські послуги,Інші витрати,247563,Волинська обласна організація,39402400,Волинська область,Оплата користування системою IFOBS зг. дог. № BA/1/0203/0004725 від 16.04.2015 за період 01.03.20-31.03.20.,UA453282090000026006010004725,current,75.00,"АБ ""Південний""",20953647,юридична особа
ЄС,"Київ, вулиця Лаврська, 16",70,2020-03-31,511808,Банківські послуги,Інші витрати,247457,Центральний офіс,21715714,Україна,"Комісія за виконання платіжного доручення в гривнях згідно, дог. 36.15-CBА від 24.02.2015",UA393805820000026007030316815,state,10.00,"ПАТ ""МІБ""",35810511,юридична особа
ЄС,"Київ, вулиця Михайла Грушевського, 1",70,2020-03-30,3UO36BS5JA,Банківські послуги,Інші витрати,249065,Хмельницька обласна організація,39545645,Хмельницька область,Погашення комісії за поповнення карток для виплат,UA093154050000026009052321812,current,4.08,"ПАТ КБ ""Приватбанк""",14360570,юридична особа
ЄС,"Хмельницька область, Нетішин",66,2020-03-30,425,Повернення внесків приватних внесків (донорам),Повернення приватних внесків (донорам),248991,Хмельницька обласна організація,39545645,Хмельницька область,Повернення помилково отриманих коштів-внесок на рахунок виборчого фонду,UA093154050000026009052321812,current,1360.00,Степанюк Олександр Володимирович,,фізична особа
ЄС,"Хмельницька область, Нетішин",66,2020-03-30,425,Повернення внесків приватних внесків (донорам),Повернення приватних внесків (донорам),248967,Хмельницька обласна організація,39545645,Хмельницька область,Невірне призначення платежу,UA093154050000026009052321812,current,1360.00,Степанюк Олександр Володимирович,,фізична особа
ЄС,"Харківська область, Харків",76,2020-03-30,1177,Послуги зв’язку,Послуги зв’язку,248881,Харківська обласна організація,39740347,Харківська область,Послуги зв'язку,UA563516290000000002600912063,current,1.18,"ПАТ ""Укртелеком""",21560766,юридична особа
ЄС,"Хмельницька область, Нетішин, проспект Незалежності, 22",79,2020-03-27,424,"Оренда будинків і приміщень та експлуатаційні витрати (прибирання, страхування орендованих будинків, охорона, сигналізація, ремонт, вивіз сміття, тощо)",Оренда нерухомості,249064,Хмельницька обласна організація,39545645,Хмельницька область,За ком.послуги за лютий 2020р,UA093154050000026009052321812,current,814.67,"КП ""Торгівельний Центр""",30769546,юридична особа
ЄС,"Хмельницька область, Нетішин, проспект Незалежності, 22",79,2020-03-27,424,"Оренда будинків і приміщень та експлуатаційні витрати (прибирання, страхування орендованих будинків, охорона, сигналізація, ремонт, вивіз сміття, тощо)",Оренда нерухомості,249063,Хмельницька обласна організація,39545645,Хмельницька область,За оренду приміщення за лютий 2020р,UA093154050000026009052321812,current,546.04,"КП ""Торгівельний Центр""",30769546,юридична особа
ЄС,"Київ, вулиця Михайла Грушевського, 1",70,2020-03-27,3RO369PT8Y,Банківські послуги,Інші витрати,249062,Хмельницька обласна організація,39545645,Хмельницька область,Погашення комісії за виконання платежів в національній ваалюті,UA093154050000026009052321812,current,3.00,"ПАТ КБ ""Приватбанк""",14360570,юридична особа
ЄС,"Київ, вулиця Лаврська, 16",70,2020-03-27,492304,Банківські послуги,Інші витрати,247456,Центральний офіс,21715714,Україна,"Комісія за виконання платіжного доручення в гривнях згідно, дог. 36.15-CBА від 24.02.2015",UA393805820000026007030316815,state,2.00,"ПАТ ""МІБ""",35810511,юридична особа
ЄС,"Київ, вулиця Болсуновська, 6",79,2020-03-27,145,"Оренда будинків і приміщень та експлуатаційні витрати (прибирання, страхування орендованих будинків, охорона, сигналізація, ремонт, вивіз сміття, тощо)",Оренда нерухомості,247455,Центральний офіс,21715714,Україна,"За професійне додат. прибирання приміщення в січень .2020 року., зг. Дог. №26/12-2017 від 26.12.2017 в т. ч. ПДВ 20% 6330.52 грн.",UA393805820000026007030316815,state,37983.12,"ТОВ ""ІВС І КО""",39027454,юридична особа
ЄС,"Київ, вулиця Лаврська, 16",70,2020-03-27,492303,Банківські послуги,Інші витрати,247222,Центральний офіс,21715714,Україна,"Комісія за виконання платіжного доручення в гривнях згідно, дог. 36.15-CBА від 24.02.2015",UA393805820000026007030316815,state,2.00,"ПАТ ""МІБ""",35810511,юридична особа
ЄС,"Київ, Кобзарський провулок. 10",82,2020-03-27,132,"Гонорари, в тому числі за надані консультаційні послуги","Гонорари, в тому числі за надані консультаційні послуги",247221,Центральний офіс,21715714,Україна,Послуги згідно Договору №12-03/1 Додаток №1 від 12.03.2020. Без ПДВ,UA393805820000026007030316815,state,164400.00,Семенов Павло Георгійович,2906225511,фізична особа
ЄС,"Київ, вулиця Єреванська, 1",70,2020-03-26,732,Банківські послуги,Інші витрати,249176,Чернівецька обласна організація,39692702,Чернівецька область,"Перераховано комісію за зарахування коштів на карткові рахунки зг. тарифів, зг. дог №2016/ZP/046-016 від 16.12.2016",UA153204780000000026001266565,current,113.61,"АБ ""Укргазбанк""",23697280,юридична особа
ЄС,"Київ, вулиця Єреванська, 1",70,2020-03-26,TR.252680_12,Банківські послуги,Інші витрати,249175,Чернівецька обласна організація,39692702,Чернівецька область,Плата за розрахункове обслуговування в після операційний час по рахунку № 26001266565.980 з 21/10/2019 по 21/10/2019,UA153204780000000026001266565,current,0.80,"АБ ""Укргазбанк""",23697280,юридична особа
ЄС,"Київ, вулиця Єреванська, 1",70,2020-03-26,TR.252680_11,Банківські послуги,Інші витрати,249174,Чернівецька обласна організація,39692702,Чернівецька область,Плата за розрахункове обслуговування в після операційний час по рахунку № 26001266565.980 з 21/10/2019 по 21/10/2019,UA153204780000000026001266565,current,0.80,"АБ ""Укргазбанк""",23697280,юридична особа
ЄС,"Київ, вулиця Єреванська, 1",70,2020-03-26,TR.252680,Банківські послуги,Інші витрати,249173,Чернівецька обласна організація,39692702,Чернівецька область,Плата за розрахункове обслуговування в після операційний час по рахунку № 26001266565.980 з 21/10/2019 по 21/10/2019,UA153204780000000026001266565,current,0.80,"АБ ""Укргазбанк""",23697280,юридична особа
ЄС,"Чернівецька область, Чернівці, вулиця Героїв Майдану, 71",62,2020-03-26,730,Сплата ЄСВ,Податкові платежі,249172,Чернівецька обласна організація,39692702,Чернівецька область,*;101;39692702; сплата ЄСВ із заробітної плати за 03/2020р. перерах повністю,UA153204780000000026001266565,current,6209.83,ДПІ в м.Чернівцях ГУДФС у Черн.обл.,39579145,юридична особа
ЄС,"Чернівецька область, Чернівці, вулиця Аксенина, 2",63,2020-03-26,728,Податок на доходи,Податкові платежі,249171,Чернівецька обласна організація,39692702,Чернівецька область,*;101;39692702;11010100;ПДФО з заробітної плати за 03/2020р. перераховано повністю в бюджет;,UA153204780000000026001266565,current,5080.77,УДКСУ у м. Чернівці,37978173,юридична особа
ЄС,"Чернівецька область, Чернівці, вулиця Аксенина, 2",61,2020-03-26,729,Військовий збір,Податкові платежі,249170,Чернівецька обласна організація,39692702,Чернівецька область,*;101;39692702;11011000;військовий збір утрисано із заробітної плати за 03/2020р. перераховано повністю в бюджет;,UA153204780000000026001266565,current,423.40,УДКСУ у м. Чернівці,37978173,юридична особа
ЄС,"Чернівецька область, Чернівці",84,2020-03-26,731,"Заробітна плата, премії","Заробітна плата, лікарняні, вагітності, відрядження, компенсації",249135,Чернівецька обласна організація,39692702,Чернівецька область,Перерахов.кошти для зарахування з/пл 01.03.2020 - 26.03.2028 на карткові рахунки співробітників,UA153204780000000026001266565,current,22722.31,НІКА Олександр Михайлович,,фізична особа
ЄС,"Хмельницька область, Нетішин",66,2020-03-26,2PL276957,Повернення внесків приватних внесків (донорам),Повернення приватних внесків (донорам),248990,Хмельницька обласна організація,39545645,Хмельницька область,Помилково отримані кошти,UA093154050000026009052321812,current,1360.00,Степанюк Олександр Володимирович,,фізична особа
ЄС,"Київ, вулиця Лаврська, 15",79,2020-03-26,38,"Оренда будинків і приміщень та експлуатаційні витрати (прибирання, страхування орендованих будинків, охорона, сигналізація, ремонт, вивіз сміття, тощо)",Оренда нерухомості,248817,Київська міська організація,39154804,Київ,"Компенсація комунальних витрат лютий, березень 2020 року., зг. дог№ К-204 від 15.10.2020 р.",UA693802690000026005056242489,current,59451.97,"ТОВ ""Підприємство ""Київ""",00308146,юридична особа
ЄС,"Київ, вулиця Лаврська, 15",79,2020-03-26,39,"Оренда будинків і приміщень та експлуатаційні витрати (прибирання, страхування орендованих будинків, охорона, сигналізація, ремонт, вивіз сміття, тощо)",Оренда нерухомості,248816,Київська міська організація,39154804,Київ,"Компенсація комунальних витрат лютий, березень 2020 року., зг. дог№ К-205 від 15.10.2020 р.",UA693802690000026005056242489,current,51742.45,"ТОВ ""Підприємство ""Київ""",00308146,юридична особа
ЄС,"Київ, вулиця Михайла Грушевського, 1",70,2020-03-26,3QO3662YTY,Банківські послуги,Інші витрати,248815,Київська міська організація,39154804,Київ,"Комiсiя за виконання платежiв в нацiональнiй валютi, згiдно з вiдкритою офертою банку N б/н вiд 09.10.2018 та тарифiв банку, без ПДВ.",UA693802690000026005056242489,current,3.00,"ПАТ КБ ""Приватбанк""",14360570,юридична особа
ЄС,"Київ, вулиця Михайла Грушевського, 1",70,2020-03-26,3QO3662YPY,Банківські послуги,Інші витрати,248814,Київська міська організація,39154804,Київ,"Комiсiя за виконання платежiв в нацiональнiй валютi, згiдно з вiдкритою офертою банку N б/н вiд 09.10.2018 та тарифiв банку, без ПДВ.",UA693802690000026005056242489,current,3.00,"ПАТ КБ ""Приватбанк""",14360570,юридична особа
ЄС,"Київ, вулиця Михайла Грушевського, 1",70,2020-03-26,TZ009BP16T,Банківські послуги,Інші витрати,248593,Рівненська обласна організація,39757256,Рівненська область,Оплата комісії за касове обслуговування по РІВНЕНСЬКА ТОП БПП СОЛІДАРНІСТЬ,UA303333910000026009054713048,current,63.03,"ПАТ КБ ""Приватбанк""",14360570,юридична особа
ЄС,"Дніпропетровська область, Дніпро́, вулиця Курсантська, 24",70,2020-03-26,254444,Банківські послуги,Інші витрати,248442,Одеська обласна організація,39607381,Одеська область,Комісія за виконання 26.03.2020р. платежів зг. дог. 26/77182/980 від 20.04.2015р. Без ПДВ,UA933071230000026003010325274,current,6.00,"ПАТ ""Банк Восток""",26237202,юридична особа
ЄС,"Одеська область, Одеса, вулиця Велика Арнаутська, 2А",76,2020-03-26,36,Послуги зв’язку,Послуги зв’язку,248441,Одеська обласна організація,39607381,Одеська область,"Оплата за телекомунікаційні послуги за о/р №315288, у т.ч. ПДВ 20% - 67.50 грн.",UA933071230000026003010325274,current,405.00,"ТОВ ""Тенет""",22485498,юридична особа
ЄС,"Одеська область, Одеса, вулиця Мала Арнаутська, 66",76,2020-03-26,37,Послуги зв’язку,Послуги зв’язку,248440,Одеська обласна організація,39607381,Одеська область,"За послуги зв'язку за ос. рахунком 2895674 Договор №К15763 від 14.06.16р., у т.ч. ПДВ 20% - 125.00 грн.",UA933071230000026003010325274,current,750.00,"ТОВ ""Інтернаціональні телекомунікації""",30109015,юридична особа
ЄС,"Київ, вулиця Болсуновська, 6",79,2020-03-26,140,"Оренда будинків і приміщень та експлуатаційні витрати (прибирання, страхування орендованих будинків, охорона, сигналізація, ремонт, вивіз сміття, тощо)",Оренда нерухомості,247454,Центральний офіс,21715714,Україна,"За професійне додат. прибирання приміщення в лютий.2020 року., зг. Дог. №26/12-2017 від 26.12.2017 в т. ч. ПДВ 20% 6330.52 грн.",UA393805820000026007030316815,state,37983.12,"ТОВ ""ІВС І КО""",39027454,юридична особа
ЄС,"Київ, вулиця Лаврська, 16",79,2020-03-26,143,"Оренда будинків і приміщень та експлуатаційні витрати (прибирання, страхування орендованих будинків, охорона, сигналізація, ремонт, вивіз сміття, тощо)",Оренда нерухомості,247453,Центральний офіс,21715714,Україна,"За компенсацію комунальних за лютий 2020. згідно Дог. №к-132 від 25.07.17 р., в т.ч. ПДВ 20% 15277.08 грн.",UA393805820000026007030316815,state,91662.49,"ТОВ ""Підприємство ""Київ""",00308146,юридична особа
ЄС,"Хмельницька область, Хмельницький, вулиця Володимирська, 71, 22",43,2020-03-26,141,Інші витрати,Інші витрати,247452,Центральний офіс,21715714,Україна,Оплата послуг згідно договору №02/01-02 від 02.01.2020,UA393805820000026007030316815,state,96400.00,Василенко О І,,фізична особа
ЄС,"Київ, вулиця Лаврська, 16",79,2020-03-26,144,"Оренда будинків і приміщень та експлуатаційні витрати (прибирання, страхування орендованих будинків, охорона, сигналізація, ремонт, вивіз сміття, тощо)",Оренда нерухомості,247451,Центральний офіс,21715714,Україна,"За компенсацію комунальних за березень 2020. згідно Дог. №к-132 від 25.07.17 р., в т.ч. ПДВ 20% 9968.23 грн.",UA393805820000026007030316815,state,59809.36,"ТОВ ""Підприємство ""Київ""",00308146,юридична особа
ЄС,"Київ, вулиця Лаврська, 16",70,2020-03-26,484232,Банківські послуги,Інші витрати,247448,Центральний офіс,21715714,Україна,"Комісія за виконання платіжного доручення в гривнях згідно, дог. 36.15-CBА від 24.02.2015",UA393805820000026007030316815,state,8.00,"ПАТ ""МІБ""",35810511,юридична особа
ЄС,"Київ, вулиця Лаврська, 16",70,2020-03-26,477733,Банківські послуги,Інші витрати,247056,Центральний офіс,21715714,Україна,"Нарахування комісії за надання довідки Вих.№ 627/ІІІ від 26/03/2020 (термінова), дог. 36.15-CBА від 24.02.2015",UA023805820000026006020316815,current,200.00,"ПАТ ""МІБ""",35810511,юридична особа
ЄС,"Київ, вулиця Михайла Грушевського, 1",70,2020-03-25,3PO36210TY,Банківські послуги,Інші витрати,248592,Рівненська обласна організація,39757256,Рівненська область,"Комiсiя за виконання платежiв в нацiональнiй валютi, згiдно з вiдкритою офертою банку N б/н вiд 29.04.2015 та тарифiв банку, без ПДВ.",UA303333910000026009054713048,current,3.00,"ПАТ КБ ""Приватбанк""",14360570,юридична особа
ЄС,"Рівненська область, Рівне, вулиця Відінська, 8",62,2020-03-25,1107,Сплата ЄСВ,Податкові платежі,248591,Рівненська обласна організація,39757256,Рівненська область,*;101;39757256; ЄСВ iз ЗП та розрахунковi за березень 2020р;;;,UA303333910000026009054713048,current,6890.62,ДПІ у м. Рівне ГУ ДФС в Рівненській області,39550744,юридична особа
ЄС,"Рівненська область, Рівне, вулиця Симона Петлюри, 13",63,2020-03-25,1108,Податок на доходи,Податкові платежі,248590,Рівненська обласна організація,39757256,Рівненська область,*;101;39757256; ПДФО iз ЗП та розрахунковi за березень 2020р;;;,UA303333910000026009054713048,current,5637.77,ГУ ДКСУ у Рівненській області,38012714,юридична особа
ЄС,"Рівненська область, Рівне, вулиця Симона Петлюри, 13",61,2020-03-25,1105,Військовий збір,Податкові платежі,248589,Рівненська обласна організація,39757256,Рівненська область,*;101;39757256;Вiйськовий збiр iз ЗП та розрахункових за березень 2020р.;;;,UA303333910000026009054713048,current,469.82,ГУ ДКСУ у Рівненській області,38012714,юридична особа
ЄС,"Київ, вулиця Михайла Грушевського, 1",70,2020-03-25,3PO362116Y,Банківські послуги,Інші витрати,248588,Рівненська обласна організація,39757256,Рівненська область,"Комiсiя за виконання платежiв в нацiональнiй валютi, згiдно з вiдкритою офертою банку N б/н вiд 29.04.2015 та тарифiв банку, без ПДВ.",UA303333910000026009054713048,current,3.00,"ПАТ КБ ""Приватбанк""",14360570,юридична особа
ЄС,"Київ, вулиця Михайла Грушевського, 1",70,2020-03-25,3PO362117Y,Банківські послуги,Інші витрати,248587,Рівненська обласна організація,39757256,Рівненська область,"Комiсiя за виконання платежiв в нацiональнiй валютi, згiдно з вiдкритою офертою банку N б/н вiд 29.04.2015 та тарифiв банку, без ПДВ.",UA303333910000026009054713048,current,3.00,"ПАТ КБ ""Приватбанк""",14360570,юридична особа
ЄС,"Рівненська область, Рівненський район, Городок",84,2020-03-25,1106,"Заробітна плата, премії","Заробітна плата, лікарняні, вагітності, відрядження, компенсації",248536,Рівненська обласна організація,39757256,Рівненська область,Зарплата та розрахункові за березень 2020 р.,UA303333910000026009054713048,current,11999.17,Волович Максим Володимирович,,фізична особа
ЄС,"Рівненська область, Рівне",84,2020-03-25,1106,"Заробітна плата, премії","Заробітна плата, лікарняні, вагітності, відрядження, компенсації",248535,Рівненська обласна організація,39757256,Рівненська область,Зарплата та розрахункові за березень 2020 р.,UA303333910000026009054713048,current,9823.59,Шевчук Ганна Євгеніївна,,фізична особа
ЄС,"Рівненська область, Рівне",84,2020-03-25,1106,"Заробітна плата, премії","Заробітна плата, лікарняні, вагітності, відрядження, компенсації",248534,Рівненська обласна організація,39757256,Рівненська область,Зарплата та розрахункові за березень 2020 р.,UA303333910000026009054713048,current,3390.62,Іванова Наталія Костянтинівна,,фізична особа
ЄС,"Львівська область, Львів, Щирецька, 6",70,2020-03-25,468251,Банківські послуги,Інші витрати,248325,Львівська обласна організація,39702118,Львівська область,Комісія за виконання операцій за допомогою системи клієнт-банк,UA243805820000026004010318212,current,82.20,"ПАТ ""МІБ""",35810511,юридична особа
ЄС,"Львівська область, Львів, Щирецька, 6",70,2020-03-25,467832,Банківські послуги,Інші витрати,248324,Львівська обласна організація,39702118,Львівська область,Комісія за обслуговування поточного рахунку,UA243805820000026004010318212,current,203.44,"ПАТ ""МІБ""",35810511,юридична особа
ЄС,"Київ, вулиця Лаврська, 16",70,2020-03-25,465864,Банківські послуги,Інші витрати,248052,Київська обласна організація,39495516,Київська область,"Комісія -абонентська плата за виконання операцій за допомогою системи Клієнт-Банк (iFOBS) за березень 2020р. згідно, дог. 123.18-CBA від 29.10.2018, КИЇВСЬКА ТО",UA503805820000026000010325931,current,150.00,"ПАТ ""МІБ""",35810511,юридична особа
ЄС,"Київ, вулиця Лаврська, 16",70,2020-03-25,466909,Банківські послуги,Інші витрати,248051,Київська обласна організація,39495516,Київська область,"Комісія за обслуговування поточного рахунку за період з 25.02.2020 по 24.03.2020 згідно, дог. 123.18-CBA від 29.10.2018, КИЇВСЬКА ТОПП""ЄВРОПЕЙСЬКА СОЛІДАРНІСТЬ",UA503805820000026000010325931,current,101.72,"ПАТ ""МІБ""",35810511,юридична особа
ЄС,Київ,70,2020-03-25,469111,Банківські послуги,Інші витрати,247507,Вінницька обласна організація,39508645,Вінницька область,"Комісія -абонентська плата за виконання операцій за допомогою системи Клієнт-Банк (iFOBS) за березень 2020р. згідно, дог. 7.15-СВА.101 від 20.03.2015, Вінницька ТО",UA88380582000026003010318161,current,100.00,"ПАТ ""МІБ""",35810511,юридична особа
ЄС,Київ,70,2020-03-25,469526,Банківські послуги,Інші витрати,247506,Вінницька обласна організація,39508645,Вінницька область,"Комісія за обслуговування поточного рахунку за період з 25.02.2020 по 24.03.2020 згідно, дог. 7.15-СВА.101 від 20.03.2015, Вінницька ТО ПП ""Європейська Солідарн",UA88380582000026003010318161,current,305.16,"ПАТ ""МІБ""",35810511,юридична особа
ЄС,"Київ, вулиця Лаврська, 16",70,2020-03-25,476416,Банківські послуги,Інші витрати,247447,Центральний офіс,21715714,Україна,"Комісія за виконання платіжного доручення в гривнях згідно, дог. 36.15-CBА від 24.02.2015",UA393805820000026007030316815,state,2.00,"ПАТ ""МІБ""",35810511,юридична особа
ЄС,"Київ, вулиця Лаврська, 16",70,2020-03-25,467278,Банківські послуги,Інші витрати,247445,Центральний офіс,21715714,Україна,"Комісія за обслуговування поточного рахунку за період з 25.02.2020 по 24.03.2020 згідно, дог. 36.15-CBА від 24.02.2015",UA393805820000026007030316815,state,101.72,"ПАТ ""МІБ""",35810511,юридична особа
ЄС,"Київ, вулиця Лаврська, 16",70,2020-03-25,467277,Банківські послуги,Інші витрати,247220,Центральний офіс,21715714,Україна,Комісія за обслуговування поточного рахунку за період з 25.02.2020 по 24.03.2020 згідно дог. від 24.02.2015,UA393805820000026007030316815,state,101.72,"ПАТ ""МІБ""",35810511,юридична особа
ЄС,"Київ, вулиця Лаврська, 16",70,2020-03-25,466229,Банківські послуги,Інші витрати,247055,Центральний офіс,21715714,Україна,Комісія -абонентська плата за виконання операцій за допомогою системи Клієнт-Банк (iFOBS) за березень 2020р.,UA023805820000026006020316815,current,150.00,"ПАТ ""МІБ""",35810511,юридична особа
ЄС,"Київ, вулиця Лаврська, 16",70,2020-03-25,467276,Банківські послуги,Інші витрати,247054,Центральний офіс,21715714,Україна,"Комісія за обслуговування поточного рахунку за період з 25.02.2020 по 24.03.2020 згідно, дог. 36.15-CBА від 24.02.2015",UA023805820000026006020316815,current,101.72,"ПАТ ""МІБ""",35810511,юридична особа
ЄС,"Закарпатська область, Ужгород, вулиця Юрія Герца, 10",70,2020-03-24,TR.449554.,Банківські послуги,Інші витрати,247848,Закарпатська обласна організація,39950317,Закарпатська область,Комісія за розрахунково-касове обслуговування,UA743122480000026008015001021,current,3.00,"ПАТ ""Комінвестбанк""",19355562,юридична особа
ЄС,"Київ, бульвар Тараса Шевченка, 18",76,2020-03-24,21,Послуги зв’язку,Послуги зв’язку,247847,Закарпатська обласна організація,39950317,Закарпатська область,"о/р 2140002200005577;оплата за телекомунікаційні послуги у лютому 2020р. зг. Договору №22-5577 в т.ч. ПДВ 20% 55,51 грн.",UA743122480000026008015001021,current,333.07,"ПАТ ""Укртелеком""",21560766,юридична особа
ЄС,"Київ, бульвар Вацлава Гавела, 6",79,2020-03-24,137,"Оренда будинків і приміщень та експлуатаційні витрати (прибирання, страхування орендованих будинків, охорона, сигналізація, ремонт, вивіз сміття, тощо)",Оренда нерухомості,247444,Центральний офіс,21715714,Україна,"За послуги з доставки питної води згідно Дог.№000101408 від 28.10.16 р., в т. ч. ПДВ 20% 2691.33 грн.",UA393805820000026007030316815,state,16148.00,"ТОВ ""Небесна криниця ЛТД""",37117315,юридична особа
ЄС,"Київ, вулиця Лаврська, 16",70,2020-03-24,449233,Банківські послуги,Інші витрати,247443,Центральний офіс,21715714,Україна,"Комісія за виконання платіжного доручення в гривнях згідно, дог. 36.15-CBА від 24.02.2015",UA393805820000026007030316815,state,2.00,"ПАТ ""МІБ""",35810511,юридична особа
ЄС,"Закарпатська область, Ужгород, вулиця Юрія Герца, 10",70,2020-03-20,TR.449554.,Банківські послуги,Інші витрати,247846,Закарпатська обласна організація,39950317,Закарпатська область,Комісія за розрахунково-касове обслуговування,UA743122480000026008015001021,current,100.00,"ПАТ ""Комінвестбанк""",19355562,юридична особа
ЄС,"Чернігівська область, Чернігів",63,2020-03-19,540,Податок на доходи,Податкові платежі,249248,Чернігівська обласна організація,39742680,Чернігівська область,"*;101;39742680;ПОДАТОК З ДОХОДIВ НАЙМНИХ ПРАЦIВНИКIВ З з/п за березень 2020, Мефоденкл звільнення . ПЕРЕРАХОВНО ПОВНIСТЮ;;;",UA603535860000026004051416683,current,3318.69,УДКСУ у м. Чернігові,38054398,юридична особа
ЄС,"Чернігівська область, Чернігів",62,2020-03-19,538,Сплата ЄСВ,Податкові платежі,249247,Чернігівська обласна організація,39742680,Чернігівська область,*;101;39742680;ЄСВ -22 % НА ДЕРЖ. СОЦ. СТРАХ. З з/п за березень 2020 Р. звільнення Мефоденко ПЕРЕРАХОВАНО ПОВНIСТЮ;;;,UA603535860000026004051416683,current,4056.18,ГУ ДФС у Чернігівській області,39392183,юридична особа
ЄС,"Чернігівська область, Чернігів",61,2020-03-19,539,Військовий збір,Податкові платежі,249246,Чернігівська обласна організація,39742680,Чернігівська область,*;101;39742680;ВIЙСЬКОВИЙ ЗБIР З з/п за березень Мефоденко звільнення 2020 Р. ПЕРЕРАХОВАНО ПОВНIСТЮ;;;,UA603535860000026004051416683,current,276.56,УДКСУ у м. Чернігові,38054398,юридична особа
ЄС,"Київ, вулиця Михайла Грушевського, 1",70,2020-03-19,K3JO0O7D2U,Банківські послуги,Інші витрати,249245,Чернігівська обласна організація,39742680,Чернігівська область,Комісії за касове обслуговування березень 2020 р. згідно договору банківського рахунку від 18.04.2018 . без пдв.,UA603535860000026004051416683,current,37.10,"ПАТ КБ ""Приватбанк""",14360570,юридична особа
ЄС,"Київ, вулиця Михайла Грушевського, 1",70,2020-03-19,3JO35IFBEY,Банківські послуги,Інші витрати,249244,Чернігівська обласна організація,39742680,Чернігівська область,"Комiсiя за виконання платежiв в нацiональнiй валютi, згiдно з вiдкритою офертою банку N б/н вiд 18.04.2018 та тарифiв банку, без ПДВ.",UA603535860000026004051416683,current,3.00,"ПАТ КБ ""Приватбанк""",14360570,юридична особа
ЄС,"Київ, вулиця Михайла Грушевського, 1",70,2020-03-19,3JO35IFBIY,Банківські послуги,Інші витрати,249243,Чернігівська обласна організація,39742680,Чернігівська область,"Комiсiя за виконання платежiв в нацiональнiй валютi, згiдно з вiдкритою офертою банку N б/н вiд 18.04.2018 та тарифiв банку, без ПДВ.",UA603535860000026004051416683,current,3.00,"ПАТ КБ ""Приватбанк""",14360570,юридична особа
ЄС,"Київ, вулиця Михайла Грушевського, 1",70,2020-03-19,3JO35IFBLY,Банківські послуги,Інші витрати,249242,Чернігівська обласна організація,39742680,Чернігівська область,"Комiсiя за виконання платежiв в нацiональнiй валютi, згiдно з вiдкритою офертою банку N б/н вiд 18.04.2018 та тарифiв банку, без ПДВ.",UA603535860000026004051416683,current,3.00,"ПАТ КБ ""Приватбанк""",14360570,юридична особа
ЄС,"Чернігівська область, Чернігів",84,2020-03-19,1,"Заробітна плата, премії","Заробітна плата, лікарняні, вагітності, відрядження, компенсації",249198,Чернігівська обласна організація,39742680,Чернігівська область,"З/П за березень 2020г., звільнення Мефоденко",UA603535860000026004051416683,current,14841.92,Мефоденко Катерина Вікторівна,,фізична особа
ЄС,"Дніпропетровська область, Дніпро́, вулиця Курсантська, 24",70,2020-03-19,199847,Банківські послуги,Інші витрати,248439,Одеська обласна організація,39607381,Одеська область,Погашення комісії за Договором зарплатного проекту. Без ПДВ. (договірне списання)Погашення комісії за Договором зарплатного проекту. Без ПДВ. (договірне списання),UA933071230000026003010325274,current,59.68,"ПАТ ""Банк Восток""",26237202,юридична особа
ЄС,"Київ, вулиця Старовокзальна, 13, 6",72,2020-03-19,136,"Придбання, ремонт офісної техніки та програмного забезпечення (Бухгалтерські програми, Ліга.закон, домени)",Придбання офісної техніки та програмного забезпечення,247442,Центральний офіс,21715714,Україна,За посл. заправки і відно. катриджа Дог. основний в т. ч. ПДВ 20% 2533.33 грн.,UA393805820000026007030316815,state,15200.00,"ТОВ ""Мітек-Групп""",39720268,юридична особа
ЄС,"Київ, вулиця Солом'янська, 3",76,2020-03-19,134,Послуги зв’язку,Послуги зв’язку,247441,Центральний офіс,21715714,Україна,"За посл. інтернет в березні 2020 Дог. №9003898 від 17.10.2017 р., в т. ч. ПДВ 20% 61.00 грн.",UA393805820000026007030316815,state,366.00,"ТОВ ""МЕРЛІН-ТЕЛЕКОМ""",31055823,юридична особа
ЄС,"Київ, проспект Володимира Маяковського, 1, 25",76,2020-03-19,135,Послуги зв’язку,Послуги зв’язку,247440,Центральний офіс,21715714,Україна,"Абонплата за посл. інтернет за березень 2020 р., зг. , Дог.№41/10/16LC від 01.10.2016 р., Без ПДВ",UA393805820000026007030316815,state,9500.00,Білоконь О Г,2881007014,фізична особа
ЄС,"Київ, вулиця Лаврська, 16",70,2020-03-19,427409,Банківські послуги,Інші витрати,247439,Центральний офіс,21715714,Україна,"Комісія за виконання платіжного доручення в гривнях згідно, дог. 36.15-CBА від 24.02.2015",UA393805820000026007030316815,state,8.00,"ПАТ ""МІБ""",35810511,юридична особа
ЄС,"Одеська область, Одеса",83,2020-03-18,35,"Виплати працівникам (не зарплата): лікарняні, вагітності, відрядження, компенсації ","Заробітна плата, лікарняні, вагітності, відрядження, компенсації",248390,Одеська обласна організація,39607381,Одеська область,"Виплата розрахункових при звільнені ОТОПП ""ЄВРОПЕЙСЬКА СОЛІДАРНІСТЬ"" згiдно вiдомостi N 129 вiд 18.03.2020",UA933071230000026003010325274,current,8526.34,Сізоненко Сергій Вадимович,,фізична особа
ЄС,"Київ, вулиця Єреванська, 1",70,2020-03-18,TR.13439823.304,Банківські послуги,Інші витрати,247971,Івано-Франківська обласна організація,39655372,Івано-Франківська область,"Плата за розрахункове обслуговування по рахунку № 26003924420903.980 з 18/03/2020 по 18/03/2020 згідно Договору № 2019/КД/047-0124 від 22/10/2019 р, без ПДВ",UA133204780000026003924420903,current,0.80,"АБ ""Укргазбанк""",23697280,юридична особа
ЄС,"Київ, бульвар Тараса Шевченка, 18",76,2020-03-18,1509,Послуги зв’язку,Послуги зв’язку,247970,Івано-Франківська обласна організація,39655372,Івано-Франківська область,"За інтернет зв'язок зг. акту № 2640000000540906 за 02м.20р. в т.ч. ПДВ 84,48грн.",UA133204780000026003924420903,current,506.89,"ПАТ ""Укртелеком""",21560766,юридична особа
ЄС,"Київ, Харківське шосе, 172Б, оф.208-1",74,2020-03-18,131,"Придбання канцтоварів, паперу, інших предметів і матеріалів, а також госп товари",Придбання канцтоварів та госп. товарів,247219,Центральний офіс,21715714,Україна,"а поставку госп. товарів зг. рах. №617 від 17.03.2020р., Дог. №14/0518 від 14.05.2018 р., в т. ч. ПДВ 20% 339.00 грн.",UA393805820000026007030316815,state,2034.00,"ТОВ ""ОЛ-СЕРВІС ГРУП""",40695518,юридична особа
ЄС,"Київ, вулиця Лаврська, 16",70,2020-03-18,420318,Банківські послуги,Інші витрати,247218,Центральний офіс,21715714,Україна,"Комісія за виконання платіжного доручення в гривнях згідно, дог. 36.15-CBА від 24.02.2015",UA393805820000026007030316815,state,2.00,"ПАТ ""МІБ""",35810511,юридична особа
ЄС,"Київ, вулиця Михайла Грушевського, 1",70,2020-03-17,3HO3517ZEY,Банківські послуги,Інші витрати,248663,Сумська обласна організація,39587135,Сумська область,комісія банку,UA853375460000026009055016910,current,3.00,"ПАТ КБ ""Приватбанк""",14360570,юридична особа
ЄС,"Сумська область, Сумський район, Суми",60,2020-03-17,524,Інші податки,Податкові платежі,248662,Сумська обласна організація,39587135,Сумська область,"*;101;39587135; штраф, пеня за перiод 21.01.2020-28.01.2020 р.",UA853375460000026009055016910,current,1739.96,ГУ ДПС у Сумській області,43144399,юридична особа
ЄС,"Київ, вулиця Михайла Грушевського, 1",70,2020-03-16,3GO34ZHU6Y,Банківські послуги,Інші витрати,248747,Тернопільська обласна організація,39614425,Тернопільська область,Комiсiя банку,UA273387830000026009055114295,current,3.00,"ПАТ КБ ""Приватбанк""",14360570,юридична особа
ЄС,"Дніпропетровська область, Дніпро́, вулиця Курсантська, 24",70,2020-03-16,171491,Банківські послуги,Інші витрати,248438,Одеська обласна організація,39607381,Одеська область,Комісія за виконання 16.03.2020р. платежів зг. дог. 26/77182/980 від 20.04.2015р. Без ПДВ,UA933071230000026003010325274,current,9.00,"ПАТ ""Банк Восток""",26237202,юридична особа
ЄС,"Одеська область, Одеса, вулиця Черняховського, 6",61,2020-03-16,34,Військовий збір,Податкові платежі,248437,Одеська обласна організація,39607381,Одеська область,*;101;39607381;військовий збір за березень 2020р.;ккд11011000;;;,UA933071230000026003010325274,current,158.88,УДКСУ у м. Одесі,38016923,юридична особа
ЄС,"Одеська область, Одеса, вулиця Черняховського, 6",63,2020-03-16,32,Податок на доходи,Податкові платежі,248436,Одеська обласна організація,39607381,Одеська область,*;101;39607381;ПДФО за березень 2020р.; код 11010100;;;,UA933071230000026003010325274,current,1906.51,УДКСУ у м. Одесі,38016923,юридична особа
ЄС,"Одеська область, Одеса, Семінарська вулиця, 5",62,2020-03-16,33,Сплата ЄСВ,Податкові платежі,248435,Одеська обласна організація,39607381,Одеська область,*;101;39607381;ЄСВ за березень 2020р.;код 71010000;;;,UA933071230000026003010325274,current,2330.18,ГУ ДФС В ОДЕС. ОБЛ./Приморський р-н,39398646,юридична особа
ЄС,"Одеська область, Одеса, вулиця Краснова, 6/1",70,2020-03-16,23325148,Банківські послуги,Інші витрати,247562,Волинська обласна організація,39402400,Волинська область,Документ комісії за зарахування коштів по ЗП згідно відомості 30 від 16.03.2020,UA453282090000026006010004725,current,68.22,"АБ ""Південний""",20953647,юридична особа
ЄС,"Волинська область, Луцьк, Київський майдан, 6",62,2020-03-16,29,Сплата ЄСВ,Податкові платежі,247561,Волинська обласна організація,39402400,Волинська область,"*;101;39402400;71010000;;;; ЄСВ 22% із заробітної плати для найманих працівників за березень 2020р., перерах. повністю;;;;",UA453282090000026006010004725,current,3107.11,ГУ ДПС у Волинській області,43143484,юридична особа
ЄС,"Волинська область, Луцьк, Київський майдан, 6",61,2020-03-16,30,Військовий збір,Податкові платежі,247560,Волинська обласна організація,39402400,Волинська область,"*;101;39402400;11011000;;;; Військовий збір 1,5% із заробітної плати для найманих працівників за березень 2020р.,перерах. повністю;;;",UA453282090000026006010004725,current,211.85,УДКСУ у м. Луцьку,38009628,юридична особа
ЄС,"Волинська область, Луцьк, Київський майдан, 6",63,2020-03-16,31,Податок на доходи,Податкові платежі,247559,Волинська обласна організація,39402400,Волинська область,"*;101;39402400;11010100;;;;Податок з доходів 18% із заробітної плати найманих працівників за березень 2020р., перерах. повністю;;;",UA453282090000026006010004725,current,2542.17,УДКСУ у м. Луцьку,38009628,юридична особа
ЄС,"Волинська область, Любешівський район, Зарудчі",83,2020-03-16,23319101,"Виплати працівникам (не зарплата): лікарняні, вагітності, відрядження, компенсації ","Заробітна плата, лікарняні, вагітності, відрядження, компенсації",247526,Волинська обласна організація,39402400,Волинська область,Розрахункові для найманих працівників за березень 2020 року. Податки сплачено 16.03.2020р.,UA453282090000026006010004725,current,11369.17,Літвінчук Юлія Михайлівна,,фізична особа
ЄС,"Київ, вулиця Лаврська, 16",70,2020-03-16,406575,Банківські послуги,Інші витрати,247436,Центральний офіс,21715714,Україна,"Комісія за виконання платіжного доручення в гривнях згідно, дог. 36.15-CBА від 24.02.2015",UA393805820000026007030316815,state,4.00,"ПАТ ""МІБ""",35810511,юридична особа
ЄС,"Дніпропетровська область, Дніпро́, вулиця Курсантська, 24",70,2020-03-13,156823,Банківські послуги,Інші витрати,248434,Одеська обласна організація,39607381,Одеська область,Комісія за виконання 13.03.2020р. платежів зг. дог. 26/77182/980 від 20.04.2015р. Без ПДВ,UA933071230000026003010325274,current,3.00,"ПАТ ""Банк Восток""",26237202,юридична особа
ЄС,"Одеська область, Одеса, вулиця Велика Арнаутська, 2А",76,2020-03-13,30,Послуги зв’язку,Послуги зв’язку,248433,Одеська обласна організація,39607381,Одеська область,"Оплата за телекомунікаційні послуги за о/р №315288, у т.ч. ПДВ 20% - 67.50 грн.",UA933071230000026003010325274,current,405.00,"ТОВ ""Тенет""",22485498,юридична особа
ЄС,"Луганська область, Сєвєродонецьк, проспект Центральний, 59",61,2020-03-13,27,Військовий збір,Податкові платежі,248222,Луганська обласна організація,39825996,Луганська область,"*;101;39825996; сплата військового збору;лютий 2020р;1,5%;11,64;;;; Без ПДВ",UA583047950000026043053705040,current,11.64,УДКСУ у м. Сєвєродонецьку Луганської області,37944909,юридична особа
ЄС,"Луганська область, Сєвєродонецьк, проспект Центральний, 59",63,2020-03-13,28,Податок на доходи,Податкові платежі,248221,Луганська обласна організація,39825996,Луганська область,"*;101;39825996;ПДФО;лютий 2020р.;18%;139,64;;; Без ПДВ",UA583047950000026043053705040,current,139.64,УДКСУ у м. Сєвєродонецьку Луганської області,37944909,юридична особа
ЄС,"Київ, вулиця Михайла Грушевського, 1",70,2020-03-13,3DO34QA4CY,Банківські послуги,Інші витрати,248220,Луганська обласна організація,39825996,Луганська область,"Комiсiя за виконання платежiв в нацiональнiй валютi, згiдно з вiдкритою офертою банку N б/н вiд 17.06.2015 та тарифiв банку, без ПДВ.",UA583047950000026009053718941,current,3.00,"ПАТ КБ ""Приватбанк""",14360570,юридична особа
ЄС,"Київ, вулиця Михайла Грушевського, 1",70,2020-03-13,3DO34QA4WY,Банківські послуги,Інші витрати,248219,Луганська обласна організація,39825996,Луганська область,"Комiсiя за виконання платежiв в нацiональнiй валютi, згiдно з вiдкритою офертою банку N б/н вiд 17.06.2015 та тарифiв банку, без ПДВ.",UA583047950000026009053718941,current,3.00,"ПАТ КБ ""Приватбанк""",14360570,юридична особа
ЄС,"Київ, вулиця Михайла Грушевського, 1",70,2020-03-13,TZ003BCV76,Банківські послуги,Інші витрати,248218,Луганська обласна організація,39825996,Луганська область,"Оплата комiсiї за касове обслуговування по ЛТОПП ""Європейська Солідарність"", без ПДВ.",UA583047950000026009053718941,current,1.56,"ПАТ КБ ""Приватбанк""",14360570,юридична особа
ЄС,"Луганська область, Сєвєродонецьк, вулиця Донецька, 1",83,2020-03-13,46,"Виплати працівникам (не зарплата): лікарняні, вагітності, відрядження, компенсації ","Заробітна плата, лікарняні, вагітності, відрядження, компенсації",248170,Луганська обласна організація,39825996,Луганська область,Допомога по тимчас. втраті працездатності у 02.2020 згідно заяви розрахунку №000601 18.02.2020 Серебреннікової О.О. ЄСВ перераховано ПД № 24 від 03.03.2020. Без ПДВ,UA583047950000026043053705040,current,624.51,Серебреннікова Олена Олександрівна,,фізична особа
ЄС,"Кіровоградська область, Кропивницький, вулиця Велика Перспективна, 8",70,2020-03-13,7IO2BFMBMY,Банківські послуги,Інші витрати,248158,Кіровоградська обласна організація,39697790,Кіровоградська область,Комiсiя за виконання платежiв в нацiональнiй валютi,UA603235830000026002052912613,current,9.00,"ПАТ ""НАСК ""Оранта""",14360577,юридична особа
ЄС,"Кіровоградська область, Кропивницький, вулиця Велика Перспективна, 31/36",63,2020-03-13,K3DO0O13Y6,Податок на доходи,Податкові платежі,248157,Кіровоградська обласна організація,39697790,Кіровоградська область,ПДФО вiд розрахункові березень 2020р,UA603235830000026002052912613,current,1963.39,УДКСУ у м. Кропивницькому,38037409,юридична особа
ЄС,"Кіровоградська область, Кропивницький, вулиця Велика Перспективна, 31/36",61,2020-03-13,K3DO0O13Y5,Військовий збір,Податкові платежі,248156,Кіровоградська обласна організація,39697790,Кіровоградська область,Вiйськовий збiр вiд розрахункові березень2020р,UA603235830000026002052912613,current,163.62,УДКСУ у м. Кропивницькому,38037409,юридична особа
ЄС,"Кіровоградська область, Кропивницький, вул. Глінки, 2",62,2020-03-13,K3DO0O13Y4,Сплата ЄСВ,Податкові платежі,248155,Кіровоградська обласна організація,39697790,Кіровоградська область,ЄСВ на розрахункові за березень 2020 р.,UA603235830000026002052912613,current,2399.70,Кропивницька ОДПІ ГУ ДФС у Кіровоградській області,39484073,юридична особа
ЄС,"Кіровоградська область, Знам'янка",84,2020-03-13,1,"Заробітна плата, премії","Заробітна плата, лікарняні, вагітності, відрядження, компенсації",248067,Кіровоградська обласна організація,39697790,Кіровоградська область,"Зарплата за березень, розрахункові 2020 р.",UA603235830000026002052912613,current,8780.73,Бондарева Любов Миколаївна,,фізична особа
ЄС,"Київ, вулиця Коперника, 16А",79,2020-03-13,129,"Оренда будинків і приміщень та експлуатаційні витрати (прибирання, страхування орендованих будинків, охорона, сигналізація, ремонт, вивіз сміття, тощо)",Оренда нерухомості,247434,Центральний офіс,21715714,Україна,"За послуги з охорони нерухомого майна за лютий 2020 р. згідно рах. №04 від 29.02.2020 р.,Дог. про над. посл. з охорони №041217/1 від 04.12.2017 р., Без ПДВ",UA393805820000026007030316815,state,200000.00,"ПП ""Агентство безпеки ""Леопард""",32597744,юридична особа
ЄС,"Київ, вулиця Коперника, 16А",79,2020-03-13,130,"Оренда будинків і приміщень та експлуатаційні витрати (прибирання, страхування орендованих будинків, охорона, сигналізація, ремонт, вивіз сміття, тощо)",Оренда нерухомості,247432,Центральний офіс,21715714,Україна,"За послуги з охорони нерухомого майна за лютий 2020 р. згідно рах. №05 від 29.02.2020 р.,Дог. про над. посл. з охорони №041217/1 від 04.12.2017 р., Без ПДВ",UA393805820000026007030316815,state,40000.00,"ПП ""Агентство безпеки ""Леопард""",32597744,юридична особа
ЄС,"Київ, вулиця Лаврська, 16",70,2020-03-13,399390,Банківські послуги,Інші витрати,247431,Центральний офіс,21715714,Україна,"Комісія за виконання платіжного доручення в гривнях згідно, дог. 36.15-CBА від 24.02.2015",UA393805820000026007030316815,state,2.00,"ПАТ ""МІБ""",35810511,юридична особа
ЄС,"Київ, вулиця Михайла Грушевського, 1",70,2020-03-12,TZ002BCG24,Банківські послуги,Інші витрати,249061,Хмельницька обласна організація,39545645,Хмельницька область,Погашення комісії за касове обслуговування,UA093154050000026009052321812,current,12.39,"ПАТ КБ ""Приватбанк""",14360570,юридична особа
ЄС,"Харківська область, Богодухівський район, Богодухів, Міліцейська вулиця",79,2020-03-12,1175,"Оренда будинків і приміщень та експлуатаційні витрати (прибирання, страхування орендованих будинків, охорона, сигналізація, ремонт, вивіз сміття, тощо)",Оренда нерухомості,248880,Харківська обласна організація,39740347,Харківська область,Оренда та експлуатаційні послуги,UA563516290000000002600912063,current,120.00,"КП ""Богодухівжитло""",22660139,юридична особа
ЄС,"Харківська область, Харків, вулиця Алчевських, 30",70,2020-03-12,RCO1948_419,Банківські послуги,Інші витрати,248879,Харківська обласна організація,39740347,Харківська область,Розрахунково-касове обслуговування,UA563516290000000002600912063,current,0.18,"ПАТ ""Мегабанк""",09804119,юридична особа
ЄС,"Харківська область, Харків",76,2020-03-12,1176,Послуги зв’язку,Послуги зв’язку,248878,Харківська обласна організація,39740347,Харківська область,Послуги зв'язку,UA563516290000000002600912063,current,0.16,"ПАТ ""Укртелеком""",21560766,юридична особа
ЄС,"Київ, вулиця Михайла Грушевського, 1",70,2020-03-12,25,Банківські послуги,Інші витрати,248813,Київська міська організація,39154804,Київ,"Комиссия РКО Зар.пл розрахунок Магденко ,зп 02/2020",UA693802690000026005056242489,current,157.35,"ПАТ КБ ""Приватбанк""",14360570,юридична особа
ЄС,"Київ, вулиця Межигірська, 25",61,2020-03-12,36,Військовий збір,Податкові платежі,248812,Київська міська організація,39154804,Київ,"*;101;39154804;Вiйськовий збiр з доходiв у вигляді зар.плати, з зар.плати за Магденко розрахунок., зп 02/2020",UA693802690000026005056242489,current,1172.80,УДКСУ у Подільському районі м. Києва,37975298,юридична особа
ЄС,"Київ, вулиця Турівська, 12",62,2020-03-12,35,Сплата ЄСВ,Податкові платежі,248811,Київська міська організація,39154804,Київ,"*;101;39154804;Сплата ЄСВ 22% зар пл розрахунок Магденко, зп 02/2020 р.",UA693802690000026005056242489,current,16686.00,ДПІ у Подільському районі ГУ ДФС у м. Києві,39467012,юридична особа
ЄС,"Київ, вулиця Межигірська, 25",63,2020-03-12,37,Податок на доходи,Податкові платежі,248810,Київська міська організація,39154804,Київ,"*;101;39154804;Податок на дох.фiз.осiб iз доходiв у вигляді зар.плати, з зар.плати за розрахунок Магденко, зп 02/2020",UA693802690000026005056242489,current,14073.50,УДКСУ у Подільському районі м. Києва,37975298,юридична особа
ЄС,"Київ, вулиця Михайла Грушевського, 1",70,2020-03-12,3CO34I9ZLY,Банківські послуги,Інші витрати,248809,Київська міська організація,39154804,Київ,"Комiсiя за виконання платежiв в нацiональнiй валютi, згiдно з вiдкритою офертою банку N б/н вiд 09.10.2018 та тарифiв банку, без ПДВ.",UA693802690000026005056242489,current,3.00,"ПАТ КБ ""Приватбанк""",14360570,юридична особа
ЄС,"Київ, вулиця Михайла Грушевського, 1",70,2020-03-12,3CO34I9ZEY,Банківські послуги,Інші витрати,248808,Київська міська організація,39154804,Київ,"Комiсiя за виконання платежiв в нацiональнiй валютi, згiдно з вiдкритою офертою банку N б/н вiд 09.10.2018 та тарифiв банку, без ПДВ.",UA693802690000026005056242489,current,3.00,"ПАТ КБ ""Приватбанк""",14360570,юридична особа
ЄС,"Київ, вулиця Михайла Грушевського, 1",70,2020-03-12,3CO34I9ZIY,Банківські послуги,Інші витрати,248807,Київська міська організація,39154804,Київ,"Комiсiя за виконання платежiв в нацiональнiй валютi, згiдно з вiдкритою офертою банку N б/н вiд 09.10.2018 та тарифiв банку, без ПДВ.",UA693802690000026005056242489,current,3.00,"ПАТ КБ ""Приватбанк""",14360570,юридична особа
ЄС,"Київська обл., Києво-Святошинський район, Чабани",84,2020-03-12,24,"Заробітна плата, премії","Заробітна плата, лікарняні, вагітності, відрядження, компенсації",248764,Київська міська організація,39154804,Київ,ЗП за 02/2020 р.,UA693802690000026005056242489,current,20688.50,Стасів Захар Анатолійович,,фізична особа
ЄС,Київ,84,2020-03-12,24,"Заробітна плата, премії","Заробітна плата, лікарняні, вагітності, відрядження, компенсації",248763,Київська міська організація,39154804,Київ,ЗП та розрахунок Магденко 2020 р.зп за 02/2020,UA693802690000026005056242489,current,310.86,Магденко Валентина Андріївна,,фізична особа
ЄС,"Харківська область, Харків",84,2020-03-12,24,"Заробітна плата, премії","Заробітна плата, лікарняні, вагітності, відрядження, компенсації",248762,Київська міська організація,39154804,Київ,ЗП за 02/2020 р.,UA693802690000026005056242489,current,20688.50,Гусаков Олексій Валентинович,,фізична особа
ЄС,Київ,84,2020-03-12,24,"Заробітна плата, премії","Заробітна плата, лікарняні, вагітності, відрядження, компенсації",248761,Київська міська організація,39154804,Київ,ЗП за 02/2020 р.,UA693802690000026005056242489,current,21252.00,Білий Борис Володимирович,,фізична особа
ЄС,"Київ, вулиця Електриків, 29А",76,2020-03-12,127,Послуги зв’язку,Послуги зв’язку,247430,Центральний офіс,21715714,Україна,"За телеком. послуги. за 4 квартал 2019 та січень та лютий 2020 р., зг. рах-факт., Дог № 16/153-С від 01.09.16, в т. ч. ПДВ 20% 17327.68 грн.",UA393805820000026007030316815,state,103966.07,"ТОВ ""Ітер Ком""",34539587,юридична особа
ЄС,"Київ, вулиця Лаврська, 16",70,2020-03-12,392902,Банківські послуги,Інші витрати,247429,Центральний офіс,21715714,Україна,"Комісія за виконання платіжного доручення в гривнях згідно, дог. 36.15-CBА від 24.02.2015",UA393805820000026007030316815,state,2.00,"ПАТ ""МІБ""",35810511,юридична особа
ЄС,"Київ, вулиця Лаврська, 16",70,2020-03-12,387891,Банківські послуги,Інші витрати,247053,Центральний офіс,21715714,Україна,"Нарахування комісії за надання дублікату платіжного доручення згідно, дог. 36.15-CBА від 24.02.2015",UA023805820000026006020316815,current,50.00,"ПАТ ""МІБ""",35810511,юридична особа
ЄС,"Київ, вулиця Лаврська, 16",70,2020-03-12,393330,Банківські послуги,Інші витрати,247052,Центральний офіс,21715714,Україна,"Оплата комісії за виготовлення платіжних карток згідно, дог. 36.15-CBА від 24.02.2015",UA023805820000026006020316815,current,30.00,"ПАТ ""МІБ""",35810511,юридична особа
ЄС,"Хмельницька область, Хмельницький",62,2020-03-11,424,Сплата ЄСВ,Податкові платежі,249060,Хмельницька обласна організація,39545645,Хмельницька область,Сплата ЄСВ з виплати при звільненні у березні 2020р,UA093154050000026009052321812,current,1354.02,ДПІ у м. Хмельницькому,39564228,юридична особа
ЄС,"Хмельницька область, Хмельницький",61,2020-03-11,425,Військовий збір,Податкові платежі,249059,Хмельницька обласна організація,39545645,Хмельницька область,Сплата військового збору з виплати при звільненні у березні 2020р,UA093154050000026009052321812,current,92.32,УДКСУ у м. Хмельницькому,38045529,юридична особа
ЄС,"Київ, вулиця Михайла Грушевського, 1",70,2020-03-11,6AO26PJQ,Банківські послуги,Інші витрати,249058,Хмельницька обласна організація,39545645,Хмельницька область,Погашення комісії за виконання платежів в національній ваалюті,UA093154050000026009052321812,current,9.00,"ПАТ КБ ""Приватбанк""",14360570,юридична особа
ЄС,"Хмельницька область, Хмельницький",63,2020-03-11,426,Податок на доходи,Податкові платежі,249057,Хмельницька обласна організація,39545645,Хмельницька область,Сплата ПДФО з виплати при звільненні у березні 2020р,UA093154050000026009052321812,current,1107.83,УДКСУ у м. Хмельницькому,38045529,юридична особа
ЄС,"Хмельницька область, Волочиський район, Поляни",83,2020-03-11,423,"Виплати працівникам (не зарплата): лікарняні, вагітності, відрядження, компенсації ","Заробітна плата, лікарняні, вагітності, відрядження, компенсації",248989,Хмельницька обласна організація,39545645,Хмельницька область,Виплата при звільненні у березні 2020р,UA093154050000026009052321812,current,4954.47,Сергійчук Юрій Вікторович,,фізична особа
ЄС,"Київ, вулиця Гарматна, 31",60,2020-03-11,125,Інші податки,Податкові платежі,247427,Центральний офіс,21715714,Україна,"*;101;21715714;Судовий збір, за позовом Портнова А.В., на рішення від 06.02.2020 по справі 757/43705/19-ц, Київський апеляційний суд",UA393805820000026007030316815,state,2305.20,УКДСУ у Соломʼянському районі м. Києва,38050812,юридична особа
ЄС,"Київ, вулиця Лаврська, 16",70,2020-03-11,386899,Банківські послуги,Інші витрати,247425,Центральний офіс,21715714,Україна,"Комісія за виконання платіжного доручення в гривнях згідно, дог. 36.15-CBА від 24.02.2015",UA393805820000026007030316815,state,4.00,"ПАТ ""МІБ""",35810511,юридична особа
ЄС,"Київ, вулиця Лаврська, 16",70,2020-03-11,386900,Банківські послуги,Інші витрати,247217,Центральний офіс,21715714,Україна,"Комісія за виконання платіжного доручення в гривнях згідно, дог. 36.15-CBА від 24.02.2015",UA393805820000026007030316815,state,2.00,"ПАТ ""МІБ""",35810511,юридична особа
ЄС,Київ,45,2020-03-11,130,Перерахування коштів на виборчі рахунки кандидата від партії,Перерахування коштів до виборчих фондів,247104,Центральний офіс,21715714,Україна,"ПП""ЄС"";м.Київ,вул.Електриків,29-А;21715714;внесок до виборчого фонду Пташник Вікторії Юріївни, Без ПДВ",UA393805820000026007030316815,state,200000.00,Пташник Вікторія Юріївна,,фізична особа
ЄС,"Херсонська область, Херсон, вулиця Перекопська, 21",70,2020-03-10,TR.2255303.2554,Банківські послуги,Інші витрати,248955,Херсонська обласна організація,39438699,Херсонська область,Плата за розрахункове обслуговування № 26001266059.980,UA973204780000000026001266059,current,0.80,"АБ ""Укргазбанк""",23697280,юридична особа
ЄС,"Херсонська область, Херсон",79,2020-03-10,1418,"Оренда будинків і приміщень та експлуатаційні витрати (прибирання, страхування орендованих будинків, охорона, сигналізація, ремонт, вивіз сміття, тощо)",Оренда нерухомості,248908,Херсонська обласна організація,39438699,Херсонська область,за послуги оренди нежитлового приміщення за січень 2019,UA973204780000000026001266059,current,16583.00,Волков Михайло Михайлович,,фізична особа
ЄС,"Київ, вулиця Михайла Грушевського, 1",70,2020-03-10,24,Банківські послуги,Інші витрати,248806,Київська міська організація,39154804,Київ,Комиссия РКО Зар.пл розрахунок Магденко 03/2020 р.,UA693802690000026005056242489,current,12.68,"ПАТ КБ ""Приватбанк""",14360570,юридична особа
ЄС,"Київ, вулиця Турівська, 12",62,2020-03-10,31,Сплата ЄСВ,Податкові платежі,248805,Київська міська організація,39154804,Київ,*;101;39154804;Сплата ЄСВ 22% зар пл розрахунок Магденко,UA693802690000026005056242489,current,529.94,ДПІ у Подільському районі ГУ ДФС у м. Києві,39467012,юридична особа
ЄС,"Київ, вулиця Турівська, 12",62,2020-03-10,34,Сплата ЄСВ,Податкові платежі,248804,Київська міська організація,39154804,Київ,*;101;39154804;Сплата ЄСВ 22% зар пл розрахунок Магденко,UA693802690000026005056242489,current,500.00,ДПІ у Подільському районі ГУ ДФС у м. Києві,39467012,юридична особа
ЄС,"Київ, вулиця Межигірська, 25",63,2020-03-10,33,Податок на доходи,Податкові платежі,248803,Київська міська організація,39154804,Київ,"*;101;39154804;Податок на дох.фiз.осiб iз доходiв у вигляді зар.плати, з зар.плати за розрахунок Магденко.",UA693802690000026005056242489,current,1134.24,УДКСУ у Подільському районі м. Києва,37975298,юридична особа
ЄС,"Київ, вулиця Михайла Грушевського, 1",70,2020-03-10,3AO346T8NY,Банківські послуги,Інші витрати,248802,Київська міська організація,39154804,Київ,"Комiсiя за виконання платежiв в нацiональнiй валютi, згiдно з вiдкритою офертою банку N б/н вiд 09.10.2018 та тарифiв банку, без ПДВ.",UA693802690000026005056242489,current,3.00,"ПАТ КБ ""Приватбанк""",14360570,юридична особа
ЄС,"Київ, вулиця Михайла Грушевського, 1",70,2020-03-10,3AO345UKYY,Банківські послуги,Інші витрати,248801,Київська міська організація,39154804,Київ,"Комiсiя за виконання платежiв в нацiональнiй валютi, згiдно з вiдкритою офертою банку N б/н вiд 09.10.2018 та тарифiв банку, без ПДВ.",UA693802690000026005056242489,current,3.00,"ПАТ КБ ""Приватбанк""",14360570,юридична особа
ЄС,"Київ, вулиця Михайла Грушевського, 1",70,2020-03-10,3AO345UKKY,Банківські послуги,Інші витрати,248800,Київська міська організація,39154804,Київ,"Комiсiя за виконання платежiв в нацiональнiй валютi, згiдно з вiдкритою офертою банку N б/н вiд 09.10.2018 та тарифiв банку, без ПДВ.",UA693802690000026005056242489,current,3.00,"ПАТ КБ ""Приватбанк""",14360570,юридична особа
ЄС,"Київ, вулиця Михайла Грушевського, 1",70,2020-03-10,3AO345ULCY,Банківські послуги,Інші витрати,248799,Київська міська організація,39154804,Київ,"Комiсiя за виконання платежiв в нацiональнiй валютi, згiдно з вiдкритою офертою банку N б/н вiд 09.10.2018 та тарифiв банку, без ПДВ.",UA693802690000026005056242489,current,3.00,"ПАТ КБ ""Приватбанк""",14360570,юридична особа
ЄС,"Київ, вулиця Межигірська, 25",61,2020-03-10,32,Військовий збір,Податкові платежі,248798,Київська міська організація,39154804,Київ,"*;101;39154804;Вiйськовий збiр з доходiв у вигляді зар.плати, з зар.плати за Магденко розрахунок.",UA693802690000026005056242489,current,94.52,УДКСУ у Подільському районі м. Києва,37975298,юридична особа
ЄС,Київ,84,2020-03-10,23,"Заробітна плата, премії","Заробітна плата, лікарняні, вагітності, відрядження, компенсації",248760,Київська міська організація,39154804,Київ,ЗП та розрахунок Магденко 2020 р.,UA693802690000026005056242489,current,5072.59,Магденко Валентина Андріївна,,фізична особа
ЄС,"Рівненська область, Рівне, вулиця Відінська, 8",62,2020-03-10,1104,Сплата ЄСВ,Податкові платежі,248586,Рівненська обласна організація,39757256,Рівненська область,*;101;39757256;ЄСВ / Штрафна санкцiя за порушення строкiв сплати ЄСВ по рiшенню №0016575005 за сiчень;;;,UA303333910000026009054713048,current,1424.54,ДПІ у м. Рівне ГУ ДФС в Рівненській області,39550744,юридична особа
ЄС,"Київ, вулиця Михайла Грушевського, 1",70,2020-03-10,3AO347TPXY,Банківські послуги,Інші витрати,248585,Рівненська обласна організація,39757256,Рівненська область,"Комiсiя за виконання платежiв в нацiональнiй валютi, згiдно з вiдкритою офертою банку N б/н вiд 29.04.2015 та тарифiв банку, без ПДВ.",UA303333910000026009054713048,current,3.00,"ПАТ КБ ""Приватбанк""",14360570,юридична особа
ЄС,"Київ, вулиця Михайла Грушевського, 1",70,2020-03-10,3AO3441AGY,Банківські послуги,Інші витрати,248584,Рівненська обласна організація,39757256,Рівненська область,"Комiсiя за виконання платежiв в нацiональнiй валютi, згiдно з вiдкритою офертою банку N б/н вiд 29.04.2015 та тарифiв банку, без ПДВ.",UA303333910000026009054713048,current,3.00,"ПАТ КБ ""Приватбанк""",14360570,юридична особа
ЄС,"Київ, вулиця Магнітогорська, 1",76,2020-03-10,1103,Послуги зв’язку,Послуги зв’язку,248583,Рівненська обласна організація,39757256,Рівненська область,"Оплата за iнтернет згiдно договору N211535/15 вiд 02.05.2015р. тендер не передбачено. ПДВ 21,67грн.",UA303333910000026009054713048,current,369.00,"ТОВ ""Воля-кабель""",30777913,юридична особа
ЄС,Київ,70,2020-03-10,3269918511,Банківські послуги,Інші витрати,248050,Київська обласна організація,39495516,Київська область,Cплата комiсiї згiдно тарифів банку за закриття поточного рахунку,UA503805820000026000010325931,current,50.00,"Київська обласна філія АТ ""Ощадбанк""",09322277,юридична особа
ЄС,Київ,70,2020-03-10,3268314411,Банківські послуги,Інші витрати,248049,Київська обласна організація,39495516,Київська область,"Cплата комiсiї згiдно тарифів банку за надання довідки про рух грошових коштів за період з 01,01,2020р.",UA503805820000026000010325931,current,50.00,"Київська обласна філія АТ ""Ощадбанк""",09322277,юридична особа
ЄС,"Київ, проспект Героїв Сталінграда",82,2020-03-10,122,"Гонорари, в тому числі за надані консультаційні послуги","Гонорари, в тому числі за надані консультаційні послуги",247424,Центральний офіс,21715714,Україна,"За послуги надані в жовтні-грудень 2019 року відповідно до умов договору №18/12-1 від 18.12.2018р., Без ПДВ",UA393805820000026007030316815,state,630000.00,"ПП ""ЕЛІТКОНСАЛТИНГ""",40037502,юридична особа
ЄС,"Київ, вулиця Лаврська, 16",70,2020-03-10,380958,Банківські послуги,Інші витрати,247423,Центральний офіс,21715714,Україна,"Комісія за виконання платіжного доручення в гривнях згідно, дог. 36.15-CBА від 24.02.2015",UA393805820000026007030316815,state,6.00,"ПАТ ""МІБ""",35810511,юридична особа
ЄС,"Київ, вулиця Шота Руставелі, 22",80,2020-03-10,129,"Транспортні послуги (квитки, пасажирські перевезення і т.д.)","Транспортні послуги (квитки, пасажирські перевезення і т.д.)",247216,Центральний офіс,21715714,Україна,"За авіаквитки по за межами України для виконання стат. завд. ПартіЇ, зг. рах. №59 від 06/03/2020 р.,Дог.№031016 від 03.10.2016 р.,в т. ч. ПДВ 20%-150,00грн",UA393805820000026007030316815,state,48980.00,"ТОВ ""Трансавіа Тур""",30178193,юридична особа
ЄС,"Київ, вулиця Лаврська, 16",70,2020-03-10,380959,Банківські послуги,Інші витрати,247215,Центральний офіс,21715714,Україна,"Комісія за виконання платіжного доручення в гривнях згідно, дог. 36.15-CBА від 24.02.2015",UA393805820000026007030316815,state,2.00,"ПАТ ""МІБ""",35810511,юридична особа
ЄС,"Київ, вулиця Єреванська, 1",70,2020-03-06,TR.13439823.679,Банківські послуги,Інші витрати,247969,Івано-Франківська обласна організація,39655372,Івано-Франківська область,"Плата за розрахункове обслуговування по рахунку № 26003924420903.980 з 06/03/2020 по 06/03/2020 згідно Договору № 2019/КД/047-0124 від 22/10/2019 р, без ПДВ",UA133204780000026003924420903,current,0.80,"АБ ""Укргазбанк""",23697280,юридична особа
ЄС,"Київ, вулиця Єреванська, 1",70,2020-03-06,1505,Банківські послуги,Інші витрати,247968,Івано-Франківська обласна організація,39655372,Івано-Франківська область,"Перераховано комісію за зарахування коштів на карткові рахунки зг. тарифів, зг. дог №2016/ZP/047-018 від 05.12.2016, без ПДВ.",UA133204780000026003924420903,current,16.51,"АБ ""Укргазбанк""",23697280,юридична особа
ЄС,"Івано-Франківська область, Івано-Франківськ, вулиця Незалежності, 46",62,2020-03-06,1508,Сплата ЄСВ,Податкові платежі,247967,Івано-Франківська обласна організація,39655372,Івано-Франківська область,*;201;39655372;71010000 ЄСВ на суми розрахункових за 03м.2020р. ;;;,UA133204780000026003924420903,current,902.34,ДПІ в м.Івано-Франківськ,43142559,юридична особа
ЄС,"Київ, вулиця Єреванська, 1",70,2020-03-06,TR.13439823.403,Банківські послуги,Інші витрати,247966,Івано-Франківська обласна організація,39655372,Івано-Франківська область,"Плата за розрахункове обслуговування по рахунку № 26003924420903.980 з 06/03/2020 по 06/03/2020 згідно Договору № 2019/КД/047-0124 від 22/10/2019 р, без ПДВ",UA133204780000026003924420903,current,0.80,"АБ ""Укргазбанк""",23697280,юридична особа
ЄС,"Київ, вулиця Єреванська, 1",70,2020-03-06,TR.13439823.125,Банківські послуги,Інші витрати,247965,Івано-Франківська обласна організація,39655372,Івано-Франківська область,"Плата за розрахункове обслуговування по рахунку № 26003924420903.980 з 06/03/2020 по 06/03/2020 згідно Договору № 2019/КД/047-0124 від 22/10/2019 р, без ПДВ",UA133204780000026003924420903,current,0.80,"АБ ""Укргазбанк""",23697280,юридична особа
ЄС,"Івано-Франківська область, Івано-Франківськ, вулиця Незалежності, 46",63,2020-03-06,1507,Податок на доходи,Податкові платежі,247964,Івано-Франківська обласна організація,39655372,Івано-Франківська область,*;101;39655372;11010100 Податок на доходи фіз.осіб із розрахункових за 03м. 2020 р.;;;,UA133204780000026003924420903,current,738.28,УДКСУ у м. Івано-Франківську,37952250,юридична особа
ЄС,"Івано-Франківська область, Івано-Франківськ, вулиця Незалежності, 46",61,2020-03-06,1506,Військовий збір,Податкові платежі,247963,Івано-Франківська обласна організація,39655372,Івано-Франківська область,*;101;39655372;11011000 Військовий збір із розрахункових за 03м. 2020р. ;;;,UA133204780000026003924420903,current,61.52,УДКСУ у м. Івано-Франківську,37952250,юридична особа
ЄС,"Івано-Франківська область, Угорники",84,2020-03-06,1504,"Заробітна плата, премії","Заробітна плата, лікарняні, вагітності, відрядження, компенсації",247871,Івано-Франківська обласна організація,39655372,Івано-Франківська область,"Перерахов.кошти для зарахування розрахункові 06.03.2020 - 06.03.2020 на карткові рахунки співробітників ІФТОПП 'ЄВРОПЕЙСЬКА СОЛІДАРНІСТЬ' зг.Дог.№2016/ZP/047-018 від 05.12.2016, без ПДВ.",UA133204780000026003924420903,current,3301.75,Петечел Олексій Юрійович,,фізична особа
ЄС,"Закарпатська область, Ужгород, вулиця Юрія Герца, 10",70,2020-03-06,TR.449554.,Банківські послуги,Інші витрати,247845,Закарпатська обласна організація,39950317,Закарпатська область,Комісія за розрахунково-касове обслуговування,UA743122480000026008015001021,current,3.00,"ПАТ ""Комінвестбанк""",19355562,юридична особа
ЄС,"Запорізька область, Запоріжжя, вулиця Розваги, 27, 62",79,2020-03-05,86,"Оренда будинків і приміщень та експлуатаційні витрати (прибирання, страхування орендованих будинків, охорона, сигналізація, ремонт, вивіз сміття, тощо)",Оренда нерухомості,249293,Запорізька обласна організація,39434317,Запорізька область,орендна плата січень 2020р.,UA523223130000026008000005026,current,12500.00,Сізов Р Ю,,фізична особа
ЄС,"Запорізька область, Запоріжжя, вулиця Розваги, 27, 62",79,2020-03-05,85,"Оренда будинків і приміщень та експлуатаційні витрати (прибирання, страхування орендованих будинків, охорона, сигналізація, ремонт, вивіз сміття, тощо)",Оренда нерухомості,249292,Запорізька обласна організація,39434317,Запорізька область,орендна плата січень 2020р.,UA523223130000026008000005026,current,12500.00,Сізов Р Ю,,фізична особа
ЄС,"Запорізька область, Запоріжжя",63,2020-03-05,83,Податок на доходи,Податкові платежі,249291,Запорізька обласна організація,39434317,Запорізька область,Заробітна плата (ПДФО) лютий 2020р.,UA523223130000026008000005026,current,11885.94,УДКСУ в Олександрівському районі м. Запоріжжя,38025440,юридична особа
ЄС,"Запорізька область, Запоріжжя",61,2020-03-05,82,Військовий збір,Податкові платежі,249290,Запорізька обласна організація,39434317,Запорізька область,Заробітна плата (ВЗ) лютий 2020р.,UA523223130000026008000005026,current,990.50,УДКСУ в Олександрівському районі м. Запоріжжя,38025440,юридична особа
ЄС,"Запорізька область, Запоріжжя, проспект Соборний, 166",62,2020-03-05,84,Сплата ЄСВ,Податкові платежі,249289,Запорізька обласна організація,39434317,Запорізька область,податки (ЄСВ) лютий 2020р.,UA523223130000026008000005026,current,14527.26,ГУ ДПС у Запорізькій області,43143945,юридична особа
ЄС,"Київ, вул. Антоновича, 127",70,2020-03-05,316380,Банківські послуги,Інші витрати,249288,Запорізька обласна організація,39434317,Запорізька область,ком.винагорода за розрах.обсуг пот.рахунку,UA523223130000026008000005026,current,531.57,"АТ ""Укрексімбанк""",00032112,юридична особа
ЄС,"Запорізька область, Запоріжжя",84,2020-03-05,2,"Заробітна плата, премії","Заробітна плата, лікарняні, вагітності, відрядження, компенсації",249262,Запорізька обласна організація,39434317,Запорізька область,заробітна плата лютий 2020р.,UA523223130000026008000005026,current,15912.05,Чернов Олег Валерійович,,фізична особа
ЄС,"Запорізька область, Запоріжжя",84,2020-03-05,2,"Заробітна плата, премії","Заробітна плата, лікарняні, вагітності, відрядження, компенсації",249261,Запорізька обласна організація,39434317,Запорізька область,заробітна плата лютий 2020р.,UA523223130000026008000005026,current,14490.00,Траілін Дмитро Вячеславович,,фізична особа
ЄС,"Запорізька область, Запоріжжя",84,2020-03-05,2,"Заробітна плата, премії","Заробітна плата, лікарняні, вагітності, відрядження, компенсації",249260,Запорізька обласна організація,39434317,Запорізька область,заробітна плата лютий 2020р.,UA523223130000026008000005026,current,5957.00,Дюміна Наталя Валеріївна,,фізична особа
ЄС,"Запорізька область, Новомиколаївський район, Новомиколаївка",84,2020-03-05,2,"Заробітна плата, премії","Заробітна плата, лікарняні, вагітності, відрядження, компенсації",249259,Запорізька обласна організація,39434317,Запорізька область,заробітна плата лютий 2020р.,UA523223130000026008000005026,current,5957.00,Лишенко Сергій Сергійович,,фізична особа
ЄС,"Луганська область, Хрустальний",84,2020-03-05,2,"Заробітна плата, премії","Заробітна плата, лікарняні, вагітності, відрядження, компенсації",249258,Запорізька обласна організація,39434317,Запорізька область,заробітна плата лютий 2020р.,UA523223130000026008000005026,current,10840.55,Сисоєва Аліса Вячеславівна,,фізична особа
ЄС,"Черкаська область, Черкаси, бульвар Шевченка, 266, 313",79,2020-03-05,756,"Оренда будинків і приміщень та експлуатаційні витрати (прибирання, страхування орендованих будинків, охорона, сигналізація, ремонт, вивіз сміття, тощо)",Оренда нерухомості,249122,Черкаська обласна організація,39602603,Черкаська область,За оренду примiщення та опалення за сiчень 2020 р. згiдно дог.№02.19 вiд 02.10.19р.,UA423543470000026000051523322,current,11888.71,"ТОВ ""Олєкс-груп""",38429809,юридична особа
ЄС,"Київ, вулиця Михайла Грушевського, 1",70,2020-03-05,TZ005B6PBL,Банківські послуги,Інші витрати,248582,Рівненська обласна організація,39757256,Рівненська область,Оплата комісії за касове обслуговування по РІВНЕНСЬКА ТОП БПП СОЛІДАРНІСТЬ,UA303333910000026009054713048,current,21.39,"ПАТ КБ ""Приватбанк""",14360570,юридична особа
ЄС,"Кіровоградська область, Кропивницький, вулиця Велика Перспективна, 8",70,2020-03-05,7IO2BFMBMY_18,Банківські послуги,Інші витрати,248154,Кіровоградська обласна організація,39697790,Кіровоградська область,Комiсiя за виконання платежiв в нацiональнiй валютi,UA603235830000026002052912613,current,3.00,"ПАТ ""НАСК ""Оранта""",14360577,юридична особа
ЄС,"Кіровоградська область, Кропивницький, вулиця Велика Перспективна, 8",70,2020-03-05,7IO2BFMBMY_17,Банківські послуги,Інші витрати,248153,Кіровоградська обласна організація,39697790,Кіровоградська область,Комiсiя за виконання платежiв в нацiональнiй валютi,UA603235830000026002052912613,current,3.00,"ПАТ ""НАСК ""Оранта""",14360577,юридична особа
ЄС,"Кіровоградська область, Кропивницький, вулиця Велика Перспективна, 8",70,2020-03-05,7IO2BFMBMY_16,Банківські послуги,Інші витрати,248152,Кіровоградська обласна організація,39697790,Кіровоградська область,Комiсiя за виконання платежiв в нацiональнiй валютi,UA603235830000026002052912613,current,3.00,"ПАТ ""НАСК ""Оранта""",14360577,юридична особа
ЄС,"Кіровоградська область, Кропивницький, вулиця Велика Перспективна, 8",70,2020-03-05,7IO2BFMBMY_15,Банківські послуги,Інші витрати,248151,Кіровоградська обласна організація,39697790,Кіровоградська область,Комiсiя за виконання платежiв в нацiональнiй валютi,UA603235830000026002052912613,current,3.00,"ПАТ ""НАСК ""Оранта""",14360577,юридична особа
ЄС,"Кіровоградська область, Кропивницький, вулиця Велика Перспективна, 8",70,2020-03-05,7IO2BFMBMY_14,Банківські послуги,Інші витрати,248150,Кіровоградська обласна організація,39697790,Кіровоградська область,Комiсiя за виконання платежiв в нацiональнiй валютi,UA603235830000026002052912613,current,3.00,"ПАТ ""НАСК ""Оранта""",14360577,юридична особа
ЄС,"Кіровоградська область, Компаніївський район, Компаніївка",79,2020-03-05,383,"Оренда будинків і приміщень та експлуатаційні витрати (прибирання, страхування орендованих будинків, охорона, сигналізація, ремонт, вивіз сміття, тощо)",Оренда нерухомості,248149,Кіровоградська обласна організація,39697790,Кіровоградська область,Оплата за оренду примiщення за вересень 2019 року,UA603235830000026002052912613,current,1000.00,Нога А О,,фізична особа
ЄС,"Кіровоградська область, Голованівський район, Голованівськ, вулиця Колгоспна, 5",79,2020-03-05,382,"Оренда будинків і приміщень та експлуатаційні витрати (прибирання, страхування орендованих будинків, охорона, сигналізація, ремонт, вивіз сміття, тощо)",Оренда нерухомості,248148,Кіровоградська обласна організація,39697790,Кіровоградська область,Оплата за оренду примiщення за вересень 2019 року,UA603235830000026002052912613,current,1000.00,Голімбієвська Тамара Павлівна,2304613244,фізична особа
ЄС,"Кіровоградська область, Новомиргородський район, Новомиргород, вулиця Соборності, 101",79,2020-03-05,381,"Оренда будинків і приміщень та експлуатаційні витрати (прибирання, страхування орендованих будинків, охорона, сигналізація, ремонт, вивіз сміття, тощо)",Оренда нерухомості,248147,Кіровоградська обласна організація,39697790,Кіровоградська область,Компенсація використаної електроенергії за вересень 2019 року,UA603235830000026002052912613,current,159.00,"ПрАТ ""Райпобутком-бінат""",20644283,юридична особа
ЄС,"Кіровоградська область, Новомиргородський район, Новомиргород, вулиця Соборності, 101",79,2020-03-05,380,"Оренда будинків і приміщень та експлуатаційні витрати (прибирання, страхування орендованих будинків, охорона, сигналізація, ремонт, вивіз сміття, тощо)",Оренда нерухомості,248146,Кіровоградська обласна організація,39697790,Кіровоградська область,Оплата за оренду нежитлового примiщення за вересень 2019 року,UA603235830000026002052912613,current,1500.00,"ПрАТ ""Райпобутком-бінат""",20644283,юридична особа
ЄС,"Кіровоградська область, Кропивницький, вулиця Велика Перспективна, 8",70,2020-03-05,7IO2BFMBMY_13,Банківські послуги,Інші витрати,248145,Кіровоградська обласна організація,39697790,Кіровоградська область,Комiсiя за виконання платежiв в нацiональнiй валютi,UA603235830000026002052912613,current,3.00,"ПАТ ""НАСК ""Оранта""",14360577,юридична особа
ЄС,"Кіровоградська область, Кропивницький, вулиця Велика Перспективна, 8",70,2020-03-05,7IO2BFMBMY_12,Банківські послуги,Інші витрати,248144,Кіровоградська обласна організація,39697790,Кіровоградська область,Комiсiя за виконання платежiв в нацiональнiй валютi,UA603235830000026002052912613,current,3.00,"ПАТ ""НАСК ""Оранта""",14360577,юридична особа
ЄС,"Кіровоградська область, Кропивницький, вулиця Велика Перспективна, 8",70,2020-03-05,7IO2BFMBMY,Банківські послуги,Інші витрати,248143,Кіровоградська обласна організація,39697790,Кіровоградська область,Комiсiя за виконання платежiв в нацiональнiй валютi,UA603235830000026002052912613,current,3.00,"ПАТ ""НАСК ""Оранта""",14360577,юридична особа
ЄС,"Кіровоградська область, Гайворонський район, Гайворон, вулиця Незалежності, 3",79,2020-03-05,384,"Оренда будинків і приміщень та експлуатаційні витрати (прибирання, страхування орендованих будинків, охорона, сигналізація, ремонт, вивіз сміття, тощо)",Оренда нерухомості,248142,Кіровоградська обласна організація,39697790,Кіровоградська область,Оплата за оренду примiщення за вересень 2019 року,UA603235830000026002052912613,current,2500.00,Луценко Д І,,фізична особа
ЄС,"Кіровоградська область, Новоукраїнський район, Новоукраїнка, вулиця Паші Ангеліної, 14",61,2020-03-05,386,Військовий збір,Податкові платежі,248141,Кіровоградська обласна організація,39697790,Кіровоградська область,Вiйськовий збiр з орендної плати Дейкун В.В. за 2019 року,UA603235830000026002052912613,current,33.00,УДКСУ у м. Кропивницькому,38037409,юридична особа
ЄС,"Кіровоградська область, Новоукраїнський район, Новоукраїнка, вулиця Паші Ангеліної, 14",63,2020-03-05,387,Податок на доходи,Податкові платежі,248140,Кіровоградська обласна організація,39697790,Кіровоградська область,ПДФО iз орендної плати Дейкун В.В. за 2019 року,UA603235830000026002052912613,current,396.00,УДКСУ у м. Кропивницькому,38037409,юридична особа
ЄС,"Кіровоградська область, Новоукраїнський район, Новоукраїнка",79,2020-03-05,385,"Оренда будинків і приміщень та експлуатаційні витрати (прибирання, страхування орендованих будинків, охорона, сигналізація, ремонт, вивіз сміття, тощо)",Оренда нерухомості,248066,Кіровоградська обласна організація,39697790,Кіровоградська область,Оплата за оренду примiщення за вересень 2019 року,UA603235830000026002052912613,current,1771.00,Дейкун Валентина Вікторівна,,фізична особа
ЄС,Київ,70,2020-03-05,406912311,Банківські послуги,Інші витрати,248048,Київська обласна організація,39495516,Київська область,Списання щомісячної плати за виконання операцій за допомогою системи дистанційного обслуговування за березень 2020 р.,UA503805820000026000010325931,current,9.52,"Київська обласна філія АТ ""Ощадбанк""",09322277,юридична особа
ЄС,"Закарпатська область, Ужгород, провулок Залізничний, 16",79,2020-03-05,20,"Оренда будинків і приміщень та експлуатаційні витрати (прибирання, страхування орендованих будинків, охорона, сигналізація, ремонт, вивіз сміття, тощо)",Оренда нерухомості,247844,Закарпатська обласна організація,39950317,Закарпатська область,"Оплата за оренду приміщення для використання під офіс в січні 2020р. зг. рахунку-фактур №Р-00000003 від 08.01.20р. по договору №01/20 від 01.01.2020р., без ПДВ.",UA743122480000026008015001021,current,16000.00,Дилин Дмитро Федорович,,фізична особа
ЄС,"Донецька область, Краматорськ, бульвар Машинобудівників, 22",62,2020-03-05,17,Сплата ЄСВ,Податкові платежі,247752,Донецька обласна організація,39645186,Донецька область,*;101;39645186;;;ЄСВ 22% з ФОП за лютий 2020 р.,UA493226690000026040300913474,current,9773.50,ГУ ДКСУ У ДОНЕЦЬКІЙ ОБЛАСТІ,,юридична особа
ЄС,"Донецька область, Краматорськ, бульвар Машинобудівників, 22",61,2020-03-05,19,Військовий збір,Податкові платежі,247751,Донецька обласна організація,39645186,Донецька область,*;101;39645186;;;Військовий збір з заробітної плати за лютий 2020 р.,UA493226690000026040300913474,current,666.38,УДКСУ у м. Краматорську Донецької області,37944338,юридична особа
ЄС,"Київ, вулиця Антоновича, 105",70,2020-03-05,16,Банківські послуги,Інші витрати,247750,Донецька обласна організація,39645186,Донецька область,розрахунково-касове обслуговування з перерахованої зп за лютий 2020р.,UA493226690000026040300913474,current,267.25,"Київська обласна філія АТ ""Ощадбанк""",09322277,юридична особа
ЄС,"Донецька область, Краматорськ, бульвар Машинобудівників, 22",63,2020-03-05,18,Податок на доходи,Податкові платежі,247749,Донецька обласна організація,39645186,Донецька область,"*;101;39645186;ПДФО з суми оплати праці за лютий 2020 року 18% (7807,32 грн).;;;",UA493226690000026040300913474,current,7807.32,УДКСУ у м. Краматорську Донецької області,37944338,юридична особа
ЄС,"Донецька область, Краматорськ",84,2020-03-05,20,"Заробітна плата, премії","Заробітна плата, лікарняні, вагітності, відрядження, компенсації",247739,Донецька обласна організація,39645186,Донецька область,Зарахування ЗП. Відомість на виплату заробітної плати за лютий 2020 р,UA493226690000026040300913474,current,2543.80,Нікітенко Лариса Вікторівна,,фізична особа
ЄС,"Донецька область, Краматорськ",84,2020-03-05,16,"Заробітна плата, премії","Заробітна плата, лікарняні, вагітності, відрядження, компенсації",247738,Донецька обласна організація,39645186,Донецька область,Зарахування ЗП. Відомість на виплату заробітної плати залютий 2020 р,UA493226690000026040300913474,current,6842.50,Лучко Любов Олексіївна,,фізична особа
ЄС,"Донецька область, Краматорськ",84,2020-03-05,16,"Заробітна плата, премії","Заробітна плата, лікарняні, вагітності, відрядження, компенсації",247737,Донецька обласна організація,39645186,Донецька область,Зарахування ЗП. Відомість на виплату заробітної плати за лютий 2020 р,UA493226690000026040300913474,current,7245.00,Зирянова Марія Валеріївна,,фізична особа
ЄС,"Донецька область, Краматорськ",84,2020-03-05,16,"Заробітна плата, премії","Заробітна плата, лікарняні, вагітності, відрядження, компенсації",247736,Донецька обласна організація,39645186,Донецька область,Зарахування ЗП. Відомість на виплату заробітної плати за лютий 2020 р,UA493226690000026040300913474,current,8855.00,Востоков Олексій Вікторович,,фізична особа
ЄС,"Донецька область, Краматорськ",84,2020-03-05,16,"Заробітна плата, премії","Заробітна плата, лікарняні, вагітності, відрядження, компенсації",247735,Донецька обласна організація,39645186,Донецька область,Зарахування ЗП. Відомість на виплату заробітної плати за лютий 2020 р,UA493226690000026040300913474,current,10465.00,Власенко Валерій Сергійович,,фізична особа
ЄС,"Київ, вулиця Лаврська, 16",70,2020-03-05,369912,Банківські послуги,Інші витрати,247419,Центральний офіс,21715714,Україна,"Комісія за виконання платіжного доручення в гривнях згідно, дог. 36.15-CBА від 24.02.2015",UA393805820000026007030316815,state,2.00,"ПАТ ""МІБ""",35810511,юридична особа
ЄС,"Хмельницька область, Хмельницький, вулиця Народної Волі, 1, 82",79,2020-03-04,421,"Оренда будинків і приміщень та експлуатаційні витрати (прибирання, страхування орендованих будинків, охорона, сигналізація, ремонт, вивіз сміття, тощо)",Оренда нерухомості,249056,Хмельницька обласна організація,39545645,Хмельницька область,За оренду приміщення за січень 2020р,UA093154050000026009052321812,current,14153.25,"ТОВ ""Олімп-інвестгруп""",39771752,юридична особа
ЄС,"Хмельницька область, Хмельницький, вулиця Пересипкіна, 5",79,2020-03-04,422,"Оренда будинків і приміщень та експлуатаційні витрати (прибирання, страхування орендованих будинків, охорона, сигналізація, ремонт, вивіз сміття, тощо)",Оренда нерухомості,249055,Хмельницька обласна організація,39545645,Хмельницька область,За опалення за січень 2020р,UA093154050000026009052321812,current,6121.10,"МКП""Хмельницьк- теплокомуненерго""",03356571,юридична особа
ЄС,"Київ, вулиця Михайла Грушевського, 1",70,2020-03-04,TZ004B582P,Банківські послуги,Інші витрати,249054,Хмельницька обласна організація,39545645,Хмельницька область,Погашення комісії за касове обслуговування,UA093154050000026009052321812,current,80.31,"ПАТ КБ ""Приватбанк""",14360570,юридична особа
ЄС,"Київ, вулиця Михайла Грушевського, 1",70,2020-03-04,34О3317,Банківські послуги,Інші витрати,249053,Хмельницька обласна організація,39545645,Хмельницька область,Погашення комісії за виконання платежів в національній ваалюті,UA093154050000026009052321812,current,6.00,"ПАТ КБ ""Приватбанк""",14360570,юридична особа
ЄС,"Херсонська область, Херсон, вулиця Старообрядницька, 21",61,2020-03-04,1417,Військовий збір,Податкові платежі,248954,Херсонська обласна організація,39438699,Херсонська область,Військовий збір на доходи фіз.осіб утриманий з послуг оренди нежитлового приміщення,UA973204780000000026001266059,current,309.00,УДКСУ у м. Херсон,37959779,юридична особа
ЄС,"Херсонська область, Херсон, вулиця Перекопська, 21",70,2020-03-04,TR.2255303.6500,Банківські послуги,Інші витрати,248953,Херсонська обласна організація,39438699,Херсонська область,Плата за розрахункове обслуговування № 26001266059.980,UA973204780000000026001266059,current,0.80,"АБ ""Укргазбанк""",23697280,юридична особа
ЄС,"Херсонська область, Херсон, провулок Козацький, 10",63,2020-03-04,1416,Податок на доходи,Податкові платежі,248952,Херсонська обласна організація,39438699,Херсонська область,ПДФО утриманий з доходів на послуги оренди нежитлового приміщення за січень 2020р.,UA973204780000000026001266059,current,3708.00,УДКСУ у м. Херсон,37959779,юридична особа
ЄС,"Херсонська область, Херсон, вулиця Перекопська, 21",70,2020-03-04,TR.2255303.7360,Банківські послуги,Інші витрати,248951,Херсонська обласна організація,39438699,Херсонська область,Плата за розрахункове обслуговування № 26001266059.980,UA973204780000000026001266059,current,0.80,"АБ ""Укргазбанк""",23697280,юридична особа
ЄС,"Херсонська область, Херсон, вулиця Перекопська, 21",70,2020-03-04,TR.2255303.4537,Банківські послуги,Інші витрати,248950,Херсонська обласна організація,39438699,Херсонська область,Плата за розрахункове обслуговування № 26001266059.980,UA973204780000000026001266059,current,0.80,"АБ ""Укргазбанк""",23697280,юридична особа
ЄС,"Херсонська область, Херсон",79,2020-03-04,1415_1,"Оренда будинків і приміщень та експлуатаційні витрати (прибирання, страхування орендованих будинків, охорона, сигналізація, ремонт, вивіз сміття, тощо)",Оренда нерухомості,248907,Херсонська обласна організація,39438699,Херсонська область,за послуги оренди нежитлового приміщення за січень 2019,UA973204780000000026001266059,current,16583.00,Волков Михайло Михайлович,,фізична особа
ЄС,"Херсонська область, Херсон",79,2020-03-04,1415,"Оренда будинків і приміщень та експлуатаційні витрати (прибирання, страхування орендованих будинків, охорона, сигналізація, ремонт, вивіз сміття, тощо)",Оренда нерухомості,248906,Херсонська обласна організація,39438699,Херсонська область,за послуги оренди нежитлового приміщення за січень 2019,UA973204780000000026001266059,current,16583.00,Волков Михайло Михайлович,,фізична особа
ЄС,"Харківська область, Харків, вулиця Героїв Праці, 10",79,2020-03-04,1174,"Оренда будинків і приміщень та експлуатаційні витрати (прибирання, страхування орендованих будинків, охорона, сигналізація, ремонт, вивіз сміття, тощо)",Оренда нерухомості,248877,Харківська обласна організація,39740347,Харківська область,Оренда та експлуатаційні послуги,UA563516290000000002600912063,current,36000.00,Сокиренко Світлана Леонідівна,2562719465,фізична особа
ЄС,"Харківська область, Харків, вулиця Алчевських, 30",70,2020-03-04,RCO1945_397,Банківські послуги,Інші витрати,248876,Харківська обласна організація,39740347,Харківська область,Розрахунково-касове обслуговування,UA563516290000000002600912063,current,89.90,"ПАТ ""Мегабанк""",09804119,юридична особа
ЄС,"Київ, вулиця Лаврська, 15",79,2020-03-04,29,"Оренда будинків і приміщень та експлуатаційні витрати (прибирання, страхування орендованих будинків, охорона, сигналізація, ремонт, вивіз сміття, тощо)",Оренда нерухомості,248797,Київська міська організація,39154804,Київ,"Компенсація комунальних витрат жовтень, листопад, грудень 2019 , січень 2020 року., зг. дог№ К-204 від 15.10.2020 р.",UA693802690000026005056242489,current,76788.10,"ТОВ ""Підприємство ""Київ""",00308146,юридична особа
ЄС,"Київ, вулиця Лаврська, 15",79,2020-03-04,30,"Оренда будинків і приміщень та експлуатаційні витрати (прибирання, страхування орендованих будинків, охорона, сигналізація, ремонт, вивіз сміття, тощо)",Оренда нерухомості,248796,Київська міська організація,39154804,Київ,"Компенсація комунальних витрат жовтень, листопад, грудень 2019 , січень 2020 року., зг. дог№ К-205 від 15.10.2020 р.",UA693802690000026005056242489,current,48203.28,"ТОВ ""Підприємство ""Київ""",00308146,юридична особа
ЄС,"Київ, вулиця Михайла Грушевського, 1",70,2020-03-04,34O33IP95Y,Банківські послуги,Інші витрати,248795,Київська міська організація,39154804,Київ,"Комiсiя за виконання платежiв в нацiональнiй валютi, згiдно з вiдкритою офертою банку N б/н вiд 09.10.2018 та тарифiв банку, без ПДВ.",UA693802690000026005056242489,current,3.00,"ПАТ КБ ""Приватбанк""",14360570,юридична особа
ЄС,"Київ, вулиця Михайла Грушевського, 1",70,2020-03-04,34O33IP92Y,Банківські послуги,Інші витрати,248794,Київська міська організація,39154804,Київ,"Комiсiя за виконання платежiв в нацiональнiй валютi, згiдно з вiдкритою офертою банку N б/н вiд 09.10.2018 та тарифiв банку, без ПДВ.",UA693802690000026005056242489,current,3.00,"ПАТ КБ ""Приватбанк""",14360570,юридична особа
ЄС,"Київ, вулиця Михайла Грушевського, 1",70,2020-03-04,34O33H1IIY,Банківські послуги,Інші витрати,248793,Київська міська організація,39154804,Київ,"Комiсiя за виконання платежiв в нацiональнiй валютi, згiдно з вiдкритою офертою банку N б/н вiд 09.10.2018 та тарифiв банку, без ПДВ.",UA693802690000026005056242489,current,3.00,"ПАТ КБ ""Приватбанк""",14360570,юридична особа
ЄС,"Київ, вулиця Лейпцизька, 1А",79,2020-03-04,28,"Оренда будинків і приміщень та експлуатаційні витрати (прибирання, страхування орендованих будинків, охорона, сигналізація, ремонт, вивіз сміття, тощо)",Оренда нерухомості,248792,Київська міська організація,39154804,Київ,"Оплата за послуги водопостачання за серпень і вересень 2019 року., зг. дог№ 12123/1-5-10СА від 11.06.2020 р.",UA693802690000026005056242489,current,348.10,"ПрАТ ""Акціонерна компанія ""Київводоканал""",03327629,юридична особа
ЄС,"Тернопільська область, Тернопіль, вулиця Листопадова, 1, 3",79,2020-03-04,321,"Оренда будинків і приміщень та експлуатаційні витрати (прибирання, страхування орендованих будинків, охорона, сигналізація, ремонт, вивіз сміття, тощо)",Оренда нерухомості,248746,Тернопільська обласна організація,39614425,Тернопільська область,оренда примiщення за сiчень 2020р.,UA273387830000026009055114295,current,16747.74,"ПП ""Креатор-Буд""",34227060,юридична особа
ЄС,"Київ, вулиця Михайла Грушевського, 1",70,2020-03-04,34O33J6FYY,Банківські послуги,Інші витрати,248745,Тернопільська обласна організація,39614425,Тернопільська область,Комiсiя банку,UA273387830000026009055114295,current,3.00,"ПАТ КБ ""Приватбанк""",14360570,юридична особа
ЄС,"Київ, вулиця Михайла Грушевського, 1",70,2020-03-04,34O33J6F2Y,Банківські послуги,Інші витрати,248661,Сумська обласна організація,39587135,Сумська область,комісія банку,UA853375460000026009055016910,current,3.00,"ПАТ КБ ""Приватбанк""",14360570,юридична особа
ЄС,"Київ, вулиця Михайла Грушевського, 1",70,2020-03-04,34O33J6ERY,Банківські послуги,Інші витрати,248660,Сумська обласна організація,39587135,Сумська область,комісія банку,UA853375460000026009055016910,current,3.00,"ПАТ КБ ""Приватбанк""",14360570,юридична особа
ЄС,"Сумська область, Суми, вулиця Горького, 6, 50",79,2020-03-04,522,"Оренда будинків і приміщень та експлуатаційні витрати (прибирання, страхування орендованих будинків, охорона, сигналізація, ремонт, вивіз сміття, тощо)",Оренда нерухомості,248659,Сумська обласна організація,39587135,Сумська область,комунальні послуги,UA853375460000026009055016910,current,6028.70,Раєва Наталія Петрівна,,фізична особа
ЄС,"Сумська область, Суми, вулиця Горького, 6, 50",79,2020-03-04,523,"Оренда будинків і приміщень та експлуатаційні витрати (прибирання, страхування орендованих будинків, охорона, сигналізація, ремонт, вивіз сміття, тощо)",Оренда нерухомості,248658,Сумська обласна організація,39587135,Сумська область,оренда нежитлового приміщення,UA853375460000026009055016910,current,11799.00,Раєва Наталія Петрівна,,фізична особа
ЄС,"Рівненська область, Рівне, вулиця Симона Петлюри, 13",63,2020-03-04,1100,Податок на доходи,Податкові платежі,248581,Рівненська обласна організація,39757256,Рівненська область,*;101;39757256; ПДФО iз ЗП та розрахунковi за березень 2020р;;;,UA303333910000026009054713048,current,1912.78,ГУ ДКСУ у Рівненській області,38012714,юридична особа
ЄС,"Київ, вулиця Михайла Грушевського, 1",70,2020-03-04,34O33KLQFY,Банківські послуги,Інші витрати,248580,Рівненська обласна організація,39757256,Рівненська область,"Комiсiя за виконання платежiв в нацiональнiй валютi, згiдно з вiдкритою офертою банку N б/н вiд 29.04.2015 та тарифiв банку, без ПДВ.",UA303333910000026009054713048,current,3.00,"ПАТ КБ ""Приватбанк""",14360570,юридична особа
ЄС,"Київ, вулиця Михайла Грушевського, 1",70,2020-03-04,34O33KLQAY,Банківські послуги,Інші витрати,248579,Рівненська обласна організація,39757256,Рівненська область,"Комiсiя за виконання платежiв в нацiональнiй валютi, згiдно з вiдкритою офертою банку N б/н вiд 29.04.2015 та тарифiв банку, без ПДВ.",UA303333910000026009054713048,current,3.00,"ПАТ КБ ""Приватбанк""",14360570,юридична особа
ЄС,"Рівненська область, Рівне, вулиця Відінська, 8",62,2020-03-04,1099,Сплата ЄСВ,Податкові платежі,248578,Рівненська обласна організація,39757256,Рівненська область,*;101;39757256; ЄСВ iз ЗП та розрахунковi за березень 2020р;;;,UA303333910000026009054713048,current,2337.84,ДПІ у м. Рівне ГУ ДФС в Рівненській області,39550744,юридична особа
ЄС,"Київ, вулиця Михайла Грушевського, 1",70,2020-03-04,34O33KLQKY,Банківські послуги,Інші витрати,248577,Рівненська обласна організація,39757256,Рівненська область,"Комiсiя за виконання платежiв в нацiональнiй валютi, згiдно з вiдкритою офертою банку N б/н вiд 29.04.2015 та тарифiв банку, без ПДВ.",UA303333910000026009054713048,current,3.00,"ПАТ КБ ""Приватбанк""",14360570,юридична особа
ЄС,"Рівненська область, Рівне, вулиця Симона Петлюри, 13",61,2020-03-04,1102,Військовий збір,Податкові платежі,248576,Рівненська обласна організація,39757256,Рівненська область,*;101;39757256;Вiйськовий збiр iз ЗП та розрахункових за березень 2020р.;;;,UA303333910000026009054713048,current,159.40,ГУ ДКСУ у Рівненській області,38012714,юридична особа
ЄС,"Київ, вулиця Михайла Грушевського, 1",70,2020-03-04,34O33ILWUY,Банківські послуги,Інші витрати,248575,Рівненська обласна організація,39757256,Рівненська область,"Комiсiя за виконання платежiв в нацiональнiй валютi, згiдно з вiдкритою офертою банку N б/н вiд 29.04.2015 та тарифiв банку, без ПДВ.",UA303333910000026009054713048,current,3.00,"ПАТ КБ ""Приватбанк""",14360570,юридична особа
ЄС,"Рівненська область, Рівне, вулиця Данила Галицького, 19",79,2020-03-04,1098,"Оренда будинків і приміщень та експлуатаційні витрати (прибирання, страхування орендованих будинків, охорона, сигналізація, ремонт, вивіз сміття, тощо)",Оренда нерухомості,248574,Рівненська обласна організація,39757256,Рівненська область,"Оплата оренди прим за сiчень 2020р.,тендер не пердбачено, У сумi 11517.22 грн., ПДВ - 20 % 2303.44 грн..",UA303333910000026009054713048,current,13820.66,"ПП ""Фірма ""Промсервіс""",13981123,юридична особа
ЄС,"Рівненська область, Березнівський район, Березне",84,2020-03-04,1101,"Заробітна плата, премії","Заробітна плата, лікарняні, вагітності, відрядження, компенсації",248533,Рівненська обласна організація,39757256,Рівненська область,Зарплата та розрахункові за березень 2020 р.,UA303333910000026009054713048,current,8554.38,Андрощук Андрій Васильович,,фізична особа
ЄС,"Дніпропетровська область, Дніпро́, вулиця Курсантська, 24",70,2020-03-04,36554,Банківські послуги,Інші витрати,248432,Одеська обласна організація,39607381,Одеська область,Комісія за виконання 04.03.2020р. платежів зг. дог. 26/77182/980 від 20.04.2015р. Без ПДВ,UA933071230000026003010325274,current,3.00,"ПАТ ""Банк Восток""",26237202,юридична особа
ЄС,"Дніпропетровська область, Дніпро́, вулиця Курсантська, 24",70,2020-03-04,30845,Банківські послуги,Інші витрати,248431,Одеська обласна організація,39607381,Одеська область,Погашення комісії за Договором зарплатного проекту. Без ПДВ. (договірне списання),UA933071230000026003010325274,current,237.81,"ПАТ ""Банк Восток""",26237202,юридична особа
ЄС,"Одеська область, Одеса, вулиця Маразліївська, 14А, 18",79,2020-03-04,29,"Оренда будинків і приміщень та експлуатаційні витрати (прибирання, страхування орендованих будинків, охорона, сигналізація, ремонт, вивіз сміття, тощо)",Оренда нерухомості,248430,Одеська обласна організація,39607381,Одеська область,"Оплата за оренду громадської приймальні у січні 2020 року згідно Договору №1 від 01.01.2018р., без ПДВ.",UA933071230000026003010325274,current,34055.90,Кучер Іван Іванович,2279101730,фізична особа
ЄС,"Миколаївська область, Миколаїв, вулиця Гастелло, 9/1",63,2020-03-04,1665,Податок на доходи,Податкові платежі,248375,Миколаївська обласна організація,26029188,Миколаївська область,*;101;26029188;11010400;;;ПДФО утрим. iз оренд.пл. за 01/20 Мотельчук Т.I.(до дог.N1/1/19 вiд 01.05.19).Перерах. до бюджету повнiстю.Без ПДВ,UA543266100000026001053219711,current,4500.00,УДКСУ у м. Миколаєві,37992781,юридична особа
ЄС,"Київ, вулиця Михайла Грушевського, 1",70,2020-03-04,34O33IG3JY,Банківські послуги,Інші витрати,248374,Миколаївська обласна організація,26029188,Миколаївська область,"Комiсiя за виконання платежiв в нацiональнiй валютi, згiдно з вiдкритою офертою банку N б/н вiд 17.06.2016 та тарифiв банку, без ПДВ.",UA543266100000026001053219711,current,3.00,"ПАТ КБ ""Приватбанк""",14360570,юридична особа
ЄС,"Миколаївська область, Миколаїв, вулиця Гастелло, 9/1",61,2020-03-04,1664,Військовий збір,Податкові платежі,248373,Миколаївська обласна організація,26029188,Миколаївська область,"*;101;26029188;11011000;;;Перер.1,5% вiйск.збiр утрим.iз оренд.пл.за 01/20 Мотельчук Т.I.(дог.N1/1/19 вiд 01.05.19).Перер.до бюдж.повн.Без ПДВ",UA543266100000026001053219711,current,375.00,УДКСУ у м. Миколаєві,37992781,юридична особа
ЄС,"Київ, вулиця Михайла Грушевського, 1",70,2020-03-04,34O33IG3HY,Банківські послуги,Інші витрати,248372,Миколаївська обласна організація,26029188,Миколаївська область,"Комiсiя за виконання платежiв в нацiональнiй валютi, згiдно з вiдкритою офертою банку N б/н вiд 17.06.2016 та тарифiв банку, без ПДВ.",UA543266100000026001053219711,current,3.00,"ПАТ КБ ""Приватбанк""",14360570,юридична особа
ЄС,"Миколаївська область, Миколаїв",79,2020-03-04,1666,"Оренда будинків і приміщень та експлуатаційні витрати (прибирання, страхування орендованих будинків, охорона, сигналізація, ремонт, вивіз сміття, тощо)",Оренда нерухомості,248343,Миколаївська обласна організація,26029188,Миколаївська область,Оплата за оренду у 01/20 зг. рах.N9 вiд 31.01.20(до дог.N1/1/19 вiд 01.05.19).Без ПДВ,UA543266100000026001053219711,current,20125.00,Мотельчук Тетяна Іванівна,,фізична особа
ЄС,"Луганська область, Сєвєродонецьк, вулиця Богдана Ліщини, 37",79,2020-03-04,26,"Оренда будинків і приміщень та експлуатаційні витрати (прибирання, страхування орендованих будинків, охорона, сигналізація, ремонт, вивіз сміття, тощо)",Оренда нерухомості,248217,Луганська обласна організація,39825996,Луганська область,"сплата за оренду примiщення січень 2020 року згiдно договору N 7/19 вiд 01.07.2019 року, у т.р. ПДВ 20% 1405,88грн",UA583047950000026009053718941,current,8435.30,"ТОВ „ІНТЕРТРАНС К""",41414609,юридична особа
ЄС,"Кіровоградська область, Кропивницький, вулиця Велика Перспективна, 8",70,2020-03-04,7IO2BFMBMY_11,Банківські послуги,Інші витрати,248139,Кіровоградська обласна організація,39697790,Кіровоградська область,Комiсiя за виконання платежiв в нацiональнiй валютi,UA603235830000026002052912613,current,3.00,"ПАТ ""НАСК ""Оранта""",14360577,юридична особа
ЄС,"Кіровоградська область, Кропивницький, вулиця Велика Перспективна, 8",70,2020-03-04,7IO2BFMBMY_10,Банківські послуги,Інші витрати,248138,Кіровоградська обласна організація,39697790,Кіровоградська область,Комiсiя за виконання платежiв в нацiональнiй валютi,UA603235830000026002052912613,current,3.00,"ПАТ ""НАСК ""Оранта""",14360577,юридична особа
ЄС,"Кіровоградська область, Кропивницький, вулиця Велика Перспективна, 8",70,2020-03-04,7IO2BFMBMY_9,Банківські послуги,Інші витрати,248137,Кіровоградська обласна організація,39697790,Кіровоградська область,Комiсiя за виконання платежiв в нацiональнiй валютi,UA603235830000026002052912613,current,3.00,"ПАТ ""НАСК ""Оранта""",14360577,юридична особа
ЄС,"Кіровоградська область, Кропивницький, вулиця Кропивницького, 4, 43",79,2020-03-04,375,"Оренда будинків і приміщень та експлуатаційні витрати (прибирання, страхування орендованих будинків, охорона, сигналізація, ремонт, вивіз сміття, тощо)",Оренда нерухомості,248136,Кіровоградська обласна організація,39697790,Кіровоградська область,Оплата комунальних послуг за грудень 2020 року,UA603235830000026002052912613,current,1491.36,Згривець Р Ф,,фізична особа
ЄС,"Кіровоградська область, Кропивницький, вулиця Кропивницького, 4, 43",79,2020-03-04,377,"Оренда будинків і приміщень та експлуатаційні витрати (прибирання, страхування орендованих будинків, охорона, сигналізація, ремонт, вивіз сміття, тощо)",Оренда нерухомості,248135,Кіровоградська обласна організація,39697790,Кіровоградська область,Оплата комунальних послуг за січень 2020 року,UA603235830000026002052912613,current,1467.05,Згривець Р Ф,,фізична особа
ЄС,"Кіровоградська область, Кропивницький, вулиця Велика Перспективна, 8",70,2020-03-04,7IO2BFMBMY_8,Банківські послуги,Інші витрати,248134,Кіровоградська обласна організація,39697790,Кіровоградська область,Комiсiя за виконання платежiв в нацiональнiй валютi,UA603235830000026002052912613,current,3.00,"ПАТ ""НАСК ""Оранта""",14360577,юридична особа
ЄС,"Кіровоградська область, Кропивницький, вулиця Велика Перспективна, 8",70,2020-03-04,7IO2BFMBMY_7,Банківські послуги,Інші витрати,248133,Кіровоградська обласна організація,39697790,Кіровоградська область,Комiсiя за виконання платежiв в нацiональнiй валютi,UA603235830000026002052912613,current,3.00,"ПАТ ""НАСК ""Оранта""",14360577,юридична особа
ЄС,"Кіровоградська область, Кропивницький, вулиця Велика Перспективна, 8",70,2020-03-04,7IO2BFMBMY_6,Банківські послуги,Інші витрати,248132,Кіровоградська обласна організація,39697790,Кіровоградська область,Комiсiя за виконання платежiв в нацiональнiй валютi,UA603235830000026002052912613,current,3.00,"ПАТ ""НАСК ""Оранта""",14360577,юридична особа
ЄС,"Кіровоградська область, Кропивницький, вулиця Велика Перспективна, 8",70,2020-03-04,7IO2BFMBMY,Банківські послуги,Інші витрати,248131,Кіровоградська обласна організація,39697790,Кіровоградська область,Комiсiя за виконання платежiв в нацiональнiй валютi,UA603235830000026002052912613,current,3.00,"ПАТ ""НАСК ""Оранта""",14360577,юридична особа
ЄС,"Кіровоградська область, Кропивницький, вулиця Кропивницького, 4, 43",79,2020-03-04,379,"Оренда будинків і приміщень та експлуатаційні витрати (прибирання, страхування орендованих будинків, охорона, сигналізація, ремонт, вивіз сміття, тощо)",Оренда нерухомості,248130,Кіровоградська обласна організація,39697790,Кіровоградська область,Оплата комунальних послуг за грудень 2020 року,UA603235830000026002052912613,current,225.50,Згривець Р Ф,,фізична особа
ЄС,"Кіровоградська область, Кропивницький, вулиця Кропивницького, 4, 43",79,2020-03-04,374,"Оренда будинків і приміщень та експлуатаційні витрати (прибирання, страхування орендованих будинків, охорона, сигналізація, ремонт, вивіз сміття, тощо)",Оренда нерухомості,248129,Кіровоградська обласна організація,39697790,Кіровоградська область,Оплата комунальних послуг за січень 2020 року,UA603235830000026002052912613,current,191.90,Згривець Р Ф,,фізична особа
ЄС,"Кіровоградська область, Кропивницький, вулиця Велика Перспективна, 8",70,2020-03-04,7IO2BFLXFY,Банківські послуги,Інші витрати,248128,Кіровоградська обласна організація,39697790,Кіровоградська область,Комiсiя за виконання платежiв в нацiональнiй валютi,UA603235830000026002052912613,current,3.00,"ПАТ ""НАСК ""Оранта""",14360577,юридична особа
ЄС,"Кіровоградська область, Кропивницький, вулиця Кропивницького, 4, 43",79,2020-03-04,378,"Оренда будинків і приміщень та експлуатаційні витрати (прибирання, страхування орендованих будинків, охорона, сигналізація, ремонт, вивіз сміття, тощо)",Оренда нерухомості,248127,Кіровоградська обласна організація,39697790,Кіровоградська область,Оплата за оренду нежитлового примiщення за січень 2020 року,UA603235830000026002052912613,current,3200.00,Згривець Р Ф,,фізична особа
ЄС,"Кіровоградська область, Кропивницький, вулиця Кропивницького, 4, 43",79,2020-03-04,376,"Оренда будинків і приміщень та експлуатаційні витрати (прибирання, страхування орендованих будинків, охорона, сигналізація, ремонт, вивіз сміття, тощо)",Оренда нерухомості,248126,Кіровоградська обласна організація,39697790,Кіровоградська область,Оплата за оренду нежитлового примiщення за січень 2020 року,UA603235830000026002052912613,current,10500.00,Згривець Р Ф,,фізична особа
ЄС,"Кіровоградська область, Кропивницький, вулиця Кропивницького, 4, 43",79,2020-03-04,373,"Оренда будинків і приміщень та експлуатаційні витрати (прибирання, страхування орендованих будинків, охорона, сигналізація, ремонт, вивіз сміття, тощо)",Оренда нерухомості,248124,Кіровоградська обласна організація,39697790,Кіровоградська область,Оплата за оренду нежитлового примiщення за грудень 2020 року,UA603235830000026002052912613,current,3200.00,Згривець Р Ф,,фізична особа
ЄС,"Кіровоградська область, Кропивницький, вулиця Кропивницького, 4, 43",79,2020-03-04,372,"Оренда будинків і приміщень та експлуатаційні витрати (прибирання, страхування орендованих будинків, охорона, сигналізація, ремонт, вивіз сміття, тощо)",Оренда нерухомості,248123,Кіровоградська обласна організація,39697790,Кіровоградська область,Оплата за оренду нежитлового примiщення за грудень 2020 року,UA603235830000026002052912613,current,10500.00,Згривець Р Ф,,фізична особа
ЄС,"Полтавська область, Полтава, вулиця Лисенка, 7, 1",79,2020-03-04,1908,"Оренда будинків і приміщень та експлуатаційні витрати (прибирання, страхування орендованих будинків, охорона, сигналізація, ремонт, вивіз сміття, тощо)",Оренда нерухомості,248047,Київська обласна організація,39495516,Київська область,"За оренду нежитлового приміщення згідно акту №24 від 31,01.2020 без ПДВ.",UA503805820000026000010325931,current,7150.00,Шихова Валентина Миколаївна,2137819825,фізична особа
ЄС,"Київська обл., Біла Церква, вулиця Героїв Небесної Cотні, 24",79,2020-03-04,1907,"Оренда будинків і приміщень та експлуатаційні витрати (прибирання, страхування орендованих будинків, охорона, сигналізація, ремонт, вивіз сміття, тощо)",Оренда нерухомості,248046,Київська обласна організація,39495516,Київська область,"За оренду нежитлового приміщення згідно акта №20 від 31,01.2020 Без ПДВ",UA503805820000026000010325931,current,6994.00,"ТОВ ""Гординського-плаза""",37623354,юридична особа
ЄС,"Київська обл., Вишгородський район, Вишгород, вулиця Шлюзова, 1",79,2020-03-04,1905,"Оренда будинків і приміщень та експлуатаційні витрати (прибирання, страхування орендованих будинків, охорона, сигналізація, ремонт, вивіз сміття, тощо)",Оренда нерухомості,248045,Київська обласна організація,39495516,Київська область,"За оренду, нежитлового приміщення та комун послуги згідно акту №17 від 31,01.2020 без ПДВ",UA503805820000026000010325931,current,5899.14,"ТОВ ""ТСК-Центр""",32700072,юридична особа
ЄС,"Київ, вулиця Леоніда Первомайського, 9А",63,2020-03-04,1906,Податок на доходи,Податкові платежі,248044,Київська обласна організація,39495516,Київська область,*;101;39495516;11010400;ПДФО по договорам з фізичн особами ; Нарах.та перерах. повністю;без ПДВ.,UA503805820000026000010325931,current,3384.00,УДКСУ у Печерському районі м. Києва,38004897,юридична особа
ЄС,"Київська обл., Києво-Святошинський район, Софіївська Борщагівка, вулиця Соборна, 25",79,2020-03-04,1913,"Оренда будинків і приміщень та експлуатаційні витрати (прибирання, страхування орендованих будинків, охорона, сигналізація, ремонт, вивіз сміття, тощо)",Оренда нерухомості,248043,Київська обласна організація,39495516,Київська область,"За оренду нежитлового приміщення згідно акта № 19 від 31,01.2020 без ПДВ",UA503805820000026000010325931,current,2570.00,"ГТОВ фірма ""Житлосервіс""",24222194,юридична особа
ЄС,"Київська обл., Сквирський район, Сквира, вулиця Богачевського, 42А",79,2020-03-04,1945,"Оренда будинків і приміщень та експлуатаційні витрати (прибирання, страхування орендованих будинків, охорона, сигналізація, ремонт, вивіз сміття, тощо)",Оренда нерухомості,248042,Київська обласна організація,39495516,Київська область,"За оренду нежитлового приміщення згідно акту від 31,01.2020 без ПДВ",UA503805820000026000010325931,current,2500.00,"ТОВ ""Будпроект М. Сквира""",32893017,юридична особа
ЄС,"Київська обл., Згурівський район, Згурівка, вул. Київська, 12А",79,2020-03-04,1912,"Оренда будинків і приміщень та експлуатаційні витрати (прибирання, страхування орендованих будинків, охорона, сигналізація, ремонт, вивіз сміття, тощо)",Оренда нерухомості,248041,Київська обласна організація,39495516,Київська область,"За оренду нежитлового приміщення згідно акта №76 від 31,01.2020 . в т. ч. ПДВ 20% 250.14 грн.",UA503805820000026000010325931,current,1500.83,"КП ""Згурівський комбінат комунальних підприємств""",05392074,юридична особа
ЄС,"Київ, вулиця Леоніда Первомайського, 9А",61,2020-03-04,1903,Військовий збір,Податкові платежі,248040,Київська обласна організація,39495516,Київська область,*;101;39495516;11011000; військовий збір по договорам з фізичн особами ;;;; без ПДВ.,UA503805820000026000010325931,current,282.00,УДКСУ у Печерському районі м. Києва,38004897,юридична особа
ЄС,"Київська обл., Згурівський район, Згурівка, вул. Київська, 12А",79,2020-03-04,1902,"Оренда будинків і приміщень та експлуатаційні витрати (прибирання, страхування орендованих будинків, охорона, сигналізація, ремонт, вивіз сміття, тощо)",Оренда нерухомості,248039,Київська обласна організація,39495516,Київська область,"Відшкодування ком послуг згідно акту від 31,01,2020 в т. ч. ПДВ 20% 15.00 грн.",UA503805820000026000010325931,current,90.01,"КП ""Згурівський комбінат комунальних підприємств""",05392074,юридична особа
ЄС,"Київ, вулиця Лаврська, 16",70,2020-03-04,365080,Банківські послуги,Інші витрати,248038,Київська обласна організація,39495516,Київська область,"Комісія за виконання платіжного доручення в гривнях згідно, дог. 123.18-CBA від 29.10.2018, КИЇВСЬКА ТОПП""ЄВРОПЕЙСЬКА СОЛІДАРНІСТЬ",UA503805820000026000010325931,current,26.00,"ПАТ ""МІБ""",35810511,юридична особа
ЄС,"Київська обл., Києво-Святошинський район, Вишневе",79,2020-03-04,1909,"Оренда будинків і приміщень та експлуатаційні витрати (прибирання, страхування орендованих будинків, охорона, сигналізація, ремонт, вивіз сміття, тощо)",Оренда нерухомості,247990,Київська обласна організація,39495516,Київська область,за послуги згідно договору оренди нежитлового приміщення №08/15-2017 від 01.02.2017 Без ПДВ,UA503805820000026000010325931,current,7245.00,Мохонько Олександр Миколайович,,фізична особа
ЄС,"Київська обл., Ірпінь",79,2020-03-04,1911,"Оренда будинків і приміщень та експлуатаційні витрати (прибирання, страхування орендованих будинків, охорона, сигналізація, ремонт, вивіз сміття, тощо)",Оренда нерухомості,247989,Київська обласна організація,39495516,Київська область,Попова Олександра Валеріївна за послуги згідно договору оренди нежитлового приміщення №12-18 від 21.09.2018 без ПДВ.,UA503805820000026000010325931,current,4025.00,Попова Олександра Валеріївна,,фізична особа
ЄС,"Київська обл., Кагарлицький район, Кагарлик",79,2020-03-04,1904,"Оренда будинків і приміщень та експлуатаційні витрати (прибирання, страхування орендованих будинків, охорона, сигналізація, ремонт, вивіз сміття, тощо)",Оренда нерухомості,247988,Київська обласна організація,39495516,Київська область,За оренду нежитл приміщення згідно Дог оренди №02/15-2017 від 01.02.2017 Без ПДВ,UA503805820000026000010325931,current,3864.00,Драпіковський Валерій Арікович,,фізична особа
ЄС,"Київ, бульвар Тараса Шевченка, 18",79,2020-03-04,1503,"Оренда будинків і приміщень та експлуатаційні витрати (прибирання, страхування орендованих будинків, охорона, сигналізація, ремонт, вивіз сміття, тощо)",Оренда нерухомості,247962,Івано-Франківська обласна організація,39655372,Івано-Франківська область,Оплата за комунальні послуги за 01м.2020р. зг. Дог. оренди № 26Е000-53/20 від 01.01.2020р. в т.ч. ПДВ 825.71 грн.,UA133204780000026003924420903,current,4954.25,"ПАТ ""Укртелеком""",21560766,юридична особа
ЄС,"Київ, вулиця Єреванська, 1",70,2020-03-04,TR.13439823.884,Банківські послуги,Інші витрати,247961,Івано-Франківська обласна організація,39655372,Івано-Франківська область,"Плата за розрахункове обслуговування по рахунку № 26003924420903.980 з 04/03/2020 по 04/03/2020 згідно Договору № 2019/КД/047-0124 від 22/10/2019 р, без ПДВ",UA133204780000026003924420903,current,0.80,"АБ ""Укргазбанк""",23697280,юридична особа
ЄС,"Київ, бульвар Тараса Шевченка, 18",79,2020-03-04,1502,"Оренда будинків і приміщень та експлуатаційні витрати (прибирання, страхування орендованих будинків, охорона, сигналізація, ремонт, вивіз сміття, тощо)",Оренда нерухомості,247960,Івано-Франківська обласна організація,39655372,Івано-Франківська область,Оплата за оренду приміщення за 01м.2020р. зг. Дог. оренди № 26Е000-53/20 від 01.01.2020р. в т.ч. ПДВ 3073.95 грн.,UA133204780000026003924420903,current,18443.72,"ПАТ ""Укртелеком""",21560766,юридична особа
ЄС,"Київ, вулиця Єреванська, 1",70,2020-03-04,TR.13439823.172,Банківські послуги,Інші витрати,247959,Івано-Франківська обласна організація,39655372,Івано-Франківська область,"Плата за розрахункове обслуговування по рахунку № 26003924420903.980 з 04/03/2020 по 04/03/2020 згідно Договору № 2019/КД/047-0124 від 22/10/2019 р, без ПДВ",UA133204780000026003924420903,current,0.80,"АБ ""Укргазбанк""",23697280,юридична особа
ЄС,"Київ, вулиця Михайла Драгоманова",76,2020-03-04,144,Послуги зв’язку,Послуги зв’язку,247808,Житомирська обласна організація,39682762,Житомирська область,Послуги зв'язу,UA133116470000026000300890814,current,250.00,"ТОВ ""ФРІНЕТ""",24592293,юридична особа
ЄС,"Житомирська область, Житомир, вулиця Святослава Ріхтера, 12",61,2020-03-04,142,Військовий збір,Податкові платежі,247807,Житомирська обласна організація,39682762,Житомирська область,Оренда приміщення (ВЗб),UA133116470000026000300890814,current,345.00,УДКСУ у м. Житомирі,38035726,юридична особа
ЄС,"Житомирська область, Житомир, вулиця Святослава Ріхтера, 12",63,2020-03-04,141,Податок на доходи,Податкові платежі,247806,Житомирська обласна організація,39682762,Житомирська область,Оренда приміщення ПДФО,UA133116470000026000300890814,current,4140.00,УДКСУ у м. Житомирі,38035726,юридична особа
ЄС,"Житомирська область, Житомир",79,2020-03-04,143,"Оренда будинків і приміщень та експлуатаційні витрати (прибирання, страхування орендованих будинків, охорона, сигналізація, ремонт, вивіз сміття, тощо)",Оренда нерухомості,247765,Житомирська обласна організація,39682762,Житомирська область,Оренда приміщення,UA133116470000026000300890814,current,18515.00,Рабінович Олександр Юхимович,,фізична особа
ЄС,"Київ, вулиця Михайла Грушевського, 1",70,2020-03-04,34O33J0OGY,Банківські послуги,Інші витрати,247730,Дніпропетровська обласна організація,39795490,Дніпропетровська область,Оплата банківських послуг,UA493052990000026002050282114,current,3.00,"ПАТ КБ ""Приватбанк""",14360570,юридична особа
ЄС,"Київ, вулиця Михайла Грушевського, 1",70,2020-03-04,34O33J0OCY,Банківські послуги,Інші витрати,247729,Дніпропетровська обласна організація,39795490,Дніпропетровська область,Оплата банківських послуг,UA493052990000026002050282114,current,3.00,"ПАТ КБ ""Приватбанк""",14360570,юридична особа
ЄС,"Дніпропетровська область, Дніпро́, вулиця Високовольтна, 24",61,2020-03-04,849,Військовий збір,Податкові платежі,247728,Дніпропетровська обласна організація,39795490,Дніпропетровська область,Військовий збір із договору оренди за січень 2020 року,UA493052990000026002050282114,current,495.00,УДКСУ у Соборному районі м. Дніпра,37989269,юридична особа
ЄС,"Дніпропетровська область, Дніпро́, вулиця Високовольтна, 24",63,2020-03-04,850,Податок на доходи,Податкові платежі,247727,Дніпропетровська обласна організація,39795490,Дніпропетровська область,ПДФО із договору оренди за січень 2020 року,UA493052990000026002050282114,current,5940.00,УДКСУ у Соборному районі м. Дніпра,37989269,юридична особа
ЄС,"Дніпропетровська область, Дніпро́",79,2020-03-04,848,"Оренда будинків і приміщень та експлуатаційні витрати (прибирання, страхування орендованих будинків, охорона, сигналізація, ремонт, вивіз сміття, тощо)",Оренда нерухомості,247664,Дніпропетровська обласна організація,39795490,Дніпропетровська область,Оплата оренди приміщення за січень 2020 року,UA493052990000026002050282114,current,26565.00,Єренбург Фаїна Яківна,,фізична особа
ЄС,"Дніпропетровська область, Дніпро́, вулиця Челюскіна, 1",63,2020-03-04,402,Податок на доходи,Податкові платежі,247641,Дніпровська міська організація,41146881,Дніпропетровська область,ПДФО з орендної плати за вересень 2019 р,UA133052990000026005050304679,current,4017.60,УДКСУ у Шевченківському районі м. Дніпро,37989274,юридична особа
ЄС,"Дніпропетровська область, Дніпро́, вулиця Челюскіна, 1",61,2020-03-04,403,Військовий збір,Податкові платежі,247640,Дніпровська міська організація,41146881,Дніпропетровська область,ВЗ з орендної плати за вересень 2019 р,UA133052990000026005050304679,current,334.80,УДКСУ у Шевченківському районі м. Дніпро,37989274,юридична особа
ЄС,"Київ, вулиця Михайла Грушевського, 1",70,2020-03-04,TZ004B58QK,Банківські послуги,Інші витрати,247639,Дніпровська міська організація,41146881,Дніпропетровська область,РКО,UA133052990000026005050304679,current,93.31,"ПАТ КБ ""Приватбанк""",14360570,юридична особа
ЄС,"Київ, вулиця Михайла Грушевського, 1",70,2020-03-04,34O33J68SA,Банківські послуги,Інші витрати,247638,Дніпровська міська організація,41146881,Дніпропетровська область,РКО,UA133052990000026005050304679,current,53.90,"ПАТ КБ ""Приватбанк""",14360570,юридична особа
ЄС,"Київ, вулиця Михайла Грушевського, 1",70,2020-03-04,33O33FEITY_1,Банківські послуги,Інші витрати,247637,Дніпровська міська організація,41146881,Дніпропетровська область,РКО,UA133052990000026005050304679,current,3.00,"ПАТ КБ ""Приватбанк""",14360570,юридична особа
ЄС,"Київ, вулиця Михайла Грушевського, 1",70,2020-03-04,33O33FEISY_1,Банківські послуги,Інші витрати,247636,Дніпровська міська організація,41146881,Дніпропетровська область,РКО,UA133052990000026005050304679,current,3.00,"ПАТ КБ ""Приватбанк""",14360570,юридична особа
ЄС,"Дніпропетровська область, Дніпро́, проспект Богдана Хмельницького, 25",62,2020-03-04,398,Сплата ЄСВ,Податкові платежі,247635,Дніпровська міська організація,41146881,Дніпропетровська область,ЄСВ з ЗП лютий 2020 р,UA133052990000026005050304679,current,10200.20,ГУ ДПС У ДНІПРОП.ОБЛАСТІ,43145015,юридична особа
ЄС,"Дніпропетровська область, Дніпро́, вулиця Челюскіна, 1",63,2020-03-04,399,Податок на доходи,Податкові платежі,247634,Дніпровська міська організація,41146881,Дніпропетровська область,ПДФО з ЗП лютий 2020 р,UA133052990000026005050304679,current,8345.62,УДКСУ у Шевченківському районі м. Дніпро,37989274,юридична особа
ЄС,"Дніпропетровська область, Дніпро́, вулиця Челюскіна, 1",61,2020-03-04,397,Військовий збір,Податкові платежі,247633,Дніпровська міська організація,41146881,Дніпропетровська область,ВЗ з ЗП ЗП лютий 2020 р,UA133052990000026005050304679,current,695.47,УДКСУ у Шевченківському районі м. Дніпро,37989274,юридична особа
ЄС,"Київ, вулиця Михайла Грушевського, 1",70,2020-03-04,33O33FEITY,Банківські послуги,Інші витрати,247632,Дніпровська міська організація,41146881,Дніпропетровська область,РКО,UA133052990000026005050304679,current,3.00,"ПАТ КБ ""Приватбанк""",14360570,юридична особа
ЄС,"Київ, вулиця Михайла Грушевського, 1",70,2020-03-04,33O33FEISY,Банківські послуги,Інші витрати,247631,Дніпровська міська організація,41146881,Дніпропетровська область,РКО,UA133052990000026005050304679,current,3.00,"ПАТ КБ ""Приватбанк""",14360570,юридична особа
ЄС,"Київ, вулиця Михайла Грушевського, 1",70,2020-03-04,33O33FEIRY,Банківські послуги,Інші витрати,247630,Дніпровська міська організація,41146881,Дніпропетровська область,РКО,UA133052990000026005050304679,current,3.00,"ПАТ КБ ""Приватбанк""",14360570,юридична особа
ЄС,"Дніпропетровська область, Дніпро́",79,2020-03-04,401,"Оренда будинків і приміщень та експлуатаційні витрати (прибирання, страхування орендованих будинків, охорона, сигналізація, ремонт, вивіз сміття, тощо)",Оренда нерухомості,247586,Дніпровська міська організація,41146881,Дніпропетровська область,Оплата за оренду приміщення,UA133052990000026005050304679,current,17967.60,Куркова Юлія Валеріївна,,фізична особа
ЄС,"Дніпропетровська область, Дніпро́",84,2020-03-04,400,"Заробітна плата, премії","Заробітна плата, лікарняні, вагітності, відрядження, компенсації",247585,Дніпровська міська організація,41146881,Дніпропетровська область,Заробітна плата за лютий 2020 р,UA133052990000026005050304679,current,6179.59,Гордієвич Артур Олегович,,фізична особа
ЄС,"Дніпропетровська область, Дніпро́",84,2020-03-04,400,"Заробітна плата, премії","Заробітна плата, лікарняні, вагітності, відрядження, компенсації",247584,Дніпровська міська організація,41146881,Дніпропетровська область,Заробітна плата за лютий 2020 р,UA133052990000026005050304679,current,8993.07,Бондар Світлана Володимирівна,,фізична особа
ЄС,"Дніпропетровська область, Дніпро́",84,2020-03-04,400,"Заробітна плата, премії","Заробітна плата, лікарняні, вагітності, відрядження, компенсації",247583,Дніпровська міська організація,41146881,Дніпропетровська область,Заробітна плата за лютий 2020 р,UA133052990000026005050304679,current,8050.00,Кравець Ольга Сергіївна,,фізична особа
ЄС,"Дніпропетровська область, Дніпро́",84,2020-03-04,400,"Заробітна плата, премії","Заробітна плата, лікарняні, вагітності, відрядження, компенсації",247582,Дніпровська міська організація,41146881,Дніпропетровська область,Заробітна плата за лютий 2020 р,UA133052990000026005050304679,current,14100.79,Полонська Олена Петрівна,,фізична особа
ЄС,"Волинська область, Луцький район, вулиця Рівненська, 42",79,2020-03-04,28,"Оренда будинків і приміщень та експлуатаційні витрати (прибирання, страхування орендованих будинків, охорона, сигналізація, ремонт, вивіз сміття, тощо)",Оренда нерухомості,247558,Волинська обласна організація,39402400,Волинська область,"Оплата зг. дог.оренди № 6-84/18 від 01.04.2018р.,№6-193/9 від 30.08.2019р. за січень 2020р. ПДВ 20% 3715.41 грн.",UA453282090000026006010004725,current,22292.48,"Дочірнє підприємство ""Автоскладальний завод №1"" ПАТ ""Автомобільна компанія ""Богдан моторс""",21752230,юридична особа
ЄС,"Київ, вулиця Солом'янська, 3",76,2020-03-04,116,Послуги зв’язку,Послуги зв’язку,247418,Центральний офіс,21715714,Україна,"За посл. інтернет в лютому 2020 Дог. №9003898 від 17.10.2017 р., в т. ч. ПДВ 20% 61.00 грн.",UA393805820000026007030316815,state,366.00,"ТОВ ""МЕРЛІН-ТЕЛЕКОМ""",31055823,юридична особа
ЄС,"Київ, Харківське шосе, 172Б, оф.208-1",74,2020-03-04,95,"Придбання канцтоварів, паперу, інших предметів і матеріалів, а також госп товари",Придбання канцтоварів та госп. товарів,247417,Центральний офіс,21715714,Україна,"За поставку госп. товарів зг. рах. №507 від 02.03.2020р., Дог. №14/0518 від 14.05.2018 р., в т. ч. ПДВ 20% 6977.87 грн.",UA393805820000026007030316815,state,41867.20,"ТОВ ""ОЛ-СЕРВІС ГРУП""",40695518,юридична особа
ЄС,"Київ, проспект Володимира Маяковського, 1, 25",76,2020-03-04,96,Послуги зв’язку,Послуги зв’язку,247402,Центральний офіс,21715714,Україна,"Абонплата за посл. інтернет за 2019рік та лютий 2020 р., зг. , Дог.№41/10/16LC від 01.10.2016 р., Без ПДВ",UA393805820000026007030316815,state,21000.00,Білоконь О Г,2881007014,фізична особа
ЄС,"Київ, вулиця Лаврська, 16",70,2020-03-04,365009,Банківські послуги,Інші витрати,247397,Центральний офіс,21715714,Україна,"Комісія за виконання платіжного доручення в гривнях згідно, дог. 36.15-CBА від 24.02.2015",UA393805820000026007030316815,state,44.00,"ПАТ ""МІБ""",35810511,юридична особа
ЄС,"Київ, вулиця Лаврська, 16",79,2020-03-04,118,"Оренда будинків і приміщень та експлуатаційні витрати (прибирання, страхування орендованих будинків, охорона, сигналізація, ремонт, вивіз сміття, тощо)",Оренда нерухомості,247394,Центральний офіс,21715714,Україна,"За компенсацію комунальних за 4 квартал 2019 та за січень 2020. згідно Дог. №к-132 від 25.07.17 р., в т.ч. ПДВ 20% 35428.67 грн.",UA393805820000026007030316815,state,212572.01,"ТОВ ""Підприємство ""Київ""",00308146,юридична особа
ЄС,Київ,83,2020-03-04,115,"Виплати працівникам (не зарплата): лікарняні, вагітності, відрядження, компенсації ","Заробітна плата, лікарняні, вагітності, відрядження, компенсації",247303,Центральний офіс,21715714,Україна,Компенсація витрат за авансовими звітами в ЗА лютий 2020р.,UA393805820000026007030316815,state,660.10,Осова Ганна Андріївна,,фізична особа
ЄС,"Київ, вулиця Лаврська, 16",70,2020-03-04,365008,Банківські послуги,Інші витрати,247214,Центральний офіс,21715714,Україна,"Комісія за виконання платіжного доручення в гривнях згідно, дог. 36.15-CBА від 24.02.2015",UA393805820000026007030316815,state,4.00,"ПАТ ""МІБ""",35810511,юридична особа
ЄС,"Київ, вул. Антоновича, 127",70,2020-03-03,253803,Банківські послуги,Інші витрати,249287,Запорізька обласна організація,39434317,Запорізька область,ком.винагорода за розрах.обсуг пот.рахунку,UA523223130000026008000005026,current,350.00,"АТ ""Укрексімбанк""",00032112,юридична особа
ЄС,"Київ, вул. Антоновича, 127",70,2020-03-03,240565,Банківські послуги,Інші витрати,249286,Запорізька обласна організація,39434317,Запорізька область,ком.винагорода за розрах.обсуг пот.рахунку,UA523223130000026008000005026,current,125.00,"АТ ""Укрексімбанк""",00032112,юридична особа
ЄС,"Київ, вулиця Михайла Грушевського, 1",70,2020-03-03,TZ003B41R2,Банківські послуги,Інші витрати,249241,Чернігівська обласна організація,39742680,Чернігівська область,Комісії за касове обслуговування лютий 2020 р. згідно договору банківського рахунку від 18.04.2018 . без пдв.,UA603535860000026004051416683,current,36.02,"ПАТ КБ ""Приватбанк""",14360570,юридична особа
ЄС,"Київ, вулиця Михайла Грушевського, 1",70,2020-03-03,33O33C1XXY,Банківські послуги,Інші витрати,249240,Чернігівська обласна організація,39742680,Чернігівська область,"Комiсiя за виконання платежiв в нацiональнiй валютi, згiдно з вiдкритою офертою банку N б/н вiд 18.04.2018 та тарифiв банку, без ПДВ.",UA603535860000026004051416683,current,3.00,"ПАТ КБ ""Приватбанк""",14360570,юридична особа
ЄС,"Київ, вулиця Михайла Грушевського, 1",70,2020-03-03,33O33C1YIY,Банківські послуги,Інші витрати,249239,Чернігівська обласна організація,39742680,Чернігівська область,"Комiсiя за виконання платежiв в нацiональнiй валютi, згiдно з вiдкритою офертою банку N б/н вiд 18.04.2018 та тарифiв банку, без ПДВ.",UA603535860000026004051416683,current,3.00,"ПАТ КБ ""Приватбанк""",14360570,юридична особа
ЄС,"Київ, вулиця Михайла Грушевського, 1",70,2020-03-03,33O33C1YEY,Банківські послуги,Інші витрати,249238,Чернігівська обласна організація,39742680,Чернігівська область,"Комiсiя за виконання платежiв в нацiональнiй валютi, згiдно з вiдкритою офертою банку N б/н вiд 18.04.2018 та тарифiв банку, без ПДВ.",UA603535860000026004051416683,current,3.00,"ПАТ КБ ""Приватбанк""",14360570,юридична особа
ЄС,"Київ, вулиця Михайла Грушевського, 1",70,2020-03-03,K33O0NS4L5,Банківські послуги,Інші витрати,249237,Чернігівська обласна організація,39742680,Чернігівська область,Сплата комісії за касове обслуговування лютий 2020.,UA603535860000026004051416683,current,104.80,"ПАТ КБ ""Приватбанк""",14360570,юридична особа
ЄС,"Чернігівська область, Чернігів",63,2020-03-03,535,Податок на доходи,Податкові платежі,249236,Чернігівська обласна організація,39742680,Чернігівська область,*;101;39742680;ПОДАТОК З ДОХОДIВ НАЙМНИХ ПРАЦIВНИКIВ З з/п за лютий 2020 . ПЕРЕРАХОВНО ПОВНIСТЮ;;;,UA603535860000026004051416683,current,9373.50,УДКСУ у м. Чернігові,38054398,юридична особа
ЄС,"Чернігівська область, Чернігів",62,2020-03-03,537,Сплата ЄСВ,Податкові платежі,249235,Чернігівська обласна організація,39742680,Чернігівська область,*;101;39742680;ЄСВ -22 % НА ДЕРЖ. СОЦ. СТРАХ. З з/п за лютий 2020 Р. ПЕРЕРАХОВАНО ПОВНIСТЮ;;;,UA603535860000026004051416683,current,11456.50,ГУ ДФС у Чернігівській області,39392183,юридична особа
ЄС,"Чернігівська область, Чернігів",61,2020-03-03,536,Військовий збір,Податкові платежі,249234,Чернігівська обласна організація,39742680,Чернігівська область,*;101;39742680;ВIЙСЬКОВИЙ ЗБIР З з/п за лютий 2020 Р. ПЕРЕРАХОВАНО ПОВНIСТЮ;;;,UA603535860000026004051416683,current,781.13,УДКСУ у м. Чернігові,38054398,юридична особа
ЄС,"Чернігівська область, Чернігівський район, Кошівка",84,2020-03-03,1,"Заробітна плата, премії","Заробітна плата, лікарняні, вагітності, відрядження, компенсації",249197,Чернігівська обласна організація,39742680,Чернігівська область,З/П за лютий 2020г.,UA603535860000026004051416683,current,12075.00,Шпак Олег Анатолійович,,фізична особа
ЄС,"Чернігівська область, Куликівський район, Куликівка",84,2020-03-03,1,"Заробітна плата, премії","Заробітна плата, лікарняні, вагітності, відрядження, компенсації",249196,Чернігівська обласна організація,39742680,Чернігівська область,З/П за лютий 2020г.,UA603535860000026004051416683,current,5232.50,Никоненко Ілона Валеріївна,,фізична особа
ЄС,"Чернігівська область, Чернігів",84,2020-03-03,1,"Заробітна плата, премії","Заробітна плата, лікарняні, вагітності, відрядження, компенсації",249195,Чернігівська обласна організація,39742680,Чернігівська область,З/П за лютий 2020г.,UA603535860000026004051416683,current,6500.37,Мефоденко Катерина Вікторівна,,фізична особа
ЄС,"Чернігівська область, Куликівський район, Куликівка",84,2020-03-03,1,"Заробітна плата, премії","Заробітна плата, лікарняні, вагітності, відрядження, компенсації",249194,Чернігівська обласна організація,39742680,Чернігівська область,З/П за лютий 2020г.,UA603535860000026004051416683,current,10465.00,Медвідь Ірина Михайлівна,,фізична особа
ЄС,"Чернігівська область, Чернігів",84,2020-03-03,1,"Заробітна плата, премії","Заробітна плата, лікарняні, вагітності, відрядження, компенсації",249193,Чернігівська обласна організація,39742680,Чернігівська область,З/П за лютий 2020г.,UA603535860000026004051416683,current,7647.50,Кулик Наталія Дмитрівна,,фізична особа
ЄС,"Київ, вулиця Єреванська, 1",70,2020-03-03,TR.252680_10,Банківські послуги,Інші витрати,249169,Чернівецька обласна організація,39692702,Чернівецька область,Плата за розрахункове обслуговування в після операційний час по рахунку № 26001266565.980 з 21/10/2019 по 21/10/2019,UA153204780000000026001266565,current,0.80,"АБ ""Укргазбанк""",23697280,юридична особа
ЄС,"Київ, вулиця Єреванська, 1",70,2020-03-03,TR.252680_9,Банківські послуги,Інші витрати,249168,Чернівецька обласна організація,39692702,Чернівецька область,Плата за розрахункове обслуговування в після операційний час по рахунку № 26001266565.980 з 21/10/2019 по 21/10/2019,UA153204780000000026001266565,current,0.80,"АБ ""Укргазбанк""",23697280,юридична особа
ЄС,"Київ, вулиця Єреванська, 1",70,2020-03-03,TR.252680,Банківські послуги,Інші витрати,249167,Чернівецька обласна організація,39692702,Чернівецька область,Плата за розрахункове обслуговування в після операційний час по рахунку № 26001266565.980 з 21/10/2019 по 21/10/2019,UA153204780000000026001266565,current,0.80,"АБ ""Укргазбанк""",23697280,юридична особа
ЄС,"Київ, вулиця Єреванська, 1",70,2020-03-03,726,Банківські послуги,Інші витрати,249166,Чернівецька обласна організація,39692702,Чернівецька область,"Перераховано комісію за зарахування коштів на карткові рахунки зг. тарифів, зг. дог №2016/ZP/046-016 від 16.12.2016",UA153204780000000026001266565,current,164.16,"АБ ""Укргазбанк""",23697280,юридична особа
ЄС,"Чернівецька область, Чернівці, вулиця Аксенина, 2",63,2020-03-03,723,Податок на доходи,Податкові платежі,249165,Чернівецька обласна організація,39692702,Чернівецька область,*;101;39692702;11010100;ПДФО з заробітної плати за 02/2020р. перераховано повністю в бюджет;,UA153204780000000026001266565,current,7341.28,УДКСУ у м. Чернівці,37978173,юридична особа
ЄС,"Чернівецька область, Чернівці, вулиця Аксенина, 2",61,2020-03-03,724,Військовий збір,Податкові платежі,249164,Чернівецька обласна організація,39692702,Чернівецька область,*;101;39692702;11011000;військовий збір утрисано із заробітної плати за 02/2020р. перераховано повністю в бюджет;,UA153204780000000026001266565,current,611.77,УДКСУ у м. Чернівці,37978173,юридична особа
ЄС,"Чернівецька область, Чернівці, вулиця Героїв Майдану, 71",62,2020-03-03,725,Сплата ЄСВ,Податкові платежі,249163,Чернівецька обласна організація,39692702,Чернівецька область,*;101;39692702; сплата ЄСВ із заробітної плати за 02/2020р. перерах повністю.,UA153204780000000026001266565,current,8972.68,ДПІ в м.Чернівцях ГУДФС у Черн.обл.,39579145,юридична особа
ЄС,"Чернівецька область, Чернівці",84,2020-03-03,727,"Заробітна плата, премії","Заробітна плата, лікарняні, вагітності, відрядження, компенсації",249134,Чернівецька обласна організація,39692702,Чернівецька область,Перерахов.кошти для зарахування з/пл 01.02.2020 - 29.02.2028 на карткові рахунки співробітників,UA153204780000000026001266565,current,6246.80,СКРИПНИК Марина Миколаївна,,фізична особа
ЄС,"Чернівецька область, Чернівці",84,2020-03-03,727,"Заробітна плата, премії","Заробітна плата, лікарняні, вагітності, відрядження, компенсації",249133,Чернівецька обласна організація,39692702,Чернівецька область,Перерахов.кошти для зарахування з/пл 01.02.2020 - 29.02.2028 на карткові рахунки співробітників,UA153204780000000026001266565,current,12316.50,РУССУ Вадим Валерійович,,фізична особа
ЄС,"Чернівецька область, Чернівці",84,2020-03-03,727,"Заробітна плата, премії","Заробітна плата, лікарняні, вагітності, відрядження, компенсації",249132,Чернівецька обласна організація,39692702,Чернівецька область,Перерахов.кошти для зарахування з/пл 01.02.2020 - 29.02.2028 на карткові рахунки співробітників,UA153204780000000026001266565,current,5816.06,ПИСЛАР Юрій Іванович,,фізична особа
ЄС,"Чернівецька область, Чернівці",84,2020-03-03,727,"Заробітна плата, премії","Заробітна плата, лікарняні, вагітності, відрядження, компенсації",249131,Чернівецька обласна організація,39692702,Чернівецька область,Перерахов.кошти для зарахування з/пл 01.02.2020 - 29.02.2028 на карткові рахунки співробітників,UA153204780000000026001266565,current,8452.50,НІКА Олександр Михайлович,,фізична особа
ЄС,"Черкаська область, Черкаси, бульвар Шевченка, 185",63,2020-03-03,753,Податок на доходи,Податкові платежі,249121,Черкаська обласна організація,39602603,Черкаська область,ПДФО iз зарплати за лютий 2020р .,UA423543470000026000051523322,current,11026.62,УДКСУ у м. Черкасах,38031150,юридична особа
ЄС,"Черкаська область, Черкаси, бульвар Шевченка, 145",61,2020-03-03,755,Військовий збір,Податкові платежі,249120,Черкаська обласна організація,39602603,Черкаська область,Вiйськовий збiр iз заробiтної плати за лютий 2020р .,UA423543470000026000051523322,current,918.89,УДКСУ у м. Черкасах,38031150,юридична особа
ЄС,"Київ, вулиця Михайла Грушевського, 1",70,2020-03-03,33O33DG2CY,Банківські послуги,Інші витрати,249119,Черкаська обласна організація,39602603,Черкаська область,Роз.рахунково касове обслуговування за березень 2020 р.,UA423543470000026000051523322,current,3.00,"ПАТ КБ ""Приватбанк""",14360570,юридична особа
ЄС,"Київ, вулиця Михайла Грушевського, 1",70,2020-03-03,33O33DG25Y,Банківські послуги,Інші витрати,249118,Черкаська обласна організація,39602603,Черкаська область,Роз.рахунково касове обслуговування за березень 2020 р.,UA423543470000026000051523322,current,3.00,"ПАТ КБ ""Приватбанк""",14360570,юридична особа
ЄС,"Київ, вулиця Михайла Грушевського, 1",70,2020-03-03,TZ003B42OS,Банківські послуги,Інші витрати,249117,Черкаська обласна організація,39602603,Черкаська область,Роз.рахунково касове обслуговування за березень 2020 р.,UA423543470000026000051523322,current,99.44,"ПАТ КБ ""Приватбанк""",14360570,юридична особа
ЄС,"Київ, вулиця Михайла Грушевського, 1",70,2020-03-03,K33O0NS0EB,Банківські послуги,Інші витрати,249116,Черкаська обласна організація,39602603,Черкаська область,Роз.рахунково касове обслуговування за лютий 2020 р.,UA423543470000026000051523322,current,123.28,"ПАТ КБ ""Приватбанк""",14360570,юридична особа
ЄС,"Черкаська область, Черкаси, вулиця Хрещатик, 235",62,2020-03-03,754,Сплата ЄСВ,Податкові платежі,249115,Черкаська обласна організація,39602603,Черкаська область,ЄСВ 22% iз зарплати за лютий 2020р .,UA423543470000026000051523322,current,13476.97,ГУ ДПС у Черкаській обл.,43142920,юридична особа
ЄС,"Київ, вулиця Михайла Грушевського, 1",70,2020-03-03,33O33DG2GY,Банківські послуги,Інші витрати,249114,Черкаська обласна організація,39602603,Черкаська область,Роз.рахунково касове обслуговування за березень 2020 р.,UA423543470000026000051523322,current,3.00,"ПАТ КБ ""Приватбанк""",14360570,юридична особа
ЄС,"Донецька область, Маріуполь, бульвар Шевченка, 343, 58",84,2020-03-03,1,"Заробітна плата, премії","Заробітна плата, лікарняні, вагітності, відрядження, компенсації",249087,Черкаська обласна організація,39602603,Черкаська область,Зарплата за лютий 2020,UA423543470000026000051523322,current,8104.14,Гончарова Лариса Володимирівна,,фізична особа
ЄС,"Черкаська область, Черкаси, вулиця Пушкіна, 67, 72",84,2020-03-03,1,"Заробітна плата, премії","Заробітна плата, лікарняні, вагітності, відрядження, компенсації",249086,Черкаська обласна організація,39602603,Черкаська область,Зарплата за лютий 2020,UA423543470000026000051523322,current,7245.00,Шечкова Віта Миколаївна,,фізична особа
ЄС,"Черкаська область, Звенигородський район, Звенигородка, вул. Пролетарська, 16",84,2020-03-03,1,"Заробітна плата, премії","Заробітна плата, лікарняні, вагітності, відрядження, компенсації",249085,Черкаська обласна організація,39602603,Черкаська область,Зарплата за лютий 2020,UA423543470000026000051523322,current,7307.83,Тимошенко Богдан Андрійович,,фізична особа
ЄС,"м. Звенигородка, вул. Звенигородська, буд. 27Б",84,2020-03-03,1,"Заробітна плата, премії","Заробітна плата, лікарняні, вагітності, відрядження, компенсації",249084,Черкаська обласна організація,39602603,Черкаська область,Зарплата за лютий 2020,UA423543470000026000051523322,current,10205.83,Рубан Сергій Леонідович,,фізична особа
ЄС,"Черкаська область, Черкаський район, Степанки",84,2020-03-03,1,"Заробітна плата, премії","Заробітна плата, лікарняні, вагітності, відрядження, компенсації",249083,Черкаська обласна організація,39602603,Черкаська область,Зарплата за лютий 2020,UA423543470000026000051523322,current,5743.29,Михайленко Ольга Олександрівна,,фізична особа
ЄС,"Черкаська область, Черкаський район, Чорнявка",84,2020-03-03,1,"Заробітна плата, премії","Заробітна плата, лікарняні, вагітності, відрядження, компенсації",249082,Черкаська обласна організація,39602603,Черкаська область,Зарплата за лютий 2020,UA423543470000026000051523322,current,3802.01,Мельник Євгеній Олександрович,,фізична особа
ЄС,"м. Черкаси, вул. Портова, буд. 10, кв. 20",84,2020-03-03,1,"Заробітна плата, премії","Заробітна плата, лікарняні, вагітності, відрядження, компенсації",249081,Черкаська обласна організація,39602603,Черкаська область,Зарплата за лютий 2020,UA423543470000026000051523322,current,6905.33,Коваль Ірина Андріївна,,фізична особа
ЄС,"Хмельницька область, Хмельницький",61,2020-03-03,423,Військовий збір,Податкові платежі,249052,Хмельницька обласна організація,39545645,Хмельницька область,Сплата військового збору з виплати зарплати за лютий 2020р,UA093154050000026009052321812,current,768.30,УДКСУ у м. Хмельницькому,38045529,юридична особа
ЄС,"Хмельницька область, Хмельницький",63,2020-03-03,422,Податок на доходи,Податкові платежі,249051,Хмельницька обласна організація,39545645,Хмельницька область,Сплата ПДФО з виплати зарплати за лютий 2020р,UA093154050000026009052321812,current,9230.50,УДКСУ у м. Хмельницькому,38045529,юридична особа
ЄС,"Хмельницька область, Хмельницький",62,2020-03-03,424,Сплата ЄСВ,Податкові платежі,249050,Хмельницька обласна організація,39545645,Хмельницька область,ЄСВ з виплати зарплати за лютий 2020р,UA093154050000026009052321812,current,11282.96,ДПІ у м. Хмельницькому,39564228,юридична особа
ЄС,"Київ, вулиця Михайла Грушевського, 1",70,2020-03-03,33О33EA,Банківські послуги,Інші витрати,249049,Хмельницька обласна організація,39545645,Хмельницька область,Погашення комісії за виконання платежів в національній ваалюті,UA093154050000026009052321812,current,9.00,"ПАТ КБ ""Приватбанк""",14360570,юридична особа
ЄС,"Хмельницька область, Волочиський район, Поляни",84,2020-03-03,410,"Заробітна плата, премії","Заробітна плата, лікарняні, вагітності, відрядження, компенсації",248988,Хмельницька обласна організація,39545645,Хмельницька область,Зарплата за лютий 2020р.,UA093154050000026009052321812,current,6145.80,Сергійчук Юрій Вікторович,,фізична особа
ЄС,"Хмельницька область, Хмельницький",84,2020-03-03,410,"Заробітна плата, премії","Заробітна плата, лікарняні, вагітності, відрядження, компенсації",248987,Хмельницька обласна організація,39545645,Хмельницька область,Зарплата за лютий 2020р.,UA093154050000026009052321812,current,8158.29,Косовська Олена Черказівна,,фізична особа
ЄС,"Хмельницька область, Кам'янець-Подільський",84,2020-03-03,410,"Заробітна плата, премії","Заробітна плата, лікарняні, вагітності, відрядження, компенсації",248986,Хмельницька обласна організація,39545645,Хмельницька область,Зарплата за лютий 2020р.,UA093154050000026009052321812,current,11270.00,Соколюк Валентин Іванович,,фізична особа
ЄС,"Хмельницька область, Хмельницький",84,2020-03-03,410,"Заробітна плата, премії","Заробітна плата, лікарняні, вагітності, відрядження, компенсації",248985,Хмельницька обласна організація,39545645,Хмельницька область,Зарплата за лютий 2020р.,UA093154050000026009052321812,current,6548.29,Солоницька Наталія Борисівна,,фізична особа
ЄС,"Хмельницька область, Хмельницький",84,2020-03-03,421,"Заробітна плата, премії","Заробітна плата, лікарняні, вагітності, відрядження, компенсації",248984,Хмельницька обласна організація,39545645,Хмельницька область,Зарплата за лютий 2020р.,UA093154050000026009052321812,current,9162.96,Левандовський Віктор Олегович,,фізична особа
ЄС,"Херсонська область, Херсон, вулиця Перекопська, 21",70,2020-03-03,TR.2255303.5509,Банківські послуги,Інші витрати,248949,Херсонська обласна організація,39438699,Херсонська область,Плата за розрахункове обслуговування № 26001266059.980,UA973204780000000026001266059,current,0.80,"АБ ""Укргазбанк""",23697280,юридична особа
ЄС,"Херсонська область, Херсон, вулиця Перекопська, 21",70,2020-03-03,TR.2255303.7561,Банківські послуги,Інші витрати,248948,Херсонська обласна організація,39438699,Херсонська область,Плата за розрахункове обслуговування № 26001266059.980,UA973204780000000026001266059,current,0.80,"АБ ""Укргазбанк""",23697280,юридична особа
ЄС,"Херсонська область, Херсон, вулиця Іллюши Кулика, 143",62,2020-03-03,1412,Сплата ЄСВ,Податкові платежі,248947,Херсонська обласна організація,39438699,Херсонська область,Сплата єдиного внеску за лютий2020р.,UA973204780000000026001266059,current,13034.89,"ГУ ДФС у Херсонській області, Автономній республіці Крим та м. Севастополі",39394259,юридична особа
ЄС,"Херсонська область, Херсон, вулиця Перекопська, 21",70,2020-03-03,TR.2255303.9635,Банківські послуги,Інші витрати,248946,Херсонська обласна організація,39438699,Херсонська область,Плата за розрахункове обслуговування № 26001266059.980,UA973204780000000026001266059,current,0.80,"АБ ""Укргазбанк""",23697280,юридична особа
ЄС,"Херсонська область, Херсон, провулок Козацький, 10",63,2020-03-03,1411,Податок на доходи,Податкові платежі,248945,Херсонська обласна організація,39438699,Херсонська область,ПДФО утриманий із зарплати за лютий 2020р,UA973204780000000026001266059,current,10664.91,УДКСУ у м. Херсон,37959779,юридична особа
ЄС,"Херсонська область, Херсон, вулиця Перекопська, 21",70,2020-03-03,1414,Банківські послуги,Інші витрати,248944,Херсонська обласна організація,39438699,Херсонська область,Плата за розрахункове обслуговування № 26001266059.980,UA973204780000000026001266059,current,238.48,"АБ ""Укргазбанк""",23697280,юридична особа
ЄС,"Херсонська область, Херсон, вулиця Старообрядницька, 21",61,2020-03-03,1410,Військовий збір,Податкові платежі,248943,Херсонська обласна організація,39438699,Херсонська область,Військовий збір на доходи фіз.осіб утриманий із зарплати за лютий 2020р.,UA973204780000000026001266059,current,888.75,УДКСУ у м. Херсон,37959779,юридична особа
ЄС,"Херсонська область, Білозерський район, Янтарне",84,2020-03-03,1413,"Заробітна плата, премії","Заробітна плата, лікарняні, вагітності, відрядження, компенсації",248905,Херсонська обласна організація,39438699,Херсонська область,Заробітна плпта за лютий 2020,UA973204780000000026001266059,current,11444.29,Шуригін Олексій Володимирович,,фізична особа
ЄС,Херсонська область,84,2020-03-03,1413,"Заробітна плата, премії","Заробітна плата, лікарняні, вагітності, відрядження, компенсації",248904,Херсонська обласна організація,39438699,Херсонська область,Заробітна плпта за лютий 2020,UA973204780000000026001266059,current,9029.29,Саковніч Олексій Олександрович,,фізична особа
ЄС,"Херсонська область, Херсон",84,2020-03-03,1413,"Заробітна плата, премії","Заробітна плата, лікарняні, вагітності, відрядження, компенсації",248903,Херсонська обласна організація,39438699,Херсонська область,Заробітна плпта за лютий 2020,UA973204780000000026001266059,current,9512.29,Костенко Ольга Віталіївна,,фізична особа
ЄС,"Херсонська область, Білозерський район, Янтарне",84,2020-03-03,1413,"Заробітна плата, премії","Заробітна плата, лікарняні, вагітності, відрядження, компенсації",248902,Херсонська обласна організація,39438699,Херсонська область,Заробітна плпта за лютий 2020,UA973204780000000026001266059,current,8855.00,Калініченко Каріна Олексіївна,,фізична особа
ЄС,"Херсонська область, Олешківський район, Раденськ",84,2020-03-03,1413,"Заробітна плата, премії","Заробітна плата, лікарняні, вагітності, відрядження, компенсації",248901,Херсонська обласна організація,39438699,Херсонська область,Заробітна плпта за лютий 2020,UA973204780000000026001266059,current,8855.00,Калініченко Вʼячеслав Володимирович,,фізична особа
ЄС,"Харківська область, Харків, вулиця Пушкінська, 46",84,2020-03-03,1173,"Заробітна плата, премії","Заробітна плата, лікарняні, вагітності, відрядження, компенсації",248875,Харківська обласна організація,39740347,Харківська область,Нарахування на заробітну плату,UA563516290000000002600912063,current,15685.78,Головне управління ДПС у Харківській о,43143704,юридична особа
ЄС,"Харківська область, Харків, проспект Науки, 9",63,2020-03-03,1171,Податок на доходи,Податкові платежі,248874,Харківська обласна організація,39740347,Харківська область,Податок з доходів фізичних осіб,UA563516290000000002600912063,current,12833.82,УДКСУ у Шевченківському районі м. Харкова,37999654,юридична особа
ЄС,"Харківська область, Харків, проспект Науки, 9",61,2020-03-03,1172,Військовий збір,Податкові платежі,248873,Харківська обласна організація,39740347,Харківська область,Військовий збір з доходів фізичних осіб,UA563516290000000002600912063,current,1069.50,УДКСУ у Шевченківському районі м. Харкова,37999654,юридична особа
ЄС,"Харківська область, Харків, вулиця Алчевських, 30",70,2020-03-03,TR.1419132.1066,Банківські послуги,Інші витрати,248872,Харківська обласна організація,39740347,Харківська область,Розрахунково-касове обслуговування,UA563516290000000002600912063,current,287.28,"ПАТ ""Мегабанк""",09804119,юридична особа
ЄС,"Харківська область, Харків, вулиця Алчевських, 30",70,2020-03-03,RCO1944_411,Банківські послуги,Інші витрати,248871,Харківська обласна організація,39740347,Харківська область,Розрахунково-касове обслуговування,UA563516290000000002600912063,current,199.70,"ПАТ ""Мегабанк""",09804119,юридична особа
ЄС,"Харківська область, Харків",84,2020-03-03,1152,"Заробітна плата, премії","Заробітна плата, лікарняні, вагітності, відрядження, компенсації",248838,Харківська обласна організація,39740347,Харківська область,Заробітна плата за лютий 2020р.,UA563516290000000002600912063,current,6440.00,Яловол Олександр Володимирович,,фізична особа
ЄС,"Харківська область, Харків",84,2020-03-03,1152,"Заробітна плата, премії","Заробітна плата, лікарняні, вагітності, відрядження, компенсації",248837,Харківська обласна організація,39740347,Харківська область,Заробітна плата за лютий 2020р.,UA563516290000000002600912063,current,5970.29,Стрельник Роман Володимирович,,фізична особа
ЄС,"Харківська область, Харків",84,2020-03-03,1152,"Заробітна плата, премії","Заробітна плата, лікарняні, вагітності, відрядження, компенсації",248836,Харківська обласна організація,39740347,Харківська область,Заробітна плата за лютий 2020р.,UA563516290000000002600912063,current,6614.29,Панов Павло Сергійович,,фізична особа
ЄС,"Харківська область, Харків",84,2020-03-03,1152,"Заробітна плата, премії","Заробітна плата, лікарняні, вагітності, відрядження, компенсації",248835,Харківська обласна організація,39740347,Харківська область,Заробітна плата за лютий 2020р.,UA563516290000000002600912063,current,5970.29,Кітченко Микола Павлович,,фізична особа
ЄС,"Харківська область, Харків",84,2020-03-03,1152,"Заробітна плата, премії","Заробітна плата, лікарняні, вагітності, відрядження, компенсації",248834,Харківська обласна організація,39740347,Харківська область,Заробітна плата за лютий 2020р.,UA563516290000000002600912063,current,6614.29,Калюжний Владислав Олександрович,,фізична особа
ЄС,"Харківська область, Харків",84,2020-03-03,1152,"Заробітна плата, премії","Заробітна плата, лікарняні, вагітності, відрядження, компенсації",248833,Харківська обласна організація,39740347,Харківська область,Заробітна плата за лютий 2020р.,UA563516290000000002600912063,current,6694.79,Гриб Ганна Ігорівна,,фізична особа
ЄС,"Харківська область, Харків",84,2020-03-03,1170,"Заробітна плата, премії","Заробітна плата, лікарняні, вагітності, відрядження, компенсації",248832,Харківська обласна організація,39740347,Харківська область,Заробітна плата за лютий 2020р.,UA563516290000000002600912063,current,19091.79,Маляренко Віталій Віталійович,2369301079,фізична особа
ЄС,"Київ, вулиця Михайла Грушевського, 1",70,2020-03-03,,Банківські послуги,Інші витрати,248744,Тернопільська обласна організація,39614425,Тернопільська область,Комiсiя банку,UA273387830000026009055114295,current,9.00,"ПАТ КБ ""Приватбанк""",14360570,юридична особа
ЄС,"Тернопільська область, Тернопіль, бульвар Тараса Шевченка, 3",61,2020-03-03,K33O0NRXMC,Військовий збір,Податкові платежі,248743,Тернопільська обласна організація,39614425,Тернопільська область,Вiйськовий збiр за лютий 2020р.,UA273387830000026009055114295,current,956.46,УДКСУ у м. Тернопіль,37977726,юридична особа
ЄС,"Тернопільська область, Тернопіль, бульвар Тараса Шевченка, 3",63,2020-03-03,K33O0NRXMD,Податок на доходи,Податкові платежі,248742,Тернопільська обласна організація,39614425,Тернопільська область,ПДФО за лютий 2020р.,UA273387830000026009055114295,current,11477.35,УДКСУ у м. Тернопіль,37977726,юридична особа
ЄС,"Тернопільська область, Тернопіль, вулиця Білецька, 1",62,2020-03-03,K33O0NRXMB,Сплата ЄСВ,Податкові платежі,248741,Тернопільська обласна організація,39614425,Тернопільська область,ЄСВ за лютий 2020р.,UA273387830000026009055114295,current,14027.87,ГУ ДПС у Тернопільській області,43142763,юридична особа
ЄС,"Київ, вулиця Михайла Грушевського, 1",70,2020-03-03,K33O0NRXME,Банківські послуги,Інші витрати,248740,Тернопільська обласна організація,39614425,Тернопільська область,Комiсiя банку,UA273387830000026009055114295,current,128.32,"ПАТ КБ ""Приватбанк""",14360570,юридична особа
ЄС,"Київ, вулиця Михайла Грушевського, 1",70,2020-03-03,TZ003B40JO,Банківські послуги,Інші витрати,248739,Тернопільська обласна організація,39614425,Тернопільська область,Комiсiя банку,UA273387830000026009055114295,current,10.01,"ПАТ КБ ""Приватбанк""",14360570,юридична особа
ЄС,"Тернопільська область, Тернопіль",84,2020-03-03,1,"Заробітна плата, премії","Заробітна плата, лікарняні, вагітності, відрядження, компенсації",248688,Тернопільська обласна організація,39614425,Тернопільська область,Зарплата за лютий 2020,UA273387830000026009055114295,current,9753.79,Гринів Анатолій Васильович,,фізична особа
ЄС,"Тернопільська область, Тернопіль",84,2020-03-03,1,"Заробітна плата, премії","Заробітна плата, лікарняні, вагітності, відрядження, компенсації",248687,Тернопільська обласна організація,39614425,Тернопільська область,Зарплата за лютий 2020,UA273387830000026009055114295,current,8626.79,Гугушвілі Тамта Володимирівна,,фізична особа
ЄС,"Тернопільська область, Тернопільський район, Петриків",84,2020-03-03,1,"Заробітна плата, премії","Заробітна плата, лікарняні, вагітності, відрядження, компенсації",248686,Тернопільська обласна організація,39614425,Тернопільська область,Зарплата за лютий 2020,UA273387830000026009055114295,current,12812.79,Дзудзило Володимир Миколайович,,фізична особа
ЄС,"Тернопільська область, Тернопіль",84,2020-03-03,1,"Заробітна плата, премії","Заробітна плата, лікарняні, вагітності, відрядження, компенсації",248685,Тернопільська обласна організація,39614425,Тернопільська область,Зарплата за лютий 2020,UA273387830000026009055114295,current,9899.16,Романська Ірина Миколаївна,,фізична особа
ЄС,"Тернопільська область, Тернопіль",84,2020-03-03,1,"Заробітна плата, премії","Заробітна плата, лікарняні, вагітності, відрядження, компенсації",248684,Тернопільська обласна організація,39614425,Тернопільська область,Зарплата за лютий 2020,UA273387830000026009055114295,current,10236.79,Стасюк Тетяна Богданівна,,фізична особа
ЄС,"Київ, вулиця Михайла Грушевського, 1",70,2020-03-03,K33O0NRWF6,Банківські послуги,Інші витрати,248657,Сумська обласна організація,39587135,Сумська область,комісія банку,UA853375460000026009055016910,current,87.07,"ПАТ КБ ""Приватбанк""",14360570,юридична особа
ЄС,"Сумська область, Сумський район, Суми",61,2020-03-03,519,Військовий збір,Податкові платежі,248656,Сумська обласна організація,39587135,Сумська область,*;101;39587135;11011000 Вiйськовий збiр з з-п за лютий 2020р.;;;,UA853375460000026009055016910,current,926.64,УДКСУ у м. Суми,37970593,юридична особа
ЄС,"Сумська область, Сумський район, Суми",63,2020-03-03,518,Податок на доходи,Податкові платежі,248655,Сумська обласна організація,39587135,Сумська область,*101;39587135;11010100 ПДФО з заробітної плати за лютий 2020р.;;;,UA853375460000026009055016910,current,11119.61,УДКСУ у м. Суми,37970593,юридична особа
ЄС,"Сумська область, Сумський район, Суми",62,2020-03-03,517,Сплата ЄСВ,Податкові платежі,248654,Сумська обласна організація,39587135,Сумська область,*;101;39587135;сплата ЄСВ на з-п за лютий 2020р.;;;,UA853375460000026009055016910,current,13590.64,ГУ ДПС у Сумській області,43144399,юридична особа
ЄС,"Київ, вулиця Михайла Грушевського, 1",70,2020-03-03,33O33CRDMY,Банківські послуги,Інші витрати,248653,Сумська обласна організація,39587135,Сумська область,комісія банку,UA853375460000026009055016910,current,3.00,"ПАТ КБ ""Приватбанк""",14360570,юридична особа
ЄС,"Київ, вулиця Михайла Грушевського, 1",70,2020-03-03,33O33CRD5Y,Банківські послуги,Інші витрати,248652,Сумська обласна організація,39587135,Сумська область,комісія банку,UA853375460000026009055016910,current,3.00,"ПАТ КБ ""Приватбанк""",14360570,юридична особа
ЄС,"Київ, вулиця Михайла Грушевського, 1",70,2020-03-03,33O33CRCUY,Банківські послуги,Інші витрати,248651,Сумська обласна організація,39587135,Сумська область,комісія банку,UA853375460000026009055016910,current,3.00,"ПАТ КБ ""Приватбанк""",14360570,юридична особа
ЄС,"Київ, вулиця Михайла Грушевського, 1",70,2020-03-03,33O33CRDEY,Банківські послуги,Інші витрати,248650,Сумська обласна організація,39587135,Сумська область,комісія банку,UA853375460000026009055016910,current,3.00,"ПАТ КБ ""Приватбанк""",14360570,юридична особа
ЄС,"Сумська область, Сумський район, Суми",84,2020-03-03,1,"Заробітна плата, премії","Заробітна плата, лікарняні, вагітності, відрядження, компенсації",248609,Сумська обласна організація,39587135,Сумська область,заробітна плата,UA853375460000026009055016910,current,8626.79,Міленіна Євгенія Анатоліївна,,фізична особа
ЄС,"Сумська область, Сумський район, Суми",84,2020-03-03,1,"Заробітна плата, премії","Заробітна плата, лікарняні, вагітності, відрядження, компенсації",248608,Сумська обласна організація,39587135,Сумська область,заробітна плата,UA853375460000026009055016910,current,7419.29,Манурін Андрій Михайлович,,фізична особа
ЄС,"Сумська область, Сумський район, Суми",84,2020-03-03,1,"Заробітна плата, премії","Заробітна плата, лікарняні, вагітності, відрядження, компенсації",248607,Сумська обласна організація,39587135,Сумська область,заробітна плата,UA853375460000026009055016910,current,8948.79,Живиця Василь Іванович,,фізична особа
ЄС,"Сумська область, Сумський район, Суми",84,2020-03-03,1,"Заробітна плата, премії","Заробітна плата, лікарняні, вагітності, відрядження, компенсації",248606,Сумська обласна організація,39587135,Сумська область,заробітна плата,UA853375460000026009055016910,current,9834.29,Борковець Дарʼя Вадимівна,,фізична особа
ЄС,"Сумська область, Сумський район, Суми",84,2020-03-03,520,"Заробітна плата, премії","Заробітна плата, лікарняні, вагітності, відрядження, компенсації",248605,Сумська обласна організація,39587135,Сумська область,заробітна плата,UA853375460000026009055016910,current,14900.23,Нагорна Марина Юріївна,,фізична особа
ЄС,"Київ, вулиця Михайла Грушевського, 1",70,2020-03-03,TZ003B4HVT,Банківські послуги,Інші витрати,248573,Рівненська обласна організація,39757256,Рівненська область,Оплата комісії за касове обслуговування по РІВНЕНСЬКА ТОП БПП СОЛІДАРНІСТЬ,UA303333910000026009054713048,current,136.76,"ПАТ КБ ""Приватбанк""",14360570,юридична особа
ЄС,"Київ, вулиця Михайла Грушевського, 1",70,2020-03-03,33O33CQMAY,Банківські послуги,Інші витрати,248572,Рівненська обласна організація,39757256,Рівненська область,"Комiсiя за виконання платежiв в нацiональнiй валютi, згiдно з вiдкритою офертою банку N б/н вiд 29.04.2015 та тарифiв банку, без ПДВ.",UA303333910000026009054713048,current,3.00,"ПАТ КБ ""Приватбанк""",14360570,юридична особа
ЄС,"Київ, вулиця Михайла Грушевського, 1",70,2020-03-03,33O33CQMCY,Банківські послуги,Інші витрати,248571,Рівненська обласна організація,39757256,Рівненська область,"Комiсiя за виконання платежiв в нацiональнiй валютi, згiдно з вiдкритою офертою банку N б/н вiд 29.04.2015 та тарифiв банку, без ПДВ.",UA303333910000026009054713048,current,3.00,"ПАТ КБ ""Приватбанк""",14360570,юридична особа
ЄС,"Київ, вулиця Михайла Грушевського, 1",70,2020-03-03,33O33CQLSY,Банківські послуги,Інші витрати,248570,Рівненська обласна організація,39757256,Рівненська область,"Комiсiя за виконання платежiв в нацiональнiй валютi, згiдно з вiдкритою офертою банку N б/н вiд 29.04.2015 та тарифiв банку, без ПДВ.",UA303333910000026009054713048,current,3.00,"ПАТ КБ ""Приватбанк""",14360570,юридична особа
ЄС,"Рівненська область, Рівне, вулиця Відінська, 8",62,2020-03-03,1096,Сплата ЄСВ,Податкові платежі,248569,Рівненська обласна організація,39757256,Рівненська область,*;101;39757256; ЄСВ iз ЗП за лютий 2020р;;;,UA303333910000026009054713048,current,14950.10,ДПІ у м. Рівне ГУ ДФС в Рівненській області,39550744,юридична особа
ЄС,"Рівненська область, Рівне, вулиця Симона Петлюри, 13",63,2020-03-03,1097,Податок на доходи,Податкові платежі,248568,Рівненська обласна організація,39757256,Рівненська область,*;101;39757256; ПДФО iз ЗП за лютий 2020р;;;,UA303333910000026009054713048,current,12231.90,ГУ ДКСУ у Рівненській області,38012714,юридична особа
ЄС,"Рівненська область, Рівне, вулиця Симона Петлюри, 13",61,2020-03-03,1094,Військовий збір,Податкові платежі,248567,Рівненська обласна організація,39757256,Рівненська область,*;101;39757256;Вiйськовий збiр iз ЗП за лютий 2020р.;;;,UA303333910000026009054713048,current,1019.34,ГУ ДКСУ у Рівненській області,38012714,юридична особа
ЄС,"Рівненська область, Рівне",84,2020-03-03,1095,"Заробітна плата, премії","Заробітна плата, лікарняні, вагітності, відрядження, компенсації",248532,Рівненська обласна організація,39757256,Рівненська область,Зарплата за лютий 2020 р.,UA303333910000026009054713048,current,8184.04,Шевчук Ганна Євгеніївна,,фізична особа
ЄС,"Рівненська область, Рівненський район, Забороль",84,2020-03-03,1095,"Заробітна плата, премії","Заробітна плата, лікарняні, вагітності, відрядження, компенсації",248531,Рівненська обласна організація,39757256,Рівненська область,Зарплата за лютий 2020 р.,UA303333910000026009054713048,current,9270.79,Мосур Наталія Андріївна,,фізична особа
ЄС,"Рівненська область, Рівне",84,2020-03-03,1095,"Заробітна плата, премії","Заробітна плата, лікарняні, вагітності, відрядження, компенсації",248530,Рівненська обласна організація,39757256,Рівненська область,Зарплата за лютий 2020 р.,UA303333910000026009054713048,current,6440.00,Кринцька Ольга Олексіївна,,фізична особа
ЄС,"Рівненська область, Рівне",84,2020-03-03,1095,"Заробітна плата, премії","Заробітна плата, лікарняні, вагітності, відрядження, компенсації",248529,Рівненська обласна організація,39757256,Рівненська область,Зарплата за лютий 2020 р.,UA303333910000026009054713048,current,5004.29,Іванова Наталія Костянтинівна,,фізична особа
ЄС,"Рівненська область, Рівне",84,2020-03-03,1095,"Заробітна плата, премії","Заробітна плата, лікарняні, вагітності, відрядження, компенсації",248528,Рівненська обласна організація,39757256,Рівненська область,Зарплата за лютий 2020 р.,UA303333910000026009054713048,current,11444.29,Дмитренко Інна Іванівна,,фізична особа
ЄС,"Рівненська область, Рівненський район, Городок",84,2020-03-03,1095,"Заробітна плата, премії","Заробітна плата, лікарняні, вагітності, відрядження, компенсації",248527,Рівненська обласна організація,39757256,Рівненська область,Зарплата за лютий 2020 р.,UA303333910000026009054713048,current,6176.37,Волович Максим Володимирович,,фізична особа
ЄС,"Рівненська область, Березнівський район, Березне",84,2020-03-03,1095,"Заробітна плата, премії","Заробітна плата, лікарняні, вагітності, відрядження, компенсації",248526,Рівненська обласна організація,39757256,Рівненська область,Зарплата за лютий 2020 р.,UA303333910000026009054713048,current,8184.04,Андрощук Андрій Васильович,,фізична особа
ЄС,"Полтавська область, Полтава, вулиця Європейська, 155",62,2020-03-03,2575,Сплата ЄСВ,Податкові платежі,248510,Полтавська обласна організація,26090791,Полтавська область,Нарахування 22% на з/плату за лютий 2020р.,UA963204780000000026000279199,current,5712.06,ГОЛОВНЕ УПРАВЛІННЯ ДПС У ПОЛТАВСЬКІЙ ОБЛАСТІ,43142831,юридична особа
ЄС,"Полтавська область, Полтава, вулиця Європейська, 155",63,2020-03-03,2574,Податок на доходи,Податкові платежі,248509,Полтавська обласна організація,26090791,Полтавська область,ПДФО із заробітної плати за лютий 2020р. Перераховано повністю.,UA963204780000000026000279199,current,4538.97,УДКСУ у м. Полтаві,38019510,юридична особа
ЄС,"Полтавська область, Полтава, вулиця Європейська, 155",61,2020-03-03,2573,Військовий збір,Податкові платежі,248508,Полтавська обласна організація,26090791,Полтавська область,Військовий збір із заробітної плати за лютий 2020р. Перераховано повністю.,UA963204780000000026000279199,current,378.25,УДКСУ у м. Полтаві,38019510,юридична особа
ЄС,"Київ, вулиця Єреванська, 1",70,2020-03-03,2579,Банківські послуги,Інші витрати,248507,Полтавська обласна організація,26090791,Полтавська область,Плата за надані послуги (зарах. коштів на карткові рах. працівникам) за 1 половину жовтня 2019р.,UA963204780000000026000279199,current,32.20,"АБ ""Укргазбанк""",23697280,юридична особа
ЄС,"Київ, вулиця Єреванська, 1",70,2020-03-03,TR.3783547.398934206_16,Банківські послуги,Інші витрати,248506,Полтавська обласна організація,26090791,Полтавська область,Плата за розрахункове обслуговування,UA963204780000000026000279199,current,0.80,"АБ ""Укргазбанк""",23697280,юридична особа
ЄС,"Київ, вулиця Єреванська, 1",70,2020-03-03,TR.3783547.398934206_15,Банківські послуги,Інші витрати,248505,Полтавська обласна організація,26090791,Полтавська область,Плата за розрахункове обслуговування,UA963204780000000026000279199,current,0.80,"АБ ""Укргазбанк""",23697280,юридична особа
ЄС,"Київ, вулиця Єреванська, 1",70,2020-03-03,TR.3783547.398934206_14,Банківські послуги,Інші витрати,248504,Полтавська обласна організація,26090791,Полтавська область,Плата за розрахункове обслуговування,UA963204780000000026000279199,current,0.80,"АБ ""Укргазбанк""",23697280,юридична особа
ЄС,"Київ, вулиця Єреванська, 1",70,2020-03-03,TR.3783547.398934206_13,Банківські послуги,Інші витрати,248503,Полтавська обласна організація,26090791,Полтавська область,Плата за розрахункове обслуговування,UA963204780000000026000279199,current,0.80,"АБ ""Укргазбанк""",23697280,юридична особа
ЄС,"Київ, вулиця Єреванська, 1",70,2020-03-03,TR.3783547.398934206,Банківські послуги,Інші витрати,248502,Полтавська обласна організація,26090791,Полтавська область,Плата за розрахункове обслуговування,UA963204780000000026000279199,current,0.80,"АБ ""Укргазбанк""",23697280,юридична особа
ЄС,"Полтавська область, Полтава",84,2020-03-03,2577,"Заробітна плата, премії","Заробітна плата, лікарняні, вагітності, відрядження, компенсації",248461,Полтавська обласна організація,26090791,Полтавська область,Заробітна плата за лютий 2020р.,UA963204780000000026000279199,current,9834.29,Пусан Мирослава Ігорівна,,фізична особа
ЄС,"Полтавська область, Полтавський район, Великий Тростянець",84,2020-03-03,2578,"Заробітна плата, премії","Заробітна плата, лікарняні, вагітності, відрядження, компенсації",248460,Полтавська обласна організація,26090791,Полтавська область,Заробітна плата за лютий 2020р.,UA963204780000000026000279199,current,6440.00,Примак Марина Володимирівна,,фізична особа
ЄС,"Полтавська область, Кременчук",84,2020-03-03,2576,"Заробітна плата, премії","Заробітна плата, лікарняні, вагітності, відрядження, компенсації",248459,Полтавська обласна організація,26090791,Полтавська область,Заробітна плата за лютий 2020р.,UA963204780000000026000279199,current,4025.00,Терещенко Олена Михайлівна,,фізична особа
ЄС,"Дніпропетровська область, Дніпро́, вулиця Курсантська, 24",70,2020-03-03,25104,Банківські послуги,Інші витрати,248429,Одеська обласна організація,39607381,Одеська область,Комісія за виконання 03.03.2020р. платежів зг. дог. 26/77182/980 від 20.04.2015р. Без ПДВ,UA933071230000026003010325274,current,9.00,"ПАТ ""Банк Восток""",26237202,юридична особа
ЄС,"Одеська область, Одеса, вулиця Черняховського, 6",61,2020-03-03,26,Військовий збір,Податкові платежі,248428,Одеська обласна організація,39607381,Одеська область,*;101;39607381;військовий збір за лютий 2020р.;ккд11011000;;;,UA933071230000026003010325274,current,633.04,УДКСУ у м. Одесі,38016923,юридична особа
ЄС,"Одеська область, Одеса, вулиця Черняховського, 6",63,2020-03-03,25,Податок на доходи,Податкові платежі,248427,Одеська обласна організація,39607381,Одеська область,*;101;39607381;ПДФО за лютий 2020р.; код 11010100;;;,UA933071230000026003010325274,current,7596.48,УДКСУ у м. Одесі,38016923,юридична особа
ЄС,"Одеська область, Одеса, Семінарська вулиця, 5",62,2020-03-03,27,Сплата ЄСВ,Податкові платежі,248426,Одеська обласна організація,39607381,Одеська область,*;101;39607381;ЄСВ за лютий 2020р.;код 71010000;;;,UA933071230000026003010325274,current,9284.59,ГУ ДФС В ОДЕС. ОБЛ./Приморський р-н,39398646,юридична особа
ЄС,"Дніпропетровська область, Дніпро́, вулиця Курсантська, 24",70,2020-03-03,20371,Банківські послуги,Інші витрати,248425,Одеська обласна організація,39607381,Одеська область,Часткове погашення комісії за Договором зарплатного проекту. Без ПДВ. (договірне списання),UA933071230000026003010325274,current,19.77,"ПАТ ""Банк Восток""",26237202,юридична особа
ЄС,"Дніпропетровська область, Дніпро́, вулиця Курсантська, 24",70,2020-03-03,18601,Банківські послуги,Інші витрати,248424,Одеська обласна організація,39607381,Одеська область,Часткове погашення комісії за Договором зарплатного проекту. Без ПДВ. (договірне списання),UA933071230000026003010325274,current,70.23,"ПАТ ""Банк Восток""",26237202,юридична особа
ЄС,"Одеська область, Одеса",84,2020-03-03,28,"Заробітна плата, премії","Заробітна плата, лікарняні, вагітності, відрядження, компенсації",248389,Одеська обласна організація,39607381,Одеська область,"Виплата заробітної плати ОТОПП ""ЄВРОПЕЙСЬКА СОЛІДАРНІСТЬ"" згiдно вiдомостi N 127 вiд 03.03.2020",UA933071230000026003010325274,current,11470.14,Шульц Валентина Вікторівна,,фізична особа
ЄС,"Одеська область, Одеса",84,2020-03-03,28,"Заробітна плата, премії","Заробітна плата, лікарняні, вагітності, відрядження, компенсації",248388,Одеська обласна організація,39607381,Одеська область,"Виплата заробітної плати ОТОПП ""ЄВРОПЕЙСЬКА СОЛІДАРНІСТЬ"" згiдно вiдомостi N 127 вiд 03.03.2020",UA933071230000026003010325274,current,4025.00,Сізоненко Сергій Вадимович,,фізична особа
ЄС,"Одеська область, Одеса",84,2020-03-03,28,"Заробітна плата, премії","Заробітна плата, лікарняні, вагітності, відрядження, компенсації",248387,Одеська обласна організація,39607381,Одеська область,"Виплата заробітної плати ОТОПП ""ЄВРОПЕЙСЬКА СОЛІДАРНІСТЬ"" згiдно вiдомостi N 127 вiд 03.03.2020",UA933071230000026003010325274,current,10062.50,Клименко Олена Володимирівна,,фізична особа
ЄС,"Одеська область, Одеса",84,2020-03-03,28,"Заробітна плата, премії","Заробітна плата, лікарняні, вагітності, відрядження, компенсації",248386,Одеська обласна організація,39607381,Одеська область,"Виплата заробітної плати ОТОПП ""ЄВРОПЕЙСЬКА СОЛІДАРНІСТЬ"" згiдно вiдомостi N 127 вiд 03.03.2020",UA933071230000026003010325274,current,8415.49,Закордонська Наталя Борисівна,,фізична особа
ЄС,"Київ, вулиця Михайла Грушевського, 1",70,2020-03-03,33O33CRD2Y,Банківські послуги,Інші витрати,248371,Миколаївська обласна організація,26029188,Миколаївська область,"Комiсiя за виконання платежiв в нацiональнiй валютi, згiдно з вiдкритою офертою банку N б/н вiд 17.06.2016 та тарифiв банку, без ПДВ.",UA543266100000026001053219711,current,3.00,"ПАТ КБ ""Приватбанк""",14360570,юридична особа
ЄС,"Київ, вулиця Михайла Грушевського, 1",70,2020-03-03,33O33CRD9Y,Банківські послуги,Інші витрати,248370,Миколаївська обласна організація,26029188,Миколаївська область,"Комiсiя за виконання платежiв в нацiональнiй валютi, згiдно з вiдкритою офертою банку N б/н вiд 17.06.2016 та тарифiв банку, без ПДВ.",UA543266100000026001053219711,current,3.00,"ПАТ КБ ""Приватбанк""",14360570,юридична особа
ЄС,"Миколаївська область, Миколаїв, вулиця Гастелло, 9/1",61,2020-03-03,1659,Військовий збір,Податкові платежі,248369,Миколаївська обласна організація,26029188,Миколаївська область,"*;101;26029188;11011000;;;Перерах.1,5% на вiйсковий збiр утрим. iз з/п за 02/2020. Перерах. до бюджету повнiстю.Без ПДВ",UA543266100000026001053219711,current,936.58,УДКСУ у м. Миколаєві,37992781,юридична особа
ЄС,"Миколаївська область, Миколаїв, вулиця Потьомкінська",62,2020-03-03,1660,Сплата ЄСВ,Податкові платежі,248368,Миколаївська обласна організація,26029188,Миколаївська область,*;101;26029188;Внески ЄСВ 22% на оплату з/п за 02/2020р.Перераховується до бюджету повнiстю. Без ПДВ .;;;,UA543266100000026001053219711,current,13736.40,ДПІ у Центральному районі м. Миколаєва ГУ ДФС у Миколаївській області,39554010,юридична особа
ЄС,"Київ, вулиця Михайла Грушевського, 1",70,2020-03-03,1663,Банківські послуги,Інші витрати,248367,Миколаївська обласна організація,26029188,Миколаївська область,Комiсiя РКО вiд зарплати за лютий 2020р.,UA543266100000026001053219711,current,125.66,"ПАТ КБ ""Приватбанк""",14360570,юридична особа
ЄС,"Миколаївська область, Миколаїв, вулиця Гастелло, 9/1",63,2020-03-03,1661,Податок на доходи,Податкові платежі,248366,Миколаївська обласна організація,26029188,Миколаївська область,*;101;26029188;11010100;;;ПДФО утриманих iз заробiтної плати за 02/2020 року.Перерах. до бюджету повнiстю. Без ПДВ,UA543266100000026001053219711,current,11238.87,УДКСУ у м. Миколаєві,37992781,юридична особа
ЄС,"Київ, вулиця Михайла Грушевського, 1",70,2020-03-03,33O33CRD1Y,Банківські послуги,Інші витрати,248365,Миколаївська обласна організація,26029188,Миколаївська область,"Комiсiя за виконання платежiв в нацiональнiй валютi, згiдно з вiдкритою офертою банку N б/н вiд 17.06.2016 та тарифiв банку, без ПДВ.",UA543266100000026001053219711,current,3.00,"ПАТ КБ ""Приватбанк""",14360570,юридична особа
ЄС,"Херсонська область, Дніпряни",84,2020-03-03,1662,"Заробітна плата, премії","Заробітна плата, лікарняні, вагітності, відрядження, компенсації",248342,Миколаївська обласна організація,26029188,Миколаївська область,Заробiтна плата за лютий 2020 року,UA543266100000026001053219711,current,9834.29,Висоцька Катерина Олександрівна,,фізична особа
ЄС,"Миколаївська область, Миколаїв",84,2020-03-03,1662,"Заробітна плата, премії","Заробітна плата, лікарняні, вагітності, відрядження, компенсації",248341,Миколаївська обласна організація,26029188,Миколаївська область,Заробiтна плата за лютий 2020 року,UA543266100000026001053219711,current,9834.29,Купінець Олександра Степанівна,,фізична особа
ЄС,"Миколаївська область, Миколаїв",84,2020-03-03,1662,"Заробітна плата, премії","Заробітна плата, лікарняні, вагітності, відрядження, компенсації",248340,Миколаївська обласна організація,26029188,Миколаївська область,Заробiтна плата за лютий 2020 року,UA543266100000026001053219711,current,6095.60,Сербул Марина Юріївна,,фізична особа
ЄС,"Миколаївська область, Миколаїв",84,2020-03-03,1662,"Заробітна плата, премії","Заробітна плата, лікарняні, вагітності, відрядження, компенсації",248339,Миколаївська обласна організація,26029188,Миколаївська область,Заробiтна плата за лютий 2020 року,UA543266100000026001053219711,current,9029.29,Пересунько Руслан Вікторович,,фізична особа
ЄС,"Миколаївська область, Миколаїв",84,2020-03-03,1662,"Заробітна плата, премії","Заробітна плата, лікарняні, вагітності, відрядження, компенсації",248338,Миколаївська обласна організація,26029188,Миколаївська область,Заробiтна плата за лютий 2020 року,UA543266100000026001053219711,current,15469.29,Переверьзєва Вікторія Вікторівна,,фізична особа
ЄС,"Львівська область, Львів, Щирецька, 6",70,2020-03-03,360747,Банківські послуги,Інші витрати,248323,Львівська обласна організація,39702118,Львівська область,Комісія за виконання платіжного доручення,UA243805820000026004010318212,current,6.00,"ПАТ ""МІБ""",35810511,юридична особа
ЄС,"Львівська область, Львів, Щирецька, 6",70,2020-03-03,300,Банківські послуги,Інші витрати,248322,Львівська обласна організація,39702118,Львівська область,1% від суми до виплати ЗП,UA243805820000026004010318212,current,354.22,"ПАТ ""МІБ""",35810511,юридична особа
ЄС,"Львівська область, Львів, вулиця Генерала Чупринки, 65",61,2020-03-03,298,Військовий збір,Податкові платежі,248321,Львівська обласна організація,39702118,Львівська область,ВЗ із ЗП за лютий 2020р.,UA243805820000026004010318212,current,660.05,УДКСУ у Франківському районі м. Львова,37965138,юридична особа
ЄС,"Львівська область, Львів, вулиця Генерала Чупринки, 65",63,2020-03-03,297,Податок на доходи,Податкові платежі,248320,Львівська обласна організація,39702118,Львівська область,ПДФО із ЗП за лютий 2020р.,UA243805820000026004010318212,current,7920.38,УДКСУ у Франківському районі м. Львова,37965138,юридична особа
ЄС,"Львівська область, Львів, вулиця Стрийська, 35",62,2020-03-03,296,Сплата ЄСВ,Податкові платежі,248319,Львівська обласна організація,39702118,Львівська область,ЄСВ за лютий 2020р.,UA243805820000026004010318212,current,9680.46,ДПІ у Франківському районі м. Львова,39508247,юридична особа
ЄС,"Львівська область, Львів",84,2020-03-03,299,"Заробітна плата, премії","Заробітна плата, лікарняні, вагітності, відрядження, компенсації",248243,Львівська обласна організація,39702118,Львівська область,ЗП за лютий 2020р.,UA243805820000026004010318212,current,7245.00,Пінтоха Марія Василівна,,фізична особа
ЄС,"Тернопільська область, Тернопіль",84,2020-03-03,299,"Заробітна плата, премії","Заробітна плата, лікарняні, вагітності, відрядження, компенсації",248242,Львівська обласна організація,39702118,Львівська область,ЗП за лютий 2020р.,UA243805820000026004010318212,current,8963.29,Окряк Анастасія Ізидорівна,,фізична особа
ЄС,"Львівська область, Львів",84,2020-03-03,299,"Заробітна плата, премії","Заробітна плата, лікарняні, вагітності, відрядження, компенсації",248241,Львівська обласна організація,39702118,Львівська область,ЗП за лютий 2020р.,UA243805820000026004010318212,current,5245.79,Новожилова Олена Юріївна,,фізична особа
ЄС,"Львівська область, Львів",84,2020-03-03,299,"Заробітна плата, премії","Заробітна плата, лікарняні, вагітності, відрядження, компенсації",248240,Львівська обласна організація,39702118,Львівська область,ЗП за лютий 2020р.,UA243805820000026004010318212,current,6614.29,Лісова Ольга Павлівна,,фізична особа
ЄС,"Львівська область, Львів",84,2020-03-03,299,"Заробітна плата, премії","Заробітна плата, лікарняні, вагітності, відрядження, компенсації",248239,Львівська обласна організація,39702118,Львівська область,ЗП за лютий 2020р.,UA243805820000026004010318212,current,7353.29,Горак Діана Геннадіївна,,фізична особа
ЄС,"Київ, вулиця Михайла Грушевського, 1",70,2020-03-03,33O33CP7NY,Банківські послуги,Інші витрати,248216,Луганська обласна організація,39825996,Луганська область,"Комiсiя за виконання платежiв в нацiональнiй валютi, згiдно з вiдкритою офертою банку N б/н вiд 17.06.2015 та тарифiв банку, без ПДВ.",UA583047950000026009053718941,current,3.00,"ПАТ КБ ""Приватбанк""",14360570,юридична особа
ЄС,"Київ, вулиця Михайла Грушевського, 1",70,2020-03-03,K33O0NRW3M,Банківські послуги,Інші витрати,248215,Луганська обласна організація,39825996,Луганська область,"Сплата комісії за касове обслуговування лютий 2020р., без ПДВ.",UA583047950000026009053718941,current,69.45,"ПАТ КБ ""Приватбанк""",14360570,юридична особа
ЄС,"Київ, вулиця Михайла Грушевського, 1",70,2020-03-03,33O33CP87Y,Банківські послуги,Інші витрати,248214,Луганська обласна організація,39825996,Луганська область,"Комiсiя за виконання платежiв в нацiональнiй валютi, згiдно з вiдкритою офертою банку N б/н вiд 17.06.2015 та тарифiв банку, без ПДВ.",UA583047950000026009053718941,current,3.00,"ПАТ КБ ""Приватбанк""",14360570,юридична особа
ЄС,"Луганська область, Сєвєродонецьк, проспект Хіміків, 68",43,2020-03-03,25,Інші витрати,Інші витрати,248213,Луганська обласна організація,39825996,Луганська область,Відрахування із доходів боржника Серебреннікової О.О. згiдно виконавчому впровадженню N 60799416 вiд 23.12.2019р. за лютий 2020р. Без ПДВ.,UA583047950000026009053718941,current,885.50,Сєвєродонецький МВДВС ГТУЮ у Луганській області,,юридична особа
ЄС,"Луганська область, Сєвєродонецьк, проспект Центральний, 59",61,2020-03-03,22,Військовий збір,Податкові платежі,248212,Луганська обласна організація,39825996,Луганська область,"*;101;39825996; сплата військового збору;лютий 2020р;1,5%;534,13;;;; Без ПДВ",UA583047950000026009053718941,current,534.13,УДКСУ у м. Сєвєродонецьку Луганської області,37944909,юридична особа
ЄС,"Луганська область, Сєвєродонецьк, вулиця Енергетиків, 59",62,2020-03-03,24,Сплата ЄСВ,Податкові платежі,248211,Луганська обласна організація,39825996,Луганська область,"*;101;39825996;сплата ЄСВ;лютий 2020р.;22%;8004,61;;;Без ПДВ",UA583047950000026009053718941,current,8004.61,Головне управління ДФС у Луганській області,39591445,юридична особа
ЄС,"Луганська область, Сєвєродонецьк, проспект Центральний, 59",63,2020-03-03,23,Податок на доходи,Податкові платежі,248210,Луганська обласна організація,39825996,Луганська область,"*;101;39825996;ПДФО;лютий 2020р.;18%;6409,58;;; Без ПДВ",UA583047950000026009053718941,current,6409.58,УДКСУ у м. Сєвєродонецьку Луганської області,37944909,юридична особа
ЄС,"Київ, вулиця Михайла Грушевського, 1",70,2020-03-03,33O33CP7EY,Банківські послуги,Інші витрати,248209,Луганська обласна організація,39825996,Луганська область,"Комiсiя за виконання платежiв в нацiональнiй валютi, згiдно з вiдкритою офертою банку N б/н вiд 17.06.2015 та тарифiв банку, без ПДВ.",UA583047950000026009053718941,current,3.00,"ПАТ КБ ""Приватбанк""",14360570,юридична особа
ЄС,"Луганська область, Сєвєродонецьк, вулиця Донецька, 1",84,2020-03-03,1,"Заробітна плата, премії","Заробітна плата, лікарняні, вагітності, відрядження, компенсації",248169,Луганська обласна організація,39825996,Луганська область,Заробітна плата за лютий 2020р. Без ПДВ,UA583047950000026009053718941,current,11685.79,Шевченко Лариса Кабіровна,,фізична особа
ЄС,"Луганська область, Сєвєродонецьк, вулиця Донецька, 1",84,2020-03-03,1,"Заробітна плата, премії","Заробітна плата, лікарняні, вагітності, відрядження, компенсації",248168,Луганська обласна організація,39825996,Луганська область,Заробітна плата за лютий 2020р. Без ПДВ,UA583047950000026009053718941,current,4166.52,Серебреннікова Олена Олександрівна,,фізична особа
ЄС,"Луганська область, Сєвєродонецьк, вулиця Донецька, 1",84,2020-03-03,1,"Заробітна плата, премії","Заробітна плата, лікарняні, вагітності, відрядження, компенсації",248167,Луганська обласна організація,39825996,Луганська область,Заробітна плата за лютий 2020р. Без ПДВ,UA583047950000026009053718941,current,11927.29,Злобіна Альфія Абдувахобівна,,фізична особа
ЄС,"Кіровоградська область, Кропивницький, вулиця Велика Перспективна, 8",70,2020-03-03,7IO2BFMY8X,Банківські послуги,Інші витрати,248125,Кіровоградська обласна організація,39697790,Кіровоградська область,Комiсiя за виконання платежiв в нацiональнiй валютi,UA603235830000026002052912613,current,9.00,"ПАТ ""НАСК ""Оранта""",14360577,юридична особа
ЄС,"Кіровоградська область, Кропивницький, вулиця Велика Перспективна, 31/36",63,2020-03-03,K33O0NRWV5,Податок на доходи,Податкові платежі,248122,Кіровоградська обласна організація,39697790,Кіровоградська область,ПДФО вiд зарплати за лютий 2020р,UA603235830000026002052912613,current,7253.42,УДКСУ у м. Кропивницькому,38037409,юридична особа
ЄС,"Кіровоградська область, Кропивницький, вулиця Велика Перспективна, 31/36",61,2020-03-03,K33O0NRWV4,Військовий збір,Податкові платежі,248121,Кіровоградська обласна організація,39697790,Кіровоградська область,Вiйськовий збiр вiд зарплати за лютий 2020р,UA603235830000026002052912613,current,604.45,УДКСУ у м. Кропивницькому,38037409,юридична особа
ЄС,"Кіровоградська область, Кропивницький, вул. Глінки, 2",62,2020-03-03,K33O0NRWV3,Сплата ЄСВ,Податкові платежі,248120,Кіровоградська обласна організація,39697790,Кіровоградська область,ЄСВ на зарплати за лютий 2020 р.,UA603235830000026002052912613,current,8865.30,Кропивницька ОДПІ ГУ ДФС у Кіровоградській області,39484073,юридична особа
ЄС,"Кіровоградська область, Кропивницький, вулиця Велика Перспективна, 8",70,2020-03-03,346,Банківські послуги,Інші витрати,248119,Кіровоградська обласна організація,39697790,Кіровоградська область,Комiсiя РКО вiд зарплати за лютий 2020р.,UA603235830000026002052912613,current,81.10,"ПАТ ""НАСК ""Оранта""",14360577,юридична особа
ЄС,"Кіровоградська область, Кропивницький",84,2020-03-03,1,"Заробітна плата, премії","Заробітна плата, лікарняні, вагітності, відрядження, компенсації",248065,Кіровоградська обласна організація,39697790,Кіровоградська область,Зарплата за лютий 2020 р.,UA603235830000026002052912613,current,6539.43,Бандушкіна Олена Віталіївна,,фізична особа
ЄС,"Кіровоградська область, Знам'янка",84,2020-03-03,1,"Заробітна плата, премії","Заробітна плата, лікарняні, вагітності, відрядження, компенсації",248064,Кіровоградська обласна організація,39697790,Кіровоградська область,Зарплата за лютий 2020 р.,UA603235830000026002052912613,current,4600.00,Бондарева Любов Миколаївна,,фізична особа
ЄС,"Кіровоградська область, Кропивницький",84,2020-03-03,1,"Заробітна плата, премії","Заробітна плата, лікарняні, вагітності, відрядження, компенсації",248063,Кіровоградська обласна організація,39697790,Кіровоградська область,Зарплата за лютий 2020 р.,UA603235830000026002052912613,current,5310.96,Никифорук Юрій Ярославович,,фізична особа
ЄС,"Кіровоградська область, Кропивницький",84,2020-03-03,1,"Заробітна плата, премії","Заробітна плата, лікарняні, вагітності, відрядження, компенсації",248062,Кіровоградська обласна організація,39697790,Кіровоградська область,Зарплата за лютий 2020 р.,UA603235830000026002052912613,current,6614.29,Васильєв Денис Олегович,,фізична особа
ЄС,"Кіровоградська область, Кропивницький",84,2020-03-03,1,"Заробітна плата, премії","Заробітна плата, лікарняні, вагітності, відрядження, компенсації",248061,Кіровоградська обласна організація,39697790,Кіровоградська область,Зарплата за лютий 2020 р.,UA603235830000026002052912613,current,9374.29,Колодєєв Віталій Миколайович,,фізична особа
ЄС,"Київ, вулиця Шолуденка, 33/19",62,2020-03-03,1897,Сплата ЄСВ,Податкові платежі,248037,Київська обласна організація,39495516,Київська область,"*;101;39495516;ЕСВ за 02.2020 (22,0 % 3 905,00) ; Нарах. и перерах. повністю, без ПДВ;;;;",UA503805820000026000010325931,current,3905.00,ГУ ДФС у м. Києві,39439980,юридична особа
ЄС,"Київ, вулиця Леоніда Первомайського, 9А",63,2020-03-03,1899,Податок на доходи,Податкові платежі,248036,Київська обласна організація,39495516,Київська область,*;101;39495516;11010100;ПДФО за 02.2020 Нарах.та перерах. повністю;без ПДВ.,UA503805820000026000010325931,current,3195.00,УДКСУ у Печерському районі м. Києва,38004897,юридична особа
ЄС,"Київ, вулиця Леоніда Первомайського, 9А",61,2020-03-03,1898,Військовий збір,Податкові платежі,248035,Київська обласна організація,39495516,Київська область,*;101;39495516;11011000; військовий збір за 02.2020 ;;;; без ПДВ.,UA503805820000026000010325931,current,266.25,УДКСУ у Печерському районі м. Києва,38004897,юридична особа
ЄС,"Київ, вулиця Лаврська, 16",70,2020-03-03,360838,Банківські послуги,Інші витрати,248034,Київська обласна організація,39495516,Київська область,"Комісія за виконання платіжного доручення в гривнях згідно, дог. 123.18-CBA від 29.10.2018, КИЇВСЬКА ТОПП""ЄВРОПЕЙСЬКА СОЛІДАРНІСТЬ",UA503805820000026000010325931,current,10.00,"ПАТ ""МІБ""",35810511,юридична особа
